Date Spend Occurred,Department Incurring Spend,Beneficiary Name,Summary of Purpose of Spend,Gross Amount,Merchant Category
01/10/2021,SUB MISUSE CARE PCKG,Acacia Homecare,Home Base Care,340.58,Residential - LD
01/10/2021,SUB MISUSE CARE PCKG,Acacia Homecare,Home Base Care,707.42,Residential - LD
01/10/2021,ELMBRIDGE CARE OP,Acacia Homecare,Home Base Care,1761.34,Residential - LD
01/10/2021,ELMBRIDGE CARE OP,Acacia Homecare,Home Base Care,882.79,Residential - LD
01/10/2021,SPELTHORNE CARE OP,Acacia Homecare,Home Base Care,728.89,Residential - LD
01/10/2021,SPELTHORNE CARE OP,Acacia Homecare,Home Base Care,653.89,Residential - LD
01/10/2021,WOKING CARE OP,Acacia Homecare,Home Base Care,550.41,Residential - LD
01/10/2021,SPELTHORNE CARE OP,Acacia Homecare,Home Base Care,384.79,Residential - LD
01/10/2021,SPELTHORNE CARE OP,Acacia Homecare,Home Base Care,399.3,Residential - LD
01/10/2021,SPELTHORNE CARE PD,Acacia Homecare,Home Base Care,602.49,Residential - LD
01/10/2021,SPELTHORNE CARE PD,Acacia Homecare,Home Base Care,1032.44,Residential - LD
01/10/2021,SPELTHORNE CARE OP,Acacia Homecare,Home Base Care,1498.28,Residential - LD
01/10/2021,SPELTHORNE CARE OP,Acacia Homecare,Home Base Care,952.55,Residential - LD
01/10/2021,SPELTHORNE CARE OP,Acacia Homecare,Home Base Care,1761.34,Residential - LD
01/10/2021,SPELTHORNE CARE OP,Acacia Homecare,Home Base Care,1460.87,Residential - LD
01/10/2021,SPELTHORNE CARE OP,Acacia Homecare,Home Base Care,1615.32,Residential - LD
01/10/2021,SPELTHORNE CARE OP,Acacia Homecare,Home Base Care,718.52,Residential - LD
01/10/2021,SPELTHORNE CARE PD,Acacia Homecare,Home Base Care,822.08,Residential - LD
01/10/2021,SURREY HEATH CARE OP,Acorn Homecare,Home Base Care,316.96,Dom Care - Adults
01/10/2021,SURREY HEATH CARE OP,Acorn Homecare,Home Base Care,367.78,Dom Care - Adults
01/10/2021,WAVERLEY CARE OP,Acorn Homecare,Home Base Care,614.65,Dom Care - Adults
01/10/2021,SURREY HEATH CARE OP,Acorn Homecare,Home Base Care,526.26,Dom Care - Adults
01/10/2021,WAVERLEY CARE OP,Acorn Homecare,Home Base Care,531.01,Dom Care - Adults
01/10/2021,SURREY HEATH CARE OP,Acorn Homecare,Home Base Care,316.96,Dom Care - Adults
01/10/2021,WAVERLEY CARE OP,Acorn Homecare,Home Base Care,526.26,Dom Care - Adults
01/10/2021,SURREY HEATH CARE OP,Acorn Homecare,Home Base Care,609.81,Dom Care - Adults
01/10/2021,LD-AUT CNTR TM CARE,Acorn Homecare,Home Base Care,262.7,Dom Care - Adults
01/10/2021,SURREY HEATH CARE OP,Acorn Homecare,Home Base Care,647.56,Dom Care - Adults
01/10/2021,SURREY HEATH CARE OP,Acorn Homecare,Home Base Care,356.36,Dom Care - Adults
01/10/2021,GUILDFORD CARE OP,Acorn Homecare,Home Base Care,1347.63,Dom Care - Adults
01/10/2021,SURREY HEATH CARE OP,Acorn Homecare,Home Base Care,305.64,Dom Care - Adults
01/10/2021,GUILDFORD CARE OP,Acorn Homecare,Home Base Care,356.46,Dom Care - Adults
01/10/2021,SURREY HEATH CARE OP,Acorn Homecare,Home Base Care,503.62,Dom Care - Adults
01/10/2021,SURREY HEATH CARE OP,Acorn Homecare,Home Base Care,526.26,Dom Care - Adults
01/10/2021,SURREY HEATH CARE OP,Acorn Homecare,Home Base Care,316.96,Dom Care - Adults
01/10/2021,SURREY HEATH CARE OP,Acorn Homecare,Home Base Care,475.44,Dom Care - Adults
01/10/2021,SURREY HEATH CARE OP,Acorn Homecare,Home Base Care,525.38,Dom Care - Adults
01/10/2021,GUILDFORD CARE OP,Acorn Homecare,Home Base Care,367.78,Dom Care - Adults
01/10/2021,GUILDFORD CARE OP,Acorn Homecare,Home Base Care,684.74,Dom Care - Adults
01/10/2021,SURREY HEATH CARE OP,Acorn Homecare,Home Base Care,475.44,Dom Care - Adults
01/10/2021,SURREY HEATH CARE OP,Acorn Homecare,Home Base Care,475.44,Dom Care - Adults
01/10/2021,SURREY HEATH CARE OP,Acorn Homecare,Home Base Care,526.26,Dom Care - Adults
01/10/2021,GUILDFORD CARE OP,Acorn Homecare,Home Base Care,694.24,Dom Care - Adults
01/10/2021,WAVERLEY CARE OP,Acorn Homecare,Home Base Care,684.74,Dom Care - Adults
01/10/2021,SURREY HEATH CARE OP,Acorn Homecare,Home Base Care,475.44,Dom Care - Adults
01/10/2021,SURREY HEATH CARE OP,Acorn Homecare,Home Base Care,367.78,Dom Care - Adults
01/10/2021,GUILDFORD CARE OP,Acorn Homecare,Home Base Care,592.76,Dom Care - Adults
01/10/2021,SURREY HEATH CARE OP,Acorn Homecare,Home Base Care,356.36,Dom Care - Adults
01/10/2021,SURREY HEATH CARE OP,Acorn Homecare,Home Base Care,593.64,Dom Care - Adults
01/10/2021,GUILDFORD CARE OP,Acorn Homecare,Home Base Care,482.7,Dom Care - Adults
01/10/2021,SURREY HEATH CARE OP,Acorn Homecare,Home Base Care,316.96,Dom Care - Adults
01/10/2021,SURREY HEATH CARE OP,Acorn Homecare,Home Base Care,426.88,Dom Care - Adults
01/10/2021,WAVERLEY CARE OP,Acorn Homecare,Home Base Care,605.06,Dom Care - Adults
01/10/2021,GUILDFORD CARE OP,Acorn Homecare,Home Base Care,526.26,Dom Care - Adults
01/10/2021,SURREY HEATH CARE OP,Acorn Homecare,Home Base Care,1535.32,Dom Care - Adults
01/10/2021,EIF 3 & 4 YR OLD,Acorn Nursery School,Third Party Payments-Other Agencies,500,Nurseries
01/10/2021,EIF 3 & 4 YR OLD,Acorn Nursery School,Third Party Payments-Other Agencies,500,Nurseries
01/10/2021,NULL,Adecco UK Ltd,NULL,576117.83,Recruit & Assessment
01/10/2021,ELMBRIDGE CARE OP,Agincare Group Ltd,Home Base Care,401.66,Dom Care - Adults
01/10/2021,ELMBRIDGE CARE OP,Agincare Group Ltd,Home Base Care,295.96,Dom Care - Adults
01/10/2021,ELMBRIDGE CARE OP,Agincare Group Ltd,Home Base Care,333.08,Dom Care - Adults
01/10/2021,WOKING CARE PD,Agincare Group Ltd,Home Base Care,591.92,Dom Care - Adults
01/10/2021,WOKING CARE PD,Agincare Group Ltd,Home Base Care,848.43,Dom Care - Adults
01/10/2021,WOKING CARE OP,Agincare Group Ltd,Home Base Care,1010.52,Dom Care - Adults
01/10/2021,ELMBRIDGE CARE OP,Agincare Group Ltd,Home Base Care,538,Dom Care - Adults
01/10/2021,WOKING CARE OP,Agincare Group Ltd,Home Base Care,285.1,Dom Care - Adults
01/10/2021,WOKING CARE OP,Agincare Group Ltd,Home Base Care,357.28,Dom Care - Adults
01/10/2021,WOKING CARE OP,Agincare Group Ltd,Home Base Care,327.92,Dom Care - Adults
01/10/2021,WOKING CARE PD,Agincare Group Ltd,Home Base Care,324.8,Dom Care - Adults
01/10/2021,WOKING CARE OP,Agincare Group Ltd,Home Base Care,295.96,Dom Care - Adults
01/10/2021,WOKING CARE OP,Agincare Group Ltd,Home Base Care,452.7,Dom Care - Adults
01/10/2021,WOKING CARE OP,Agincare Group Ltd,Home Base Care,295.96,Dom Care - Adults
01/10/2021,WOKING CARE OP,Agincare Group Ltd,Home Base Care,301.37,Dom Care - Adults
01/10/2021,WOKING CMHRS CARE,Agincare Group Ltd,Home Base Care,566.58,Dom Care - Adults
01/10/2021,MOLE VALLEY CARE OP,Aims Homecare Ltd,Home Base Care,1039.08,Dom Care - Adults
01/10/2021,NULL,All Hallows Catholic School,NULL,28098,Schools
01/10/2021,LD-AUT CNTR TM CARE,Alum Care Ltd,Nursing Respite,927.86,Residential - LD
01/10/2021,LD-AUT CNTR TM CARE,Alum Care Ltd,Nursing Respite,1237.14,Residential - LD
01/10/2021,LD-AUT CNTR TM CARE,Alum Care Ltd,Nursing Respite,9587.86,Residential - LD
01/10/2021,WOKING CARE OP,Aniis Ltd,Home Base Care,1197.56,Dom Care - Adults
01/10/2021,WOKING CARE OP,Aniis Ltd,Home Base Care,598.78,Dom Care - Adults
01/10/2021,WOKING CARE OP,Aniis Ltd,Home Base Care,1197.56,Dom Care - Adults
01/10/2021,SPELTHORNE CARE OP,Aniis Ltd,Home Base Care,459.34,Dom Care - Adults
01/10/2021,WOKING CARE PD,Aniis Ltd,Home Base Care,557.76,Dom Care - Adults
01/10/2021,WOKING CARE OP,Aniis Ltd,Home Base Care,558.04,Dom Care - Adults
01/10/2021,RUNNYMEDE CARE OP,Aniis Ltd,Home Base Care,989.76,Dom Care - Adults
01/10/2021,RUNNYMEDE CARE OP,Aniis Ltd,Home Base Care,377.58,Dom Care - Adults
01/10/2021,WOKING CARE OP,Aniis Ltd,Home Base Care,1197.56,Dom Care - Adults
01/10/2021,RUNNYMEDE CARE OP,Aniis Ltd,Home Base Care,1000.72,Dom Care - Adults
01/10/2021,ARBORICULTURE,Bilfinger Europa Facility,Upkeep of Grounds,348.42,Edu Establishments
01/10/2021,WALTON FIRE STATION,Bilfinger Europa Facility,Corporate Responsive Maintenance,310.32,Edu Establishments
01/10/2021,DORKING NURSERY SCH,Bilfinger Europa Facility,Buyback Works Responsive,332.94,Edu Establishments
01/10/2021,JOSEPH PALMER,Bilfinger Europa Facility,Corporate Responsive Maintenance,377.16,Edu Establishments
01/10/2021,ORCHARD,Bilfinger Europa Facility,Corporate Responsive Maintenance,348.42,Edu Establishments
01/10/2021,DORKING FIRE STATION,Bilfinger Europa Facility,Corporate Responsive Maintenance,271.54,Edu Establishments
01/10/2021,SURREY HEATH CARE OP,Bluebird Care (Rushmoor & Surrey He,Home Base Care,641.9,Dom Care - Adults
01/10/2021,SURREY HEATH CARE OP,Bluebird Care (Rushmoor & Surrey He,Home Base Care,438.12,Dom Care - Adults
01/10/2021,SURREY HEATH CARE OP,Bluebird Care (Rushmoor & Surrey He,Home Base Care,876.04,Dom Care - Adults
01/10/2021,SURREY HEATH CARE OP,Bluebird Care (Rushmoor & Surrey He,Home Base Care,570.5,Dom Care - Adults
01/10/2021,LD-AUT CNTR TM CARE,Boyce Care Ltd,Non-Staff Related Transport Costs,1200,Supp Living - MH
01/10/2021,LD-AUT CNTR TM CARE,Boyce Care Ltd,Other Community Care,1093.2,Supp Living - MH
01/10/2021,LD-AUT CNTR TM CARE,Boyce Care Ltd,Other Community Care,619.48,Supp Living - MH
01/10/2021,LD-AUT CNTR TM CARE,Boyce Care Ltd,Other Community Care,619.48,Supp Living - MH
01/10/2021,LD-AUT CNTR TM CARE,Boyce Care Ltd,Other Community Care,874.56,Supp Living - MH
01/10/2021,LD-AUT CNTR TM CARE,Boyce Care Ltd,Other Community Care,728.8,Supp Living - MH
01/10/2021,LD-AUT CNTR TM CARE,Boyce Care Ltd,Other Community Care,1457.6,Supp Living - MH
01/10/2021,LD-AUT CNTR TM CARE,Boyce Care Ltd,Other Community Care,1238.96,Supp Living - MH
01/10/2021,EIF 2 YR OLD,Brambly House Montessori School,Third Party Payments-Other Agencies,667,Schools
01/10/2021,EIF 3 & 4 YR OLD,Brambly House Montessori School,Third Party Payments-Other Agencies,1000,Schools
01/10/2021,NULL,Breyer Group Plc,NULL,130492.96,General Build Maint
01/10/2021,EIF 3 & 4 YR OLD,Briars Nursery Centre,Third Party Payments-Other Agencies,1000,Nursery
01/10/2021,GUILDFORD CARE OP,Brico Ltd t/a Bluebird Guild & Wave,Home Base Care,785.4,Dom Care - Adults
01/10/2021,GUILDFORD CARE OP,Brico Ltd t/a Bluebird Guild & Wave,Home Base Care,257.04,Dom Care - Adults
01/10/2021,GUILDFORD CARE OP,Brico Ltd t/a Bluebird Guild & Wave,Home Base Care,523.16,Dom Care - Adults
01/10/2021,WAVERLEY CARE PD,Brico Ltd t/a Bluebird Guild & Wave,Home Base Care,286.58,Dom Care - Adults
01/10/2021,WAVERLEY CARE OP,Brico Ltd t/a Bluebird Guild & Wave,Home Base Care,573.16,Dom Care - Adults
01/10/2021,GUILDFORD CARE PD,Brico Ltd t/a Bluebird Guild & Wave,Home Base Care,333.22,Dom Care - Adults
01/10/2021,GUILDFORD CARE OP,Brico Ltd t/a Bluebird Guild & Wave,Home Base Care,886.34,Dom Care - Adults
01/10/2021,WOKING CARE OP,Brico Ltd t/a Bluebird Guild & Wave,Home Base Care,814.94,Dom Care - Adults
01/10/2021,WAVERLEY CARE OP,Brico Ltd t/a Bluebird Guild & Wave,Home Base Care,599.76,Dom Care - Adults
01/10/2021,GUILDFORD CARE OP,Brico Ltd t/a Bluebird Guild & Wave,Home Base Care,571.2,Dom Care - Adults
01/10/2021,WAVERLEY CARE OP,Brico Ltd t/a Bluebird Guild & Wave,Home Base Care,1959.16,Dom Care - Adults
01/10/2021,GUILDFORD CARE OP,Brico Ltd t/a Bluebird Guild & Wave,Home Base Care,1029.72,Dom Care - Adults
01/10/2021,GUILDFORD CARE OP,Brico Ltd t/a Bluebird Guild & Wave,Home Base Care,564.1,Dom Care - Adults
01/10/2021,GUILDFORD CARE OP,Brico Ltd t/a Bluebird Guild & Wave,Home Base Care,738.2,Dom Care - Adults
01/10/2021,WOKING CARE OP,Brockhill,Extra Care Housing,1592.36,Residential - OP
01/10/2021,WOKING CARE OP,Brockhill,Extra Care Housing,1592.36,Residential - OP
01/10/2021,EIF 3 & 4 YR OLD,Buckles & Bows Pre School Nursery,Third Party Payments-Other Agencies,1000,Nurseries
01/10/2021,NULL,Burpham Foundation Primary School,NULL,27953.8,Schools
01/10/2021,NULL,Burpham Foundation Primary School,NULL,39681,Schools
01/10/2021,NULL,Burpham Foundation Primary School,NULL,60535,Schools
01/10/2021,NULL,Burstow Primary School,NULL,8990,Schools
01/10/2021,NULL,Burstow Primary School,NULL,28140,Schools
01/10/2021,NULL,Burstow Primary School,NULL,27050,Schools
01/10/2021,NULL,Burstow Primary School,NULL,30313,Schools
01/10/2021,NULL,Burstow Primary School,NULL,17506.1,Schools
01/10/2021,NULL,Bushy Hill Junior School,NULL,10929,Schools
01/10/2021,EIF 3 & 4 YR OLD,Busy Bees at Cheam,Third Party Payments-Other Agencies,948,Grants - Community
01/10/2021,EIF 3 & 4 YR OLD,Busy Bees Nursery,Third Party Payments-Other Agencies,2000,Nurseries
01/10/2021,BYFLEET LIBRARY,Byfleet Community Library,Grants-Third Sector and Voluntary Orgs/Charities,288.18,Non Trade
01/10/2021,ADOPTION SUPP FD-SGO,Cambridge Education Ltd,Other Community Care - Vol,9985,Staff Training
01/10/2021,ADOPTION SUPP FD-SGO,Cambridge Education Ltd,Other Community Care - Vol,1185,Staff Training
01/10/2021,ADOPTION SUPP FD-SGO,Cambridge Education Ltd,Other Community Care - Vol,400,Staff Training
01/10/2021,ADOPTION SUPP FD-SGO,Cambridge Education Ltd,Other Community Care - Vol,43414.89,Staff Training
01/10/2021,GUILDFORD CARE PD,Careart UK Ltd,Home Base Care,310.08,Dom Care - Adults
01/10/2021,WAVERLEY CARE OP,Careart UK Ltd,Home Base Care,485.52,Dom Care - Adults
01/10/2021,WAVERLEY CARE OP,Careart UK Ltd,Home Base Care,357,Dom Care - Adults
01/10/2021,WAVERLEY CARE OP,Careart UK Ltd,Home Base Care,307.02,Dom Care - Adults
01/10/2021,ELMBRIDGE CARE PD,Careart UK Ltd,Home Base Care,2284.8,Dom Care - Adults
01/10/2021,WAVERLEY CARE OP,Careart UK Ltd,Home Base Care,2284.8,Dom Care - Adults
01/10/2021,WAVERLEY CARE OP,Careart UK Ltd,Home Base Care,1071,Dom Care - Adults
01/10/2021,WAVERLEY CARE OP,Careart UK Ltd,Home Base Care,1328.04,Dom Care - Adults
01/10/2021,WAVERLEY CARE PD,Careart UK Ltd,Home Base Care,307.02,Dom Care - Adults
01/10/2021,WAVERLEY CARE PD,Careart UK Ltd,Home Base Care,421.26,Dom Care - Adults
01/10/2021,WAVERLEY CARE OP,Careart UK Ltd,Home Base Care,1071,Dom Care - Adults
01/10/2021,LD-AUT CNTR TM CARE,Careart UK Ltd,Home Base Care,956.76,Dom Care - Adults
01/10/2021,WAVERLEY CARE OP,Careart UK Ltd,Home Base Care,535.5,Dom Care - Adults
01/10/2021,GUILDFORD CARE OP,Careart UK Ltd,Home Base Care,371.28,Dom Care - Adults
01/10/2021,WAVERLEY CARE OP,Careart UK Ltd,Home Base Care,699.72,Dom Care - Adults
01/10/2021,EPSOM & EWELL CARE O,Caremark Sutton,Home Base Care,317.84,Dom Care - Adults
01/10/2021,RUNNYMEDE CARE OP,Caremark(Runnymede & Spelthorne),Home Base Care,608.86,Dom Care - Adults
01/10/2021,RUNNYMEDE CARE OP,Caremark(Runnymede & Spelthorne),Home Base Care,743.26,Dom Care - Adults
01/10/2021,RUNNYMEDE CARE OP,Caremark(Runnymede & Spelthorne),Home Base Care,551.5,Dom Care - Adults
01/10/2021,SPELTHORNE CARE OP,Caremark(Runnymede & Spelthorne),Home Base Care,629.58,Dom Care - Adults
01/10/2021,SPELTHORNE CARE OP,Caremark(Runnymede & Spelthorne),Home Base Care,807.9,Dom Care - Adults
01/10/2021,RUNNYMEDE CARE OP,Caremark(Runnymede & Spelthorne),Home Base Care,333.99,Dom Care - Adults
01/10/2021,RUNNYMEDE CARE PD,Caremark(Runnymede & Spelthorne),Home Base Care,252.07,Dom Care - Adults
01/10/2021,RUNNYMEDE CARE OP,Caremark(Runnymede & Spelthorne),Home Base Care,647.64,Dom Care - Adults
01/10/2021,LEGAL EXPS CH AD ED,Carter Brown The Expert Service,Legal Expenses,1029.6,Parent & Child Asses
01/10/2021,EPSOM & EWELL CARE P,Circle of Care Ltd,Home Base Care,1792,Respite - OP
01/10/2021,EPSOM & EWELL CARE P,Circle of Care Ltd,Home Base Care,1792,Respite - OP
01/10/2021,MOLE VALL CMHRS CARE,CLA Ltd,Other Community Care,1152,Building Cleaning
01/10/2021,MOLE VALLEY CARE PD,Classic Home Care Services,Home Base Care,694.2,Dom Care - Adults
01/10/2021,ELMBRIDGE CARE PD,Classic Home Care Services,Home Base Care,5498.68,Dom Care - Adults
01/10/2021,EPS & EW CMHRS CARE,Classic Home Care Services,Home Base Care,298.2,Dom Care - Adults
01/10/2021,MOLE VALLEY CARE PD,Classic Home Care Services,Home Base Care,298.2,Dom Care - Adults
01/10/2021,SPLTHORNE CMHRS CARE,Coghlan Lodges Ltd,Supported Living,2349.28,Dom Care - Adults
01/10/2021,NULL,Colours Decorating Ltd,NULL,20547.4,"Comm, Res & Inv Prop"
01/10/2021,LD-AUT CNTR TM CARE,County Care Independent Living Ltd,Home Base Care,311.76,Dom Care - Adults
01/10/2021,LD-AUT CNTR TM CARE,County Care Independent Living Ltd,Home Base Care,450.32,Dom Care - Adults
01/10/2021,LD-AUT CNTR TM CARE,County Care Independent Living Ltd,Home Base Care,277.12,Dom Care - Adults
01/10/2021,LD-AUT CNTR TM CARE,County Care Independent Living Ltd,Home Base Care,861.67,Dom Care - Adults
01/10/2021,LD-AUT CNTR TM CARE,County Care Independent Living Ltd,Home Base Care,272.79,Dom Care - Adults
01/10/2021,LD-AUT CNTR TM CARE,County Care Independent Living Ltd,Home Base Care,259.8,Dom Care - Adults
01/10/2021,LD-AUT CNTR TM CARE,County Care Independent Living Ltd,Home Base Care,541.25,Dom Care - Adults
01/10/2021,LD-AUT CNTR TM CARE,County Care Independent Living Ltd,Home Base Care,433,Dom Care - Adults
01/10/2021,LD-AUT CNTR TM CARE,County Care Independent Living Ltd,Other Community Care,428.5,Dom Care - Adults
01/10/2021,LD-AUT CNTR TM CARE,County Care Independent Living Ltd,Home Base Care,554.24,Dom Care - Adults
01/10/2021,LD-AUT CNTR TM CARE,County Care Independent Living Ltd,Other Community Care,299.95,Dom Care - Adults
01/10/2021,LD-AUT CNTR TM CARE,County Care Independent Living Ltd,Other Community Care,437.07,Dom Care - Adults
01/10/2021,LD-AUT CNTR TM CARE,County Care Independent Living Ltd,Home Base Care,1454.88,Dom Care - Adults
01/10/2021,WOKING CARE PD,County Care Independent Living Ltd,Home Base Care,311.76,Dom Care - Adults
01/10/2021,LD-AUT CNTR TM CARE,County Care Independent Living Ltd,Home Base Care,597.54,Dom Care - Adults
01/10/2021,LD-AUT CNTR TM CARE,County Care Independent Living Ltd,Home Base Care,333.41,Dom Care - Adults
01/10/2021,LD-AUT CNTR TM CARE,County Care Independent Living Ltd,Other Community Care,295.67,Dom Care - Adults
01/10/2021,LD-AUT CNTR TM CARE,County Care Independent Living Ltd,Home Base Care,562.9,Dom Care - Adults
01/10/2021,GUILDFORD CARE PD,County Care Independent Living Ltd,Home Base Care,891.98,Dom Care - Adults
01/10/2021,LD-AUT CNTR TM CARE,County Care Independent Living Ltd,Home Base Care,415.68,Dom Care - Adults
01/10/2021,LD-AUT CNTR TM CARE,County Care Independent Living Ltd,Home Base Care,522.08,Dom Care - Adults
01/10/2021,LD-AUT CNTR TM CARE,County Care Independent Living Ltd,Day Care,265.2,Dom Care - Adults
01/10/2021,LD-AUT CNTR TM CARE,County Care Independent Living Ltd,Other Community Care,587.05,Dom Care - Adults
01/10/2021,LD-AUT CNTR TM CARE,County Care Independent Living Ltd,Day Care,1485.72,Dom Care - Adults
01/10/2021,LD-AUT CNTR TM CARE,County Care Independent Living Ltd,Other Community Care,265.67,Dom Care - Adults
01/10/2021,LD-AUT CNTR TM CARE,County Care Independent Living Ltd,Other Community Care,308.52,Dom Care - Adults
01/10/2021,LD-AUT CNTR TM CARE,County Care Independent Living Ltd,Other Community Care,1199.8,Dom Care - Adults
01/10/2021,LD-AUT CNTR TM CARE,County Care Independent Living Ltd,Home Base Care,1108.48,Dom Care - Adults
01/10/2021,LD-AUT CNTR TM CARE,County Care Independent Living Ltd,Home Base Care,463.31,Dom Care - Adults
01/10/2021,LD-AUT CNTR TM CARE,County Care Independent Living Ltd,Home Base Care,350.73,Dom Care - Adults
01/10/2021,LD-AUT CNTR TM CARE,County Care Independent Living Ltd,Day Care,265.2,Dom Care - Adults
01/10/2021,LD-AUT CNTR TM CARE,County Care Independent Living Ltd,Day Care,629.85,Dom Care - Adults
01/10/2021,REIGATE & BD CARE PD,County Care Independent Living Ltd,Home Base Care,277.12,Dom Care - Adults
01/10/2021,MOLE VALLEY CARE PD,County Care Independent Living Ltd,Other Community Care,342.8,Dom Care - Adults
01/10/2021,LD-AUT CNTR TM CARE,County Care Independent Living Ltd,Home Base Care,619.19,Dom Care - Adults
01/10/2021,LD-AUT CNTR TM CARE,County Care Independent Living Ltd,Day Care,530.4,Dom Care - Adults
01/10/2021,LD-AUT CNTR TM CARE,County Care Independent Living Ltd,Home Base Care,346.4,Dom Care - Adults
01/10/2021,LD-AUT CNTR TM CARE,County Care Independent Living Ltd,Other Community Care,308.52,Dom Care - Adults
01/10/2021,LD-AUT CNTR TM CARE,County Care Independent Living Ltd,Other Community Care,668.46,Dom Care - Adults
01/10/2021,LD-AUT CNTR TM CARE,County Care Independent Living Ltd,Home Base Care,346.4,Dom Care - Adults
01/10/2021,LD-AUT CNTR TM CARE,County Care Independent Living Ltd,Home Base Care,969.92,Dom Care - Adults
01/10/2021,LD-AUT CNTR TM CARE,County Care Independent Living Ltd,Home Base Care,346.4,Dom Care - Adults
01/10/2021,LD-AUT CNTR TM CARE,County Care Independent Living Ltd,Home Base Care,476.3,Dom Care - Adults
01/10/2021,LD-AUT CNTR TM CARE,County Care Independent Living Ltd,Day Care,265.2,Dom Care - Adults
01/10/2021,LD-AUT CNTR TM CARE,County Care Independent Living Ltd,Other Community Care,479.92,Dom Care - Adults
01/10/2021,LD-AUT CNTR TM CARE,County Care Independent Living Ltd,Day Care,265.2,Dom Care - Adults
01/10/2021,LD-AUT CNTR TM CARE,County Care Independent Living Ltd,Home Base Care,281.04,Dom Care - Adults
01/10/2021,LD-AUT CNTR TM CARE,County Care Independent Living Ltd,Day Care,663,Dom Care - Adults
01/10/2021,LD-AUT CNTR TM CARE,County Care Independent Living Ltd,Home Base Care,744.76,Dom Care - Adults
01/10/2021,LD-AUT CNTR TM CARE,County Care Independent Living Ltd,Day Care,497.25,Dom Care - Adults
01/10/2021,LD-AUT CNTR TM CARE,County Care Independent Living Ltd,Other Community Care,411.36,Dom Care - Adults
01/10/2021,LD-AUT CNTR TM CARE,County Care Independent Living Ltd,Other Community Care,351.37,Dom Care - Adults
01/10/2021,BARNFIELD,Creed-Miles & Co Ltd,Corporate Responsive Maintenance,366,General Build Maint
01/10/2021,NULL,Creed-Miles & Co Ltd,NULL,4101.6,General Build Maint
01/10/2021,WOKING CARE OP,Delor Care,Home Base Care,1341.2,Residential - OP
01/10/2021,GUILDFORD CARE OP,Delor Care,Home Base Care,971.04,Residential - OP
01/10/2021,SPELTHORNE CARE PD,Delor Care,Home Base Care,513.94,Residential - OP
01/10/2021,SPELTHORNE CARE OP,Delor Care,Home Base Care,357.28,Residential - OP
01/10/2021,SPELTHORNE CARE PD,Delor Care,Home Base Care,479,Residential - OP
01/10/2021,SPELTHORNE CARE OP,Delor Care,Home Base Care,670.6,Residential - OP
01/10/2021,WOKING CARE OP,Delor Care,Home Base Care,1939.95,Residential - OP
01/10/2021,WOKING CARE PD,Delor Care,Home Base Care,313.32,Residential - OP
01/10/2021,SPELTHORNE CARE OP,Delor Care,Home Base Care,357.28,Residential - OP
01/10/2021,RUNNYMEDE CARE OP,Delor Care,Home Base Care,357.28,Residential - OP
01/10/2021,WOKING CARE OP,Delor Care,Home Base Care,357.28,Residential - OP
01/10/2021,RUNNYMEDE CARE OP,Delor Care,Home Base Care,357.28,Residential - OP
01/10/2021,SPELTHORNE CARE OP,Delor Care,Home Base Care,626.64,Residential - OP
01/10/2021,WOKING CARE OP,Delor Care,Home Base Care,391.3,Residential - OP
01/10/2021,WOKING CARE OP,Delor Care,Home Base Care,626.64,Residential - OP
01/10/2021,RUNNYMEDE CARE OP,Delor Care,Home Base Care,1341.2,Residential - OP
01/10/2021,SPELTHORNE CARE OP,Delor Care,Home Base Care,1341.2,Residential - OP
01/10/2021,RUNNYMEDE CARE OP,Delor Care,Home Base Care,357.28,Residential - OP
01/10/2021,WOKING CARE OP,Delor Care,Home Base Care,469.98,Residential - OP
01/10/2021,SPELTHORNE CARE OP,Delor Care,Home Base Care,513.94,Residential - OP
01/10/2021,ELMBRIDGE CARE PD,Delor Care,Home Base Care,1561.46,Residential - OP
01/10/2021,SPELTHORNE CARE OP,Delor Care,Home Base Care,1278.76,Residential - OP
01/10/2021,WOKING CARE OP,Delor Care,Home Base Care,945.56,Residential - OP
01/10/2021,WOKING CARE PD,Delor Care,Home Base Care,340.2,Residential - OP
01/10/2021,SPELTHORNE CARE OP,Delor Care,Home Base Care,670.6,Residential - OP
01/10/2021,SPELTHORNE CARE OP,Delor Care,Home Base Care,1942.08,Residential - OP
01/10/2021,RUNNYMEDE CARE PD,Delor Care,Home Base Care,1253.28,Residential - OP
01/10/2021,WOKING CARE OP,Delor Care,Home Base Care,1375.22,Residential - OP
01/10/2021,ELMBRIDGE CARE OP,Delor Care,Home Base Care,255.2,Residential - OP
01/10/2021,RUNNYMEDE CARE PD,Delor Care,Home Base Care,469.98,Residential - OP
01/10/2021,WOKING CARE OP,Delor Care,Home Base Care,758.52,Residential - OP
01/10/2021,RUNNYMEDE CARE OP,Delor Care,Home Base Care,513.94,Residential - OP
01/10/2021,LD-AUT CNTR TM CARE,Dimensions Personalised Support,Other Community Care,1142.4,Residential - OP
01/10/2021,LD-AUT CNTR TM CARE,Dimensions Personalised Support,Other Community Care,367.2,Residential - OP
01/10/2021,SPELTHORNE CARE OP,Dimensions Personalised Support,Other Community Care,448.8,Residential - OP
01/10/2021,LD-AUT CNTR TM CARE,Dimensions Personalised Support,Other Community Care,897.6,Residential - OP
01/10/2021,EIF 3 & 4 YR OLD,Disability Challengers Ltd,Third Party Payments-Other Agencies,2000,Grants-Member Allocs
01/10/2021,LD-AUT CNTR TM CARE,Elmbridge Borough Council,Day Care,600,Local Government
01/10/2021,LD-AUT CNTR TM CARE,Elmbridge Borough Council,Day Care,850,Local Government
01/10/2021,LD-AUT CNTR TM CARE,Elmbridge Borough Council,Day Care,850,Local Government
01/10/2021,LD-AUT CNTR TM CARE,Elmbridge Borough Council,Day Care,400,Local Government
01/10/2021,LD-AUT CNTR TM CARE,Elmbridge Borough Council,Day Care,350,Local Government
01/10/2021,LD-AUT CNTR TM CARE,Elmbridge Borough Council,Day Care,650,Local Government
01/10/2021,LD-AUT CNTR TM CARE,Elmbridge Borough Council,Day Care,650,Local Government
01/10/2021,LD-AUT CNTR TM CARE,Elmbridge Borough Council,Day Care,1050,Local Government
01/10/2021,LD-AUT CNTR TM CARE,Elmbridge Borough Council,Day Care Cases,1260,Local Government
01/10/2021,NULL,Elmbridge Borough Council,NULL,295.16,Local Government
01/10/2021,FLT 1A LIB STONELEGH,Epsom & Ewell Borough Council,Rates,363,Grants-Member Allocs
01/10/2021,FEASIBILITY FUNDING,Essentia Trading Ltd,Fees,6189.6,Appl Serv Provision
01/10/2021,LEGAL EXPS CH AD ED,European Administration Ltd,Legal Expenses,500,Cleaning Chemicals
01/10/2021,EPSOM & EWELL CARE O,Exodus Health Care Services,Home Base Care,1565.54,Dom Care - Adults
01/10/2021,ELMBRIDGE CARE PD,Exodus Health Care Services,Home Base Care,1949.22,Dom Care - Adults
01/10/2021,ELMBRIDGE CARE OP,Expert Care UK Services Ltd,Home Base Care,1732.79,Residential - OP
01/10/2021,ELMBRIDGE CARE OP,Expert Care UK Services Ltd,Home Base Care,652.8,Residential - OP
01/10/2021,ELMBRIDGE CARE OP,Expert Care UK Services Ltd,Home Base Care,285.6,Residential - OP
01/10/2021,ELMBRIDGE CARE OP,Expert Care UK Services Ltd,Home Base Care,824.16,Residential - OP
01/10/2021,ELMBRIDGE CARE OP,Expert Care UK Services Ltd,Home Base Care,1732.79,Residential - OP
01/10/2021,LD-AUT CNTR TM CARE,FitzRoy,Day Care,553.72,Residential - MH
01/10/2021,EIF 3 & 4 YR OLD,Foundations Community Pre-School,Third Party Payments-Other Agencies,1000,Nursery
01/10/2021,EIF 3 & 4 YR OLD,Foundations Community Pre-School,Third Party Payments-Other Agencies,1660,Nursery
01/10/2021,EIF 3 & 4 YR OLD,Foundations Community Pre-School,Third Party Payments-Other Agencies,2000,Nursery
01/10/2021,EIF 2 YR OLD,Foundations Community Pre-School,Third Party Payments-Other Agencies,600,Nursery
01/10/2021,LEGAL EXPS CH AD ED,Garden Court Barristers,Legal Expenses,630,Insuff In-House
01/10/2021,ARBORICULTURE,Glendale Countryside Ltd,Upkeep of Grounds,9432.77,Green Works
01/10/2021,NULL,Godstone Village School,NULL,13726,Schools
01/10/2021,NULL,Godstone Village School,NULL,9521.1,Schools
01/10/2021,NULL,Godstone Village School,NULL,13876,Schools
01/10/2021,RUNNYMEDE CARE OP,Golden Home Care Domiciliary Ltd,Home Base Care,1643.7,Dom Care - Adults
01/10/2021,RUNNYMEDE CARE OP,Golden Home Care Domiciliary Ltd,Home Base Care,1804.74,Dom Care - Adults
01/10/2021,ELMBRIDGE CARE OP,Golden Home Care Domiciliary Ltd,Home Base Care,562.8,Dom Care - Adults
01/10/2021,ELMBRIDGE CARE OP,Golden Home Care Domiciliary Ltd,Home Base Care,276.32,Dom Care - Adults
01/10/2021,RUNNYMEDE CARE OP,Golden Home Care Domiciliary Ltd,Home Base Care,635.04,Dom Care - Adults
01/10/2021,SPELTHORNE CARE OP,Goodluck Care Ltd,Home Base Care,375.34,Dom Care - Adults
01/10/2021,RUNNYMEDE CARE OP,Goodluck Care Ltd,Home Base Care,635.04,Dom Care - Adults
01/10/2021,SPELTHORNE CARE OP,Goodluck Care Ltd,Home Base Care,346.36,Dom Care - Adults
01/10/2021,ELMBRIDGE CARE OP,Goodluck Care Ltd,Home Base Care,1856.16,Dom Care - Adults
01/10/2021,SURREY HEATH CARE OP,Goodluck Care Ltd,Home Base Care,5396.16,Dom Care - Adults
01/10/2021,ELMBRIDGE CARE OP,Goodluck Care Ltd,Home Base Care,346.5,Dom Care - Adults
01/10/2021,RUNNYMEDE CARE OP,Goodluck Care Ltd,Home Base Care,1075.2,Dom Care - Adults
01/10/2021,SPELTHORNE CARE OP,Goodluck Care Ltd,Home Base Care,1045.66,Dom Care - Adults
01/10/2021,SPELTHORNE CARE OP,Goodluck Care Ltd,Home Base Care,1274.88,Dom Care - Adults
01/10/2021,RUNNYMEDE CARE OP,Goodluck Care Ltd,Home Base Care,5544,Dom Care - Adults
01/10/2021,LD-AUT CNTR TM CARE,Goodluck Care Ltd,Home Base Care,594,Dom Care - Adults
01/10/2021,WAVERLEY CARE OP,Green Arrow Homecare,Home Base Care,956,Residential - OP
01/10/2021,WAVERLEY CARE OP,Green Arrow Homecare,Home Base Care,740,Residential - OP
01/10/2021,MOLE VALL CMHRS CARE,Greenway Homecare,Home Base Care,614.7,Residential - LD
01/10/2021,MOLE VALLEY CARE OP,Greenway Homecare,Home Base Care,611.6,Residential - LD
01/10/2021,8 GOSDEN COMMON,Guildford Borough Council - Council,Rates,253,Local Government
01/10/2021,HOWFLD PIRBRIGHT LCK,Guildford Borough Council - Council,Rates,332,Local Government
01/10/2021,FEASIBILITY FUNDING,Hankinson Duckett Associates,Fees,2593.8,M-D (Property)
01/10/2021,NULL,Harrow Green Ltd,NULL,2160,Premise Removal Serv
01/10/2021,NULL,Hawkedale Infants School,NULL,15819.4,Schools
01/10/2021,NULL,Hawkedale Infants School,NULL,37140,Schools
01/10/2021,NULL,Hawkedale Infants School,NULL,21786,Schools
01/10/2021,LD-AUT CNTR TM CARE,Hfh Healthcare,Home Base Care,9741.06,Dom Care - Adults
01/10/2021,LD-AUT CNTR TM CARE,Hfh Healthcare,Home Base Care,10160.64,Dom Care - Adults
01/10/2021,NULL,Holy Trinity COE (A) Junior School,NULL,46938,Schools
01/10/2021,WOKING CARE OP,Home Instead Senior Care,Home Base Care,1386.2,Dom Care - Adults
01/10/2021,FAIRMOUNT HOUSE,Hunter Communication Services South,Security Alarm Maintenance,1500.3,Access Control Serv
01/10/2021,NULL,Kings International College,NULL,13340,Grants-Member Allocs
01/10/2021,NULL,Kings International College,NULL,136350,Grants-Member Allocs
01/10/2021,NULL,Leatherhead Trinity School & Childr,NULL,12503.6,Health Visiting
01/10/2021,NULL,Leatherhead Trinity School & Childr,NULL,18414,Health Visiting
01/10/2021,NULL,Leatherhead Trinity School & Childr,NULL,62727,Health Visiting
01/10/2021,LD-AUT CNTR TM CARE,Linden House,Day Care,788.96,Day Care - PSD
01/10/2021,LD-AUT CNTR TM CARE,Linden House,Day Care,690.34,Day Care - PSD
01/10/2021,EIF 3 & 4 YR OLD,Little Stars Pre School Emmanuel Ch,Third Party Payments-Other Agencies,1000,Schools
01/10/2021,WAVERLEY CARE OP,London Care Ltd,Home Base Care,426.79,Residential - PSD
01/10/2021,TANDRIDGE CARE OP,Loving Care Domiciliary Services Lt,Home Base Care,277.02,Dom Care - Adults
01/10/2021,TANDRIDGE CARE OP,Loving Care Domiciliary Services Lt,Home Base Care,1860.04,Dom Care - Adults
01/10/2021,TANDRIDGE CARE OP,Loving Care Domiciliary Services Lt,Home Base Care,632.38,Dom Care - Adults
01/10/2021,TANDRIDGE CARE OP,Loving Care Domiciliary Services Lt,Home Base Care,890.78,Dom Care - Adults
01/10/2021,TANDRIDGE CARE OP,Loving Care Domiciliary Services Lt,Home Base Care,413.84,Dom Care - Adults
01/10/2021,TANDRIDGE CARE OP,Loving Care Domiciliary Services Lt,Home Base Care,506.8,Dom Care - Adults
01/10/2021,TANDRIDGE CARE OP,Loving Care Domiciliary Services Lt,Home Base Care,767.2,Dom Care - Adults
01/10/2021,TANDRIDGE CARE OP,Loving Care Domiciliary Services Lt,Home Base Care,706.72,Dom Care - Adults
01/10/2021,TANDRIDGE CARE OP,Loving Care Domiciliary Services Lt,Home Base Care,632.38,Dom Care - Adults
01/10/2021,TANDRIDGE CARE OP,Loving Care Domiciliary Services Lt,Home Base Care,413.84,Dom Care - Adults
01/10/2021,TANDRIDGE CARE OP,Loving Care Domiciliary Services Lt,Home Base Care,692.86,Dom Care - Adults
01/10/2021,TANDRIDGE CARE OP,Loving Care Domiciliary Services Lt,Home Base Care,715.36,Dom Care - Adults
01/10/2021,TANDRIDGE CARE OP,Loving Care Domiciliary Services Lt,Home Base Care,419.82,Dom Care - Adults
01/10/2021,TANDRIDGE CARE PD,Loving Care Domiciliary Services Lt,Home Base Care,493.56,Dom Care - Adults
01/10/2021,LD-AUT CNTR TM CARE,Luv To Care Ltd,Home Base Care,376.88,Staff Benefits
01/10/2021,GUILDFORD CARE OP,Luv To Care Ltd,Home Base Care,548.66,Staff Benefits
01/10/2021,GUILDFORD CARE OP,Luv To Care Ltd,Home Base Care,798.42,Staff Benefits
01/10/2021,GUILDFORD CARE OP,Luv To Care Ltd,Home Base Care,555.04,Staff Benefits
01/10/2021,LD-AUT CNTR TM CARE,Luv To Care Ltd,Home Base Care,376.88,Staff Benefits
01/10/2021,GUILDFORD CARE OP,Luv To Care Ltd,Home Base Care,1700.02,Staff Benefits
01/10/2021,GUILDFORD CARE OP,Luv To Care Ltd,Home Base Care,548.66,Staff Benefits
01/10/2021,EIF 3 & 4 YR OLD,Lyne & Longcross Nursery,Third Party Payments-Other Agencies,2345,Nurseries
01/10/2021,SURREY HEATH CARE OP,Melody Care,Home Base Care,1643.04,Dom Care - Adults
01/10/2021,WAVERLEY CARE OP,Melody Care,Home Base Care,821.52,Dom Care - Adults
01/10/2021,GUILDFORD CARE OP,Melody Care,Home Base Care,791.04,Dom Care - Adults
01/10/2021,SURREY HEATH CARE OP,Melody Care,Home Base Care,326.46,Dom Care - Adults
01/10/2021,GUILDFORD CARE OP,Melody Care,Home Base Care,794.76,Dom Care - Adults
01/10/2021,SURREY HEATH CARE OP,Melody Care,Home Base Care,615.66,Dom Care - Adults
01/10/2021,GUILDFORD CARE OP,Melody Care,Home Base Care,446.88,Dom Care - Adults
01/10/2021,GUILDFORD CARE OP,Melody Care,Home Base Care,749.28,Dom Care - Adults
01/10/2021,WAVERLEY CARE OP,Melody Care,Home Base Care,821.52,Dom Care - Adults
01/10/2021,GUILDFORD CARE OP,Melody Care,Home Base Care,634.2,Dom Care - Adults
01/10/2021,GUILDFORD CARE OP,Melody Care,Home Base Care,980.28,Dom Care - Adults
01/10/2021,WAVERLEY CARE OP,Melody Care,Home Base Care,634.2,Dom Care - Adults
01/10/2021,WAVERLEY CARE OP,Melody Care,Home Base Care,2233.98,Dom Care - Adults
01/10/2021,WAVERLEY CARE OP,Melody Care,Home Base Care,519.12,Dom Care - Adults
01/10/2021,WAVERLEY CARE OP,Melody Care,Home Base Care,490.14,Dom Care - Adults
01/10/2021,GUILDFORD CARE OP,Melody Care,Home Base Care,1157.34,Dom Care - Adults
01/10/2021,SURREY HEATH CARE OP,Melody Care,Home Base Care,510.66,Dom Care - Adults
01/10/2021,GUILDFORD CARE OP,Melody Care,Home Base Care,749.7,Dom Care - Adults
01/10/2021,WAVERLEY CARE OP,Melody Care,Home Base Care,1643.04,Dom Care - Adults
01/10/2021,GUILDFORD CARE OP,Melody Care,Home Base Care,334.5,Dom Care - Adults
01/10/2021,GUILDFORD CARE OP,Melody Care,Home Base Care,864.78,Dom Care - Adults
01/10/2021,WAVERLEY CARE OP,Melody Care,Home Base Care,259.56,Dom Care - Adults
01/10/2021,WAVERLEY CARE OP,Melody Care,Home Base Care,561.96,Dom Care - Adults
01/10/2021,SURREY HEATH CARE OP,Melody Care,Home Base Care,821.52,Dom Care - Adults
01/10/2021,GUILDFORD CARE OP,Melody Care,Home Base Care,1643.04,Dom Care - Adults
01/10/2021,GUILDFORD CARE OP,Melody Care,Home Base Care,575.52,Dom Care - Adults
01/10/2021,WAVERLEY CARE OP,Melody Care,Home Base Care,634.2,Dom Care - Adults
01/10/2021,GUILDFORD CARE OP,Melody Care,Home Base Care,749.28,Dom Care - Adults
01/10/2021,SURREY HEATH CARE OP,Melody Care,Home Base Care,374.64,Dom Care - Adults
01/10/2021,WAVERLEY CARE OP,Melody Care,Home Base Care,490.14,Dom Care - Adults
01/10/2021,WAVERLEY CARE OP,Melody Care,Home Base Care,1005,Dom Care - Adults
01/10/2021,GUILDFORD CARE OP,Melody Care,Home Base Care,1643.04,Dom Care - Adults
01/10/2021,GUILDFORD CARE OP,Melody Care,Home Base Care,605.52,Dom Care - Adults
01/10/2021,WAVERLEY CARE OP,Melody Care,Home Base Care,490.14,Dom Care - Adults
01/10/2021,GUILDFORD CARE OP,Melody Care,Home Base Care,446.88,Dom Care - Adults
01/10/2021,GUILDFORD CARE OP,Melody Care,Home Base Care,864.78,Dom Care - Adults
01/10/2021,WAVERLEY CARE OP,Melody Care,Home Base Care,1775.76,Dom Care - Adults
01/10/2021,GUILDFORD CARE PD,Melody Care,Home Base Care,259.56,Dom Care - Adults
01/10/2021,SURREY HEATH CARE OP,Melody Care,Home Base Care,634.2,Dom Care - Adults
01/10/2021,SURREY HEATH CARE OP,Melody Care,Home Base Care,1358.16,Dom Care - Adults
01/10/2021,GUILDFORD CARE OP,Melody Care,Home Base Care,1354.92,Dom Care - Adults
01/10/2021,WAVERLEY CARE OP,Melody Care,Home Base Care,337.62,Dom Care - Adults
01/10/2021,GUILDFORD CARE OP,Melody Care,Home Base Care,833.88,Dom Care - Adults
01/10/2021,SURREY HEATH CARE OP,Melody Care,Home Base Care,347.88,Dom Care - Adults
01/10/2021,WAVERLEY CARE PD,Melody Care,Home Base Care,374.64,Dom Care - Adults
01/10/2021,GUILDFORD CARE OP,Melody Care,Home Base Care,1667.76,Dom Care - Adults
01/10/2021,EIF 3 & 4 YR OLD,Merry Go Round Playgroup,Third Party Payments-Other Agencies,2000,School Support Serv
01/10/2021,ELM FARM GRT,Millane Contract Services Ltd,Corporate Responsive Maintenance,917.4,General Build Maint
01/10/2021,ELM FARM GRT,Millane Contract Services Ltd,Corporate Responsive Maintenance,341.93,General Build Maint
01/10/2021,THE WILLOWS GRT,Millane Contract Services Ltd,Corporate Responsive Maintenance,390.12,General Build Maint
01/10/2021,PERM SURP LAND,Mole Valley District Council - Tax,Rates,495,Local Government
01/10/2021,UNIFIED ACADEMY,Mole Valley District Council - Tax,Rates,315,Local Government
01/10/2021,SUNYRIDGE KNLL FM LA,Mole Valley District Council - Tax,Rates,693,Local Government
01/10/2021,STARHURST SCHOOL,Mole Valley District Council - Tax,Rates,495,Local Government
01/10/2021,SPELTHORNE CARE OP,MoreCare Services,Home Base Care,528,Dom Care - Adults
01/10/2021,RUNNYMEDE CMHRS CARE,MoreCare Services,Home Base Care,462,Dom Care - Adults
01/10/2021,SPELTHORNE CARE OP,MoreCare Services,Home Base Care,461.96,Dom Care - Adults
01/10/2021,SPELTHORNE CARE OP,MoreCare Services,Home Base Care,808.36,Dom Care - Adults
01/10/2021,LD-AUT CNTR TM CARE,MoreCare Services,Home Base Care,330,Dom Care - Adults
01/10/2021,SPELTHORNE CARE OP,MoreCare Services,Home Base Care,1270.36,Dom Care - Adults
01/10/2021,SPELTHORNE CARE OP,MoreCare Services,Home Base Care,1039.36,Dom Care - Adults
01/10/2021,SPELTHORNE CARE OP,MoreCare Services,Home Base Care,1039.36,Dom Care - Adults
01/10/2021,SPELTHORNE CARE OP,MoreCare Services,Home Base Care,1270.36,Dom Care - Adults
01/10/2021,SPELTHORNE CARE OP,MoreCare Services,Home Base Care,1039.36,Dom Care - Adults
01/10/2021,SPELTHORNE CARE OP,MoreCare Services,Home Base Care,1039.36,Dom Care - Adults
01/10/2021,RUNNYMEDE CARE OP,MoreCare Services,Home Base Care,1715.86,Dom Care - Adults
01/10/2021,LD-AUT CNTR TM CARE,MoreCare Services,Home Base Care,1353,Dom Care - Adults
01/10/2021,SPELTHORNE CARE OP,MoreCare Services,Home Base Care,1155,Dom Care - Adults
01/10/2021,ELMBRIDGE CARE OP,MoreCare Services,Home Base Care,1732.5,Dom Care - Adults
01/10/2021,SPELTHORNE CARE OP,MoreCare Services,Home Base Care,519.68,Dom Care - Adults
01/10/2021,SPELTHORNE CARE OP,MoreCare Services,Home Base Care,1039.36,Dom Care - Adults
01/10/2021,PLD TRANSITION,National Autistic Society Services,Day Care,612.19,Residential - MH
01/10/2021,PLD TRANSITION,National Autistic Society Services,Day Care,612.19,Residential - MH
01/10/2021,PLD TRANSITION,National Autistic Society Services,Day Care,612.19,Residential - MH
01/10/2021,PLD TRANSITION,National Autistic Society Services,Day Care,612.19,Residential - MH
01/10/2021,PLD TRANSITION,National Autistic Society Services,Day Care,612.19,Residential - MH
01/10/2021,NEW HAW LIB,New Haw Library Community Partnersh,Rates,300,Grants-Member Allocs
01/10/2021,PLD TRANSITION,NHS Frimley CCG,Supported Living,1854.72,NT- Partner Org
01/10/2021,MINDENHURST PRI SCH,Nviro Ltd,Cleaning and Domestic Supplies,299.52,Building Cleaning
01/10/2021,L&P COV DTH MGT CELL,Nviro Ltd,Cleaning and Domestic Supplies,890.82,Building Cleaning
01/10/2021,THE MANSION L'HEAD,Nviro Ltd,Cleaning and Domestic Supplies,3273.14,Building Cleaning
01/10/2021,ACL CENTRAL EXP,Nviro Ltd,Cleaning and Domestic Supplies,3120,Building Cleaning
01/10/2021,WOKING LIB,Nviro Ltd,Cleaning and Domestic Supplies,6006.6,Building Cleaning
01/10/2021,LEATHERHEAD FIRE STN,Nviro Ltd,Cleaning and Domestic Supplies,926.74,Building Cleaning
01/10/2021,ST PETERS/WOKING DRC,Nviro Ltd,Cleaning and Domestic Supplies,1068.2,Building Cleaning
01/10/2021,KNAPHILL LIBRARY-NEW,Nviro Ltd,Cleaning and Domestic Supplies,728.84,Building Cleaning
01/10/2021,SW SURREY FANILY CTR,Nviro Ltd,Cleaning and Domestic Supplies,1853.47,Building Cleaning
01/10/2021,ASHFORD YOUTH CENTRE,Nviro Ltd,Cleaning and Domestic Supplies,796.24,Building Cleaning
01/10/2021,EGHAM LIB,Nviro Ltd,Cleaning and Domestic Supplies,1200.92,Building Cleaning
01/10/2021,WEST BYFLEET LIB,Nviro Ltd,Cleaning and Domestic Supplies,655.2,Building Cleaning
01/10/2021,OFFICE NOKE RD R'HIL,Nviro Ltd,Cleaning and Domestic Supplies,959.23,Building Cleaning
01/10/2021,WALTON YOUTH CENTRE,Nviro Ltd,Cleaning and Domestic Supplies,1263.23,Building Cleaning
01/10/2021,WALTON-ON-T LIB(NEW),Nviro Ltd,Cleaning and Domestic Supplies,2281.1,Building Cleaning
01/10/2021,QUADRANT CT WOKING,Nviro Ltd,Cleaning and Domestic Supplies,12115.8,Building Cleaning
01/10/2021,SALFORDS FIRE STATIO,Nviro Ltd,Cleaning and Domestic Supplies,1853.12,Building Cleaning
01/10/2021,RYLSTON WEYBRIDGE,Nviro Ltd,Cleaning and Domestic Supplies,1657.74,Building Cleaning
01/10/2021,HERSHAM LIB,Nviro Ltd,Cleaning and Domestic Supplies,643.66,Building Cleaning
01/10/2021,SHAW FC,Nviro Ltd,Cleaning and Domestic Supplies,1104.3,Building Cleaning
01/10/2021,HASLEMERE LIB,Nviro Ltd,Cleaning and Domestic Supplies,800.14,Building Cleaning
01/10/2021,REDHILL LIB (NEW),Nviro Ltd,Cleaning and Domestic Supplies,2826.32,Building Cleaning
01/10/2021,STAINES YTH SPTS CTR,Nviro Ltd,Cleaning and Domestic Supplies,1682.05,Building Cleaning
01/10/2021,GODSTONE FIRE STN,Nviro Ltd,Cleaning and Domestic Supplies,714.52,Building Cleaning
01/10/2021,EDGE YC WEST EWELL,Nviro Ltd,Cleaning and Domestic Supplies,1043.39,Building Cleaning
01/10/2021,OXTED FIRE STATION,Nviro Ltd,Cleaning and Domestic Supplies,504.82,Building Cleaning
01/10/2021,LIGHTWATER LIB,Nviro Ltd,Cleaning and Domestic Supplies,666.84,Building Cleaning
01/10/2021,SUNBURY-ON-T LIB,Nviro Ltd,Cleaning and Domestic Supplies,1043.39,Building Cleaning
01/10/2021,FARNHAM LIB,Nviro Ltd,Cleaning and Domestic Supplies,2161.81,Building Cleaning
01/10/2021,WOKING ARTS YTH CTR,Nviro Ltd,Cleaning and Domestic Supplies,1306.14,Building Cleaning
01/10/2021,FARNHAM FIRE STATION,Nviro Ltd,Cleaning and Domestic Supplies,938.75,Building Cleaning
01/10/2021,ESHER LIB,Nviro Ltd,Cleaning and Domestic Supplies,1055.12,Building Cleaning
01/10/2021,ASHLEY PARK HOUSE,Nviro Ltd,Cleaning and Domestic Supplies,1289.16,Building Cleaning
01/10/2021,EPSOM FIRE STATION,Nviro Ltd,Cleaning and Domestic Supplies,1295.2,Building Cleaning
01/10/2021,HORSLEY LIB,Nviro Ltd,Cleaning and Domestic Supplies,655.2,Building Cleaning
01/10/2021,HORLEY YOUTH CENTRE,Nviro Ltd,Cleaning and Domestic Supplies,734.7,Building Cleaning
01/10/2021,WOODHATCH,Nviro Ltd,Cleaning and Domestic Supplies,31036.38,Building Cleaning
01/10/2021,ASH SSC ASH LIBRARY,Nviro Ltd,Cleaning and Domestic Supplies,655.2,Building Cleaning
01/10/2021,SHEPPERTON YOUTH CTR,Nviro Ltd,Cleaning and Domestic Supplies,1059.04,Building Cleaning
01/10/2021,DORKING LIB (NEW),Nviro Ltd,Cleaning and Domestic Supplies,1882.36,Building Cleaning
01/10/2021,ADDLESTONE YOUTH CTR,Nviro Ltd,Cleaning and Domestic Supplies,683.94,Building Cleaning
01/10/2021,DITTONS LIB,Nviro Ltd,Cleaning and Domestic Supplies,1043.39,Building Cleaning
01/10/2021,CATERHAM YOUTH CTRE,Nviro Ltd,Cleaning and Domestic Supplies,753.61,Building Cleaning
01/10/2021,RYLSTON WEYBRIDGE,Nviro Ltd,Cleaning and Domestic Supplies,512.95,Building Cleaning
01/10/2021,CRANSTOCK,Nviro Ltd,Cleaning and Domestic Supplies,1669.98,Building Cleaning
01/10/2021,CRANLEIGH LIB,Nviro Ltd,Cleaning and Domestic Supplies,655.2,Building Cleaning
01/10/2021,FAIRMOUNT HOUSE,Nviro Ltd,Cleaning and Domestic Supplies,5192.24,Building Cleaning
01/10/2021,RUTH HOUSE MAYFORD,Nviro Ltd,Cleaning and Domestic Supplies,3765.48,Building Cleaning
01/10/2021,HENLEY FORT OEC,Nviro Ltd,Cleaning and Domestic Supplies,4616.38,Building Cleaning
01/10/2021,CHALKMEAD RES,Nviro Ltd,E25 Catering Equipment,1051.38,Building Cleaning
01/10/2021,BANSTEAD FIRE STN,Nviro Ltd,Cleaning and Domestic Supplies,576.04,Building Cleaning
01/10/2021,BAGSHOT LIB,Nviro Ltd,Cleaning and Domestic Supplies,771.95,Building Cleaning
01/10/2021,DRILL HALL DORKING,Nviro Ltd,Cleaning and Domestic Supplies,1802.83,Building Cleaning
01/10/2021,STONELEIGH LIB,Nviro Ltd,Cleaning and Domestic Supplies,655.2,Building Cleaning
01/10/2021,STANWELL YOUTH CTRE,Nviro Ltd,Cleaning and Domestic Supplies,796.24,Building Cleaning
01/10/2021,STAINES LIB,Nviro Ltd,Cleaning and Domestic Supplies,2554.19,Building Cleaning
01/10/2021,JOSEPH PALMER,Nviro Ltd,Cleaning and Domestic Supplies,1266.18,Building Cleaning
01/10/2021,ASHFORD LIB,Nviro Ltd,Cleaning and Domestic Supplies,1309.97,Building Cleaning
01/10/2021,EGHAM YOUTH CENTRE,Nviro Ltd,Cleaning and Domestic Supplies,1043.39,Building Cleaning
01/10/2021,WARLINGHAM LIB,Nviro Ltd,Cleaning and Domestic Supplies,533.66,Building Cleaning
01/10/2021,SHEPPERTON LIB,Nviro Ltd,Cleaning and Domestic Supplies,655.2,Building Cleaning
01/10/2021,WALTON FIRE STATION,Nviro Ltd,Cleaning and Domestic Supplies,1139.21,Building Cleaning
01/10/2021,SHEERWATER YOUTH CTR,Nviro Ltd,Cleaning and Domestic Supplies,736.64,Building Cleaning
01/10/2021,VIRGINIA WATER LIB,Nviro Ltd,Cleaning and Domestic Supplies,643.66,Building Cleaning
01/10/2021,OFFICE TRUMPS FARM,Nviro Ltd,Cleaning and Domestic Supplies,758.17,Building Cleaning
01/10/2021,CONSORT HOUSE,Nviro Ltd,Cleaning and Domestic Supplies,6784.94,Building Cleaning
01/10/2021,RENTWOOD,Nviro Ltd,Cleaning and Domestic Supplies,1230.6,Building Cleaning
01/10/2021,COBHAM LIB HLDG A/C,Nviro Ltd,Cleaning and Domestic Supplies,535.36,Building Cleaning
01/10/2021,HARRY'S OXTED,Nviro Ltd,Cleaning and Domestic Supplies,643.66,Building Cleaning
01/10/2021,MALTHOUSE YC D'KING,Nviro Ltd,Cleaning and Domestic Supplies,1290.56,Building Cleaning
01/10/2021,GUILDFORD LIB,Nviro Ltd,Cleaning and Domestic Supplies,3803.53,Building Cleaning
01/10/2021,LARCHES EPSOM,Nviro Ltd,Cleaning and Domestic Supplies,898.76,Building Cleaning
01/10/2021,PRIMARY DATA CENTRE,Nviro Ltd,Cleaning and Domestic Supplies,640.92,Building Cleaning
01/10/2021,CATERHAM VALLEY LBRY,Nviro Ltd,Cleaning and Domestic Supplies,1372.64,Building Cleaning
01/10/2021,GODALMING SSC,Nviro Ltd,Cleaning and Domestic Supplies,2258.89,Building Cleaning
01/10/2021,EBBISHAM - EPSOM LIB,Nviro Ltd,Cleaning and Domestic Supplies,2048.58,Building Cleaning
01/10/2021,ASHFORD FC,Nviro Ltd,Cleaning and Domestic Supplies,1217.63,Building Cleaning
01/10/2021,NEXUS DAY CENTRE,Nviro Ltd,Cleaning and Domestic Supplies,640.92,Building Cleaning
01/10/2021,NEW HAW LIB,Nviro Ltd,Cleaning and Domestic Supplies,1284.86,Building Cleaning
01/10/2021,THAMES YG MARINERS,Nviro Ltd,Cleaning and Domestic Supplies,2149.68,Building Cleaning
01/10/2021,TATTENHAM LIB,Nviro Ltd,Cleaning and Domestic Supplies,760.21,Building Cleaning
01/10/2021,MOLESEY LIB,Nviro Ltd,Cleaning and Domestic Supplies,655.2,Building Cleaning
01/10/2021,BOOKHAM LIB (NEW),Nviro Ltd,Cleaning and Domestic Supplies,655.2,Building Cleaning
01/10/2021,FMR BOOKHAM YC,Nviro Ltd,Cleaning and Domestic Supplies,583.93,Building Cleaning
01/10/2021,CAMBERLEY LIB,Nviro Ltd,Cleaning and Domestic Supplies,1744.75,Building Cleaning
01/10/2021,FRANCE HILL HOUSE,Nviro Ltd,Cleaning and Domestic Supplies,3702.44,Building Cleaning
01/10/2021,GODALMING FIRE STN,Nviro Ltd,Cleaning and Domestic Supplies,615.54,Building Cleaning
01/10/2021,UNIT 4 LEATHERHEAD,Nviro Ltd,Cleaning and Domestic Supplies,1031.75,Building Cleaning
01/10/2021,BYFLEET LIB,Nviro Ltd,Cleaning and Domestic Supplies,760.21,Building Cleaning
01/10/2021,BRAMLEY LIB,Nviro Ltd,Cleaning and Domestic Supplies,552.73,Building Cleaning
01/10/2021,FRIMLEY GREEN YC,Nviro Ltd,Cleaning and Domestic Supplies,1200.92,Building Cleaning
01/10/2021,OLD DEAN YC CAMBERLE,Nviro Ltd,Cleaning and Domestic Supplies,964.86,Building Cleaning
01/10/2021,FRIMLEY GRN LIB,Nviro Ltd,Cleaning and Domestic Supplies,609.94,Building Cleaning
01/10/2021,FORDBRIDGE FIRE STN,Nviro Ltd,Cleaning and Domestic Supplies,1918.85,Building Cleaning
01/10/2021,BANSTEAD YOUTH CTR,Nviro Ltd,Cleaning and Domestic Supplies,857.42,Building Cleaning
01/10/2021,BANSTEAD LIB,Nviro Ltd,Cleaning and Domestic Supplies,1309.97,Building Cleaning
01/10/2021,LOCKWOOD,Nviro Ltd,Cleaning and Domestic Supplies,3451.27,Building Cleaning
01/10/2021,14 THE PINES,Nviro Ltd,Cleaning and Domestic Supplies,1619.29,Building Cleaning
01/10/2021,HASLEMERE FIRE STN,Nviro Ltd,Cleaning and Domestic Supplies,603.8,Building Cleaning
01/10/2021,MERSTHAM HUB,Nviro Ltd,Cleaning and Domestic Supplies,262.13,Building Cleaning
01/10/2021,CLAYGATE YOUTH CLUB,Nviro Ltd,Cleaning and Domestic Supplies,788.62,Building Cleaning
01/10/2021,REDHILL FAMILY CTR,Nviro Ltd,Cleaning and Domestic Supplies,1299.71,Building Cleaning
01/10/2021,GUILDFORD FIRE STN,Nviro Ltd,Cleaning and Domestic Supplies,983.12,Building Cleaning
01/10/2021,GUILDFORD AEI,Nviro Ltd,Cleaning and Domestic Supplies,6635.52,Building Cleaning
01/10/2021,PHOENIX YC TADWORTH,Nviro Ltd,Cleaning and Domestic Supplies,1031.75,Building Cleaning
01/10/2021,FOCUS YOUTH CENTRE,Nviro Ltd,Cleaning and Domestic Supplies,1348.54,Building Cleaning
01/10/2021,PARK HOUSE SHALFORD,Nviro Ltd,Cleaning and Domestic Supplies,1015.76,Building Cleaning
01/10/2021,PAINSHILL FIRE STN,Nviro Ltd,Cleaning and Domestic Supplies,615.54,Building Cleaning
01/10/2021,THE BRIDGE,Nviro Ltd,Cleaning and Domestic Supplies,1175.99,Building Cleaning
01/10/2021,SURREY HISTORY CTR,Nviro Ltd,Cleaning and Domestic Supplies,6055.86,Building Cleaning
01/10/2021,WRAY PARK COMPLEX,Nviro Ltd,Cleaning and Domestic Supplies,9837.4,Building Cleaning
01/10/2021,FERNLEIGH,Nviro Ltd,Cleaning and Domestic Supplies,1627.69,Building Cleaning
01/10/2021,MINDENHURST PRI SCH,Nviro Ltd,Cleaning and Domestic Supplies,374.4,Building Cleaning
01/10/2021,CHALKMEAD RES,Nviro Ltd,E25 Catering Equipment,554.4,Building Cleaning
01/10/2021,WOKING FIRE STN NEW,Nviro Ltd,Cleaning and Domestic Supplies,1283.3,Building Cleaning
01/10/2021,ASHTEAD YOUTH CENTRE,Nviro Ltd,Cleaning and Domestic Supplies,1051.21,Building Cleaning
01/10/2021,ASHTEAD LIB,Nviro Ltd,Cleaning and Domestic Supplies,655.2,Building Cleaning
01/10/2021,SUNBURY YOUTH CTR,Nviro Ltd,Cleaning and Domestic Supplies,705.54,Building Cleaning
01/10/2021,CATERHAM LIB,Nviro Ltd,Cleaning and Domestic Supplies,667.55,Building Cleaning
01/10/2021,WOKING CORONERS CT,Nviro Ltd,Cleaning and Domestic Supplies,3231.55,Building Cleaning
01/10/2021,ESHER FIRE STATION,Nviro Ltd,Cleaning and Domestic Supplies,726.38,Building Cleaning
01/10/2021,HIGHLANDS CTR BONSEY,Nviro Ltd,Cleaning and Domestic Supplies,3007.08,Building Cleaning
01/10/2021,PUBLIC LIB OFFS WEYB,Nviro Ltd,Cleaning and Domestic Supplies,2474.42,Building Cleaning
01/10/2021,ST FAITHS FC,Nviro Ltd,Cleaning and Domestic Supplies,2675.95,Building Cleaning
01/10/2021,ASH YOUTH CENTRE,Nviro Ltd,Cleaning and Domestic Supplies,1263.23,Building Cleaning
01/10/2021,EGHAM FIRE STATION,Nviro Ltd,Cleaning and Domestic Supplies,714.52,Building Cleaning
01/10/2021,HORLEY LIBRARY,Nviro Ltd,Cleaning and Domestic Supplies,1190.6,Building Cleaning
01/10/2021,ARTINGTON HOUSE,Nviro Ltd,Cleaning and Domestic Supplies,1514.96,Building Cleaning
01/10/2021,HIGH ASHURST OEC,Nviro Ltd,Cleaning and Domestic Supplies,3153.68,Building Cleaning
01/10/2021,DORKING FIRE STATION,Nviro Ltd,Cleaning and Domestic Supplies,714.52,Building Cleaning
01/10/2021,DISCOVERY CTR GFORD,Nviro Ltd,Cleaning and Domestic Supplies,586.84,Building Cleaning
01/10/2021,COBGATES,Nviro Ltd,Cleaning and Domestic Supplies,918.77,Building Cleaning
01/10/2021,REIGATE LIB,Nviro Ltd,Cleaning and Domestic Supplies,1309.97,Building Cleaning
01/10/2021,MAYFORD CENTRE-BUS,Nviro Ltd,Cleaning and Domestic Supplies,1212.85,Building Cleaning
01/10/2021,REIGATE FIRE STATION,Nviro Ltd,Cleaning and Domestic Supplies,726.38,Building Cleaning
01/10/2021,SCS AT DANETREE JUN,Nviro Ltd,Cleaning and Domestic Supplies,640.92,Building Cleaning
01/10/2021,CHOBHAM RETAINED STN,Nviro Ltd,Cleaning and Domestic Supplies,500.83,Building Cleaning
01/10/2021,CHERTSEY LIB,Nviro Ltd,Cleaning and Domestic Supplies,1059.04,Building Cleaning
01/10/2021,THE HARBOUR,Nviro Ltd,Cleaning and Domestic Supplies,1278.38,Building Cleaning
01/10/2021,CHERTSEY FIRE STN,Nviro Ltd,Cleaning and Domestic Supplies,702.56,Building Cleaning
01/10/2021,OXTED LIB,Nviro Ltd,Cleaning and Domestic Supplies,1286.64,Building Cleaning
01/10/2021,WEST HOUSE COMPLEX,Nviro Ltd,Cleaning and Domestic Supplies,5024.47,Building Cleaning
01/10/2021,CAMBERLEY FIRE STN,Nviro Ltd,Cleaning and Domestic Supplies,1342.8,Building Cleaning
01/10/2021,LEGAL EXPS CH AD ED,One Garden Court,Legal Expenses,1098,Witness & Prof Exp
01/10/2021,NULL,Park Mead Primary School,NULL,24341.1,Schools
01/10/2021,NULL,Park Mead Primary School,NULL,34624,Schools
01/10/2021,NULL,Park Mead Primary School,NULL,73033,Schools
01/10/2021,EIF 3 & 4 YR OLD,Peter Pan Playgroup,Third Party Payments-Other Agencies,500,Nurseries
01/10/2021,NULL,Pewley Down Infant School,NULL,28009.5,Schools
01/10/2021,NULL,Pewley Down Infant School,NULL,40848,Schools
01/10/2021,SPELTHORNE CARE OP,Pinnacle Brit,Home Base Care,409.08,Dom Care - Adults
01/10/2021,RUNNYMEDE CARE OP,Pinnacle Brit,Home Base Care,409.08,Dom Care - Adults
01/10/2021,SPELTHORNE CARE OP,Pinnacle Brit,Home Base Care,618.04,Dom Care - Adults
01/10/2021,RUNNYMEDE CARE OP,Pinnacle Brit,Home Base Care,584.78,Dom Care - Adults
01/10/2021,SURREY HEATH CARE OP,Pinnacle Brit,Home Base Care,1050.42,Dom Care - Adults
01/10/2021,WOKING CARE PD,Pinnacle Brit,Home Base Care,1169.56,Dom Care - Adults
01/10/2021,WOKING CARE OP,Pinnacle Brit,Home Base Care,1168.44,Dom Care - Adults
01/10/2021,WOKING CARE OP,Pinnacle Brit,Home Base Care,860.26,Dom Care - Adults
01/10/2021,RUNNYMEDE CARE OP,Pinnacle Brit,Home Base Care,1169.56,Dom Care - Adults
01/10/2021,WOKING CARE OP,Pinnacle Brit,Home Base Care,507.32,Dom Care - Adults
01/10/2021,SPELTHORNE CARE OP,Pinnacle Brit,Home Base Care,584.78,Dom Care - Adults
01/10/2021,WOKING CARE OP,Pinnacle Brit,Home Base Care,1169.56,Dom Care - Adults
01/10/2021,WOKING CARE OP,Pinnacle Brit,Home Base Care,1169.56,Dom Care - Adults
01/10/2021,SURREY HEATH CARE OP,Pinnacle Brit,Home Base Care,1999.2,Dom Care - Adults
01/10/2021,WOKING CARE OP,Pinnacle Brit,Home Base Care,448.42,Dom Care - Adults
01/10/2021,REIGATE & BD CARE PD,Primrose Healthcare Services Ltd,Home Base Care,1775.76,Residential - OP
01/10/2021,REIGATE & BD CARE OP,Primrose Healthcare Services Ltd,Home Base Care,498.12,Residential - OP
01/10/2021,REIGATE & BD CARE OP,Primrose Healthcare Services Ltd,Home Base Care,498.12,Residential - OP
01/10/2021,GUILDFORD CMHRS CARE,Primrose Healthcare Services Ltd,Home Base Care,1414.2,Residential - OP
01/10/2021,GUILDFORD CARE OP,Primrose Healthcare Services Ltd,Home Base Care,1775.48,Residential - OP
01/10/2021,REIGATE & BD CARE OP,Primrose Healthcare Services Ltd,Home Base Care,707.42,Residential - OP
01/10/2021,REIGATE & BD CARE OP,Primrose Healthcare Services Ltd,Home Base Care,664.16,Residential - OP
01/10/2021,REIGATE & BD CARE OP,Primrose Healthcare Services Ltd,Home Base Care,332.08,Residential - OP
01/10/2021,REIGATE & BD CARE PD,Primrose Healthcare Services Ltd,Home Base Care,1563.36,Residential - OP
01/10/2021,MOLE VALLEY CARE OP,Primrose Healthcare Services Ltd,Home Base Care,408.32,Residential - OP
01/10/2021,REIGATE & BD CARE PD,Primrose Healthcare Services Ltd,Home Base Care,733.12,Residential - OP
01/10/2021,MOLE VALLEY CARE OP,Primrose Healthcare Services Ltd,Home Base Care,303.1,Residential - OP
01/10/2021,MOLE VALLEY CARE PD,Primrose Healthcare Services Ltd,Home Base Care,425.88,Residential - OP
01/10/2021,MOLE VALLEY CARE OP,Primrose Healthcare Services Ltd,Home Base Care,996.24,Residential - OP
01/10/2021,MOLE VALLEY CARE PD,Primrose Healthcare Services Ltd,Home Base Care,957.96,Residential - OP
01/10/2021,MOLE VALLEY CARE OP,Primrose Healthcare Services Ltd,Home Base Care,541.38,Residential - OP
01/10/2021,MOLE VALLEY CARE OP,Primrose Healthcare Services Ltd,Home Base Care,1414.84,Residential - OP
01/10/2021,TANDRIDGE CARE OP,Primrose Healthcare Services Ltd,Home Base Care,274.12,Residential - OP
01/10/2021,REIGATE & BD CARE OP,Primrose Healthcare Services Ltd,Home Base Care,830.2,Residential - OP
01/10/2021,REIGATE & BD CARE OP,Primrose Healthcare Services Ltd,Home Base Care,1414.84,Residential - OP
01/10/2021,MOLE VALLEY CARE OP,Primrose Healthcare Services Ltd,Home Base Care,997.24,Residential - OP
01/10/2021,TANDRIDGE CARE OP,Primrose Healthcare Services Ltd,Home Base Care,1732.36,Residential - OP
01/10/2021,REIGATE & BD CARE OP,Primrose Healthcare Services Ltd,Home Base Care,664.16,Residential - OP
01/10/2021,REIGATE & BD CARE OP,Primrose Healthcare Services Ltd,Home Base Care,664.16,Residential - OP
01/10/2021,MOLE VALLEY CARE OP,Primrose Healthcare Services Ltd,Home Base Care,1897.4,Residential - OP
01/10/2021,REIGATE & BD CARE OP,Primrose Healthcare Services Ltd,Home Base Care,556.8,Residential - OP
01/10/2021,MOLE VALLEY CARE OP,Primrose Healthcare Services Ltd,Home Base Care,707.42,Residential - OP
01/10/2021,MOLE VALLEY CARE OP,Primrose Healthcare Services Ltd,Home Base Care,332.08,Residential - OP
01/10/2021,EIF 3 & 4 YR OLD,Rainbow Nursery,Third Party Payments-Other Agencies,2069,Nursery
01/10/2021,EIF 3 & 4 YR OLD,Rainbow Nursery,Third Party Payments-Other Agencies,2069,Nursery
01/10/2021,EIF 3 & 4 YR OLD,Rainbow Nursery,Third Party Payments-Other Agencies,1069,Nursery
01/10/2021,EIF 3 & 4 YR OLD,Rainbow Nursery,Third Party Payments-Other Agencies,2069,Nursery
01/10/2021,EIF 3 & 4 YR OLD,Rainbows End Pre-School,Third Party Payments-Other Agencies,1166,Schools
01/10/2021,WAVERLEY CARE PD,Redacted Personal Data,Direct Payments - Independent Sector,326.78,CYP Indiv Carers
01/10/2021,EPSOM & EWELL CARE O,Redacted Personal Data,Direct Payments - Independent Sector,1270.09,Adult direct payment
01/10/2021,WAVERLEY CARE OP,Redacted Personal Data,Direct Payments - Independent Sector,1563.42,Individual - NEC
01/10/2021,WAVERLEY CARE OP,Redacted Personal Data,Direct Payments - Independent Sector,9909.57,Adult direct payment
01/10/2021,WAVERLEY CARE OP,Redacted Personal Data,Direct Payments - Independent Sector,3220,Adult direct payment
01/10/2021,NW CWD NON-LAC CARE,Redacted Personal Data,Direct Payments - Carers of Disabled Children,853.88,Individual - NEC
01/10/2021,NW UASC NRPF 18+ CRE,Redacted Personal Data,Curric - Consumables,250,Invoicing Plan Req.
01/10/2021,NE CARE - CARE LVRS,Redacted Personal Data,Equipment,300,Invoicing Plan Req.
01/10/2021,CWD CONTRACTS/SLA'S,Redacted Personal Data,Direct Payments - Carers of Disabled Children,300,Invoicing Plan Req.
01/10/2021,NE CARE - CARE LVRS,Redacted Personal Data,Equipment,1071,Invoicing Plan Req.
01/10/2021,NW CWD NON-LAC CARE,Redacted Personal Data,Direct Payments - Carers of Disabled Children,3225.03,Individual - NEC
01/10/2021,SW CWD NON-LAC CARE,Redacted Personal Data,Direct Payments - Carers of Disabled Children,2267.62,Individual - NEC
01/10/2021,LEGAL EXPS CH AD ED,Redacted Personal Data,Legal Expenses,780,General Support
01/10/2021,LEGAL EXPS CH AD ED,Redacted Personal Data,Legal Expenses,900,Prev Case Knowledge
01/10/2021,LEGAL EXPS CH AD ED,Redacted Personal Data,Legal Expenses,1296,Prev Case Knowledge
01/10/2021,LEGAL EXPS CH AD ED,Redacted Personal Data,Legal Expenses,780,Complexity
01/10/2021,LEGAL EXPS CH AD ED,Redacted Personal Data,Legal Expenses,780,Complexity
01/10/2021,LEGAL EXPS CH AD ED,Redacted Personal Data,Legal Expenses,900,General Support
01/10/2021,LEGAL EXPS CH AD ED,Redacted Personal Data,Legal Expenses,1080,General Support
01/10/2021,LEGAL EXPS CH AD ED,Redacted Personal Data,Legal Expenses,1080,Witness & Prof Exp
01/10/2021,LEGAL EXPS CH AD ED,Redacted Personal Data,Legal Expenses,1020,Complexity
01/10/2021,LEGAL EXPS CH AD ED,Redacted Personal Data,Legal Expenses,1098,Complexity
01/10/2021,LEGAL EXPS CH AD ED,Redacted Personal Data,Legal Expenses,900,Witness & Prof Exp
01/10/2021,LEGAL EXPS CH AD ED,Redacted Personal Data,Legal Expenses,1080,Prev Case Knowledge
01/10/2021,LEGAL EXPS CH AD ED,Redacted Personal Data,Legal Expenses,1140,Complexity
01/10/2021,LEGAL EXPS CH AD ED,Redacted Personal Data,Legal Expenses,1380,Insuff In-House
01/10/2021,LEGAL EXPS CH AD ED,Redacted Personal Data,Legal Expenses,7200,Complexity
01/10/2021,LEGAL EXPS CH AD ED,Redacted Personal Data,Legal Expenses,780,Insuff In-House
01/10/2021,LEGAL EXPS CH AD ED,Redacted Personal Data,Legal Expenses,1080,Witness & Prof Exp
01/10/2021,LEGAL EXPS CH AD ED,Redacted Personal Data,Legal Expenses,900,Witness & Prof Exp
01/10/2021,LEGAL EXPS CH AD ED,Redacted Personal Data,Legal Expenses,2238,Witness & Prof Exp
01/10/2021,GUILDFORD CARE OP,Redated Personal Data,Home Base Care,2778.84,Non-Staff Expenses
01/10/2021,LEGAL EXPS CH AD ED,Redated Personal Data,Legal Expenses,570,Specialist Nature
01/10/2021,LEGAL EXPS CH AD ED,Redated Personal Data,Legal Expenses,402,Complexity
01/10/2021,LEGAL EXPS CH AD ED,Redated Personal Data,Legal Expenses,570,Legal Spec Supp NEC
01/10/2021,LEGAL EXPS CH AD ED,Redated Personal Data,Legal Expenses,570,Legal Spec Supp NEC
01/10/2021,LEGAL EXPS CH AD ED,Redated Personal Data,Legal Expenses,780,Insuff In-House
01/10/2021,LEGAL EXPS CH AD ED,Redated Personal Data,Legal Expenses,900,Insuff In-House
01/10/2021,LEGAL EXPS CH AD ED,Redated Personal Data,Legal Expenses,690,General Support
01/10/2021,LEGAL EXPS CH AD ED,Redated Personal Data,Legal Expenses,930,General Support
01/10/2021,SE S17 CARE,Redated Personal Data ,Other Community Care - Vol,1215,Invoicing Plan Req.
01/10/2021,1 ELMWOOD RD REDHILL,Reigate & Banstead Borough Council,Rates,253,Local Government
01/10/2021,PARK HALL,Reigate & Banstead Borough Council,Rates,922,Local Government
01/10/2021,WOKING CARE OP,Rock of Ages Care Ltd,Home Base Care,1560.72,Dom Care - Adults
01/10/2021,WOKING CARE OP,Rock of Ages Care Ltd,Home Base Care,1560.72,Dom Care - Adults
01/10/2021,RUNNYMEDE CARE OP,Rock of Ages Care Ltd,Home Base Care,517.38,Dom Care - Adults
01/10/2021,RUNNYMEDE CARE OP,Rock of Ages Care Ltd,Home Base Care,509.04,Dom Care - Adults
01/10/2021,RUNNYMEDE CARE OP,Rock of Ages Care Ltd,Home Base Care,1386.28,Dom Care - Adults
01/10/2021,RUNNYMEDE CARE OP,Rock of Ages Care Ltd,Home Base Care,509.04,Dom Care - Adults
01/10/2021,ELMBRIDGE CARE OP,Rock of Ages Care Ltd,Home Base Care,823.46,Dom Care - Adults
01/10/2021,RUNNYMEDE CARE OP,Rock of Ages Care Ltd,Home Base Care,1503.04,Dom Care - Adults
01/10/2021,WOKING CARE PD,Rock of Ages Care Ltd,Home Base Care,353.78,Dom Care - Adults
01/10/2021,RUNNYMEDE CARE OP,Rock of Ages Care Ltd,Home Base Care,1474.2,Dom Care - Adults
01/10/2021,WOKING CARE OP,Rock of Ages Care Ltd,Home Base Care,737.1,Dom Care - Adults
01/10/2021,RUNNYMEDE CARE PD,Rock of Ages Care Ltd,Home Base Care,509.04,Dom Care - Adults
01/10/2021,ELMBRIDGE CARE OP,Rock of Ages Care Ltd,Home Base Care,1415.12,Dom Care - Adults
01/10/2021,RUNNYMEDE CARE OP,Rock of Ages Care Ltd,Home Base Care,1386.28,Dom Care - Adults
01/10/2021,LD-AUT CNTR TM CARE,Royal National Institute For The Bl,Supported Living,2706.12,Residential - MH
01/10/2021,LD-AUT CNTR TM CARE,Royal National Institute For The Bl,Supported Living,5097.72,Residential - MH
01/10/2021,REIGATE & BD CARE PD,Royal National Institute For The Bl,Supported Living,3360.08,Residential - MH
01/10/2021,LD-AUT CNTR TM CARE,Royal National Institute For The Bl,Supported Living,1874.44,Residential - MH
01/10/2021,REIGATE & BD CARE PD,Royal National Institute For The Bl,Supported Living,1458.6,Residential - MH
01/10/2021,REIGATE & BD CARE PD,Royal National Institute For The Bl,Supported Living,1500.44,Residential - MH
01/10/2021,BROCKHURST,Runnymede Borough Council,Rates,279,Local Government
01/10/2021,BIRCHLANDS,Runnymede Borough Council,Rates,402,Local Government
01/10/2021,NULL,SCC Ash Grange Primary School,NULL,15691,Schools
01/10/2021,NULL,SCC Ash Grange Primary School,NULL,11077.3,Schools
01/10/2021,NULL,SCC Ash Grange Primary School,NULL,44015,Schools
01/10/2021,NULL,SCC Hurst Green Infant School,NULL,14109,Schools
01/10/2021,NULL,SCC ST Francis Catholic Primary Sch,NULL,10000,Schools
01/10/2021,NULL,SCC Walsh COE Junior School,NULL,34769,Schools
01/10/2021,NULL,Send COE Primary School,NULL,20451,Schools
01/10/2021,NULL,Send COE Primary School,NULL,6795,Schools
01/10/2021,NULL,Send COE Primary School,NULL,4185,Schools
01/10/2021,NULL,Send COE Primary School,NULL,12006,Schools
01/10/2021,NULL,Send COE Primary School,NULL,42162,Schools
01/10/2021,NULL,Send COE Primary School,NULL,33716,Schools
01/10/2021,NULL,Send COE Primary School,NULL,10701,Schools
01/10/2021,NULL,Send COE Primary School,NULL,3348,Schools
01/10/2021,EPSOM & EWELL CARE O,Skyline Home Care Services Ltd,Home Base Care,385.56,Residential - OP
01/10/2021,EPSOM & EWELL CARE O,Skyline Home Care Services Ltd,Home Base Care,528.36,Residential - OP
01/10/2021,EPSOM & EWELL CARE O,Skyline Home Care Services Ltd,Home Base Care,714,Residential - OP
01/10/2021,REIGATE & BD CARE OP,Skyline Home Care Services Ltd,Home Base Care,566.1,Residential - OP
01/10/2021,EPSOM & EWELL CARE O,Skyline Home Care Services Ltd,Home Base Care,1876.42,Residential - OP
01/10/2021,EPSOM & EWELL CARE O,Skyline Home Care Services Ltd,Home Base Care,903.72,Residential - OP
01/10/2021,EPSOM & EWELL CARE O,Skyline Home Care Services Ltd,Home Base Care,328.44,Residential - OP
01/10/2021,REIGATE & BD CARE OP,Skyline Home Care Services Ltd,Home Base Care,1876.42,Residential - OP
01/10/2021,EPSOM & EWELL CARE O,Skyline Home Care Services Ltd,Home Base Care,714,Residential - OP
01/10/2021,WAVERLEY CARE OP,Skyline Home Care Services Ltd,Home Base Care,1876.42,Residential - OP
01/10/2021,EPSOM & EWELL CARE O,Skyline Home Care Services Ltd,Home Base Care,328.44,Residential - OP
01/10/2021,EPSOM & EWELL CARE O,Skyline Home Care Services Ltd,Home Base Care,328.44,Residential - OP
01/10/2021,EPSOM & EWELL CARE O,Skyline Home Care Services Ltd,Home Base Care,561,Residential - OP
01/10/2021,EPSOM & EWELL CARE O,Skyline Home Care Services Ltd,Home Base Care,1428,Residential - OP
01/10/2021,REIGATE & BD CARE OP,Skyline Home Care Services Ltd,Home Base Care,385.05,Residential - OP
01/10/2021,EPSOM & EWELL CARE O,Skyline Home Care Services Ltd,Home Base Care,328.44,Residential - OP
01/10/2021,REIGATE & BD CARE OP,Skyline Home Care Services Ltd,Home Base Care,356.49,Residential - OP
01/10/2021,EPSOM & EWELL CARE O,Skyline Home Care Services Ltd,Home Base Care,385.56,Residential - OP
01/10/2021,EPSOM & EWELL CARE P,Skyline Home Care Services Ltd,Home Base Care,1503.48,Residential - OP
01/10/2021,EPSOM & EWELL CARE O,Skyline Home Care Services Ltd,Home Base Care,328.44,Residential - OP
01/10/2021,EPSOM & EWELL CARE O,Skyline Home Care Services Ltd,Home Base Care,1056.72,Residential - OP
01/10/2021,WHITE COT 34 KGTN RD,Spelthorne Borough Council,Rates,374,Grants-Member Allocs
01/10/2021,WASTE - PLANNING,Spelthorne Borough Council,Rates,442,Grants-Member Allocs
01/10/2021,EIF 3 & 4 YR OLD,St Giles Playgroup & Nursery School,Third Party Payments-Other Agencies,1000,Grants-Member Allocs
01/10/2021,EIF 3 & 4 YR OLD,St Joseph Pre School Playgroup,Third Party Payments-Other Agencies,800,Nurseries
01/10/2021,EIF 3 & 4 YR OLD,St Joseph Pre School Playgroup,Third Party Payments-Other Agencies,800,Nurseries
01/10/2021,NULL,St Mary's COE Junior School,NULL,25508.3,Schools
01/10/2021,NULL,St Mary's COE Junior School,NULL,97062,Schools
01/10/2021,NULL,St Mary's COE Junior School,NULL,36439,Schools
01/10/2021,NULL,St Pauls Catholic College,NULL,77847,Schools
01/10/2021,LD-AUT CNTR TM CARE,Surrey Choices Ltd,Supported Living,1437.43,Day Care - PSD
01/10/2021,LD-AUT CNTR TM CARE,Surrey Choices Ltd,Supported Living,2093.14,Day Care - PSD
01/10/2021,LD-AUT CNTR TM CARE,Surrey Choices Ltd,Supported Living,2486.57,Day Care - PSD
01/10/2021,LD-AUT CNTR TM CARE,Surrey Choices Ltd,Supported Living,2093.14,Day Care - PSD
01/10/2021,PINEHURST,Surrey Heath Borough Council - Tax,Rates,380,Local Government
01/10/2021,WOODLANDS HOUSE,Surrey Heath Borough Council - Tax,Rates,354,Local Government
01/10/2021,NULL,SWT Ecology Services Ltd,NULL,7200,M-D (Property)
01/10/2021,NULL,SWT Ecology Services Ltd,NULL,1200,M-D (Property)
01/10/2021,NULL,SWT Ecology Services Ltd,NULL,5200.5,M-D (Property)
01/10/2021,NULL,Tadworth Primary School,NULL,89738,Schools
01/10/2021,NULL,Tadworth Primary School,NULL,28954.4,Schools
01/10/2021,NULL,Tadworth Primary School,NULL,42534,Schools
01/10/2021,ORCHARD,Tandridge District Council,Rates,378,Local Government
01/10/2021,STYCHENS LANE BLETCH,Tandridge District Council,Rates,511,Local Government
01/10/2021,WAVERLEY CARE PD,Team Brain Injury Support,Home Base Care,8070.65,Dom Care - Adults
01/10/2021,WAVERLEY CARE OP,Tender Hands Ltd,Home Base Care,587.74,Residential - OP
01/10/2021,WAVERLEY CARE OP,Tender Hands Ltd,Home Base Care,498.12,Residential - OP
01/10/2021,WAVERLEY CARE OP,Tender Hands Ltd,Home Base Care,332.08,Residential - OP
01/10/2021,WAVERLEY CARE PD,Tender Hands Ltd,Home Base Care,4590.32,Residential - OP
01/10/2021,WAVERLEY CARE OP,Tender Hands Ltd,Home Base Care,585.7,Residential - OP
01/10/2021,WAVERLEY CARE OP,Tender Hands Ltd,Home Base Care,1501.36,Residential - OP
01/10/2021,WAVERLEY CARE OP,Tender Hands Ltd,Home Base Care,725.98,Residential - OP
01/10/2021,WAVERLEY CARE OP,Tender Hands Ltd,Home Base Care,1121.94,Residential - OP
01/10/2021,WAVERLEY CARE OP,Tender Hands Ltd,Home Base Care,529.04,Residential - OP
01/10/2021,WAVERLEY CARE OP,Tender Hands Ltd,Home Base Care,628,Residential - OP
01/10/2021,WAVERLEY CARE OP,Tender Hands Ltd,Home Base Care,375.34,Residential - OP
01/10/2021,WAVERLEY CARE OP,Tender Hands Ltd,Home Base Care,313.44,Residential - OP
01/10/2021,WAVERLEY CARE OP,Tender Hands Ltd,Home Base Care,707.42,Residential - OP
01/10/2021,WAVERLEY CARE PD,Tender Hands Ltd,Home Base Care,1138.44,Residential - OP
01/10/2021,WAVERLEY CARE OP,Tender Hands Ltd,Home Base Care,725.98,Residential - OP
01/10/2021,WAVERLEY CARE OP,Tender Hands Ltd,Home Base Care,664.16,Residential - OP
01/10/2021,WAVERLEY CARE OP,Tender Hands Ltd,Home Base Care,498.12,Residential - OP
01/10/2021,WAVERLEY CARE OP,Tender Hands Ltd,Home Base Care,410.44,Residential - OP
01/10/2021,WAVERLEY CARE OP,Tender Hands Ltd,Home Base Care,1429.12,Residential - OP
01/10/2021,WAVERLEY CARE OP,Tender Hands Ltd,Home Base Care,541.38,Residential - OP
01/10/2021,WAVERLEY CARE OP,Tender Hands Ltd,Home Base Care,541.38,Residential - OP
01/10/2021,WAVERLEY CARE OP,Tender Hands Ltd,Home Base Care,664.16,Residential - OP
01/10/2021,WAVERLEY CARE OP,Tender Hands Ltd,Home Base Care,498.12,Residential - OP
01/10/2021,WAVERLEY CARE OP,Tender Hands Ltd,Home Base Care,332.08,Residential - OP
01/10/2021,WAVERLEY CARE OP,Tender Hands Ltd,Home Base Care,446.5,Residential - OP
01/10/2021,WAVERLEY CARE OP,Tender Hands Ltd,Home Base Care,649.6,Residential - OP
01/10/2021,WAVERLEY CARE OP,Tender Hands Ltd,Home Base Care,707.42,Residential - OP
01/10/2021,WAVERLEY CARE PD,Tender Hands Ltd,Home Base Care,1414.84,Residential - OP
01/10/2021,WAVERLEY CARE OP,Tender Hands Ltd,Home Base Care,649.6,Residential - OP
01/10/2021,WAVERLEY CARE OP,Tender Hands Ltd,Home Base Care,649.6,Residential - OP
01/10/2021,WAVERLEY CARE OP,Tender Hands Ltd,Home Base Care,498.12,Residential - OP
01/10/2021,WAVERLEY CARE PD,Tender Hands Ltd,Home Base Care,2071.58,Residential - OP
01/10/2021,WAVERLEY CARE OP,Tender Hands Ltd,Home Base Care,811.56,Residential - OP
01/10/2021,GUILDFORD CARE PD,Tender Hands Ltd,Home Base Care,746.6,Residential - OP
01/10/2021,WAVERLEY CARE OP,Tender Hands Ltd,Home Base Care,676.52,Residential - OP
01/10/2021,WAVERLEY CARE OP,Tender Hands Ltd,Home Base Care,274.26,Residential - OP
01/10/2021,WAVERLEY CARE OP,Tender Hands Ltd,Home Base Care,425.9,Residential - OP
01/10/2021,WAVERLEY CARE OP,Tender Hands Ltd,Home Base Care,498.12,Residential - OP
01/10/2021,WAVERLEY CARE OP,Tender Hands Ltd,Home Base Care,548.52,Residential - OP
01/10/2021,WAVERLEY CARE OP,Tender Hands Ltd,Home Base Care,498.12,Residential - OP
01/10/2021,WAVERLEY CARE OP,Tender Hands Ltd,Home Base Care,274.26,Residential - OP
01/10/2021,GUILDFORD CARE OP,Tender Hands Ltd,Home Base Care,1414.84,Residential - OP
01/10/2021,WAVERLEY CARE OP,Tender Hands Ltd,Home Base Care,785.78,Residential - OP
01/10/2021,WAVERLEY CARE PD,Tender Hands Ltd,Home Base Care,824.96,Residential - OP
01/10/2021,WAVERLEY CARE PD,Tender Hands Ltd,Home Base Care,378.46,Residential - OP
01/10/2021,EIF 3 & 4 YR OLD,The Beeches Montessori Nursery Scho,Third Party Payments-Other Agencies,2000,Nurseries
01/10/2021,LD-AUT CNTR TM CARE,The Grange Centre,Day Care,632.64,Grants-Member Allocs
01/10/2021,PLD TRANSITION,The Grange Centre,Day Care,316.32,Grants-Member Allocs
01/10/2021,PLD TRANSITION,The Grange Centre,Day Care,632.64,Grants-Member Allocs
01/10/2021,MOLE VALLEY CARE PD,The Millenium Centre,Day Care,422.66,Residential - MH
01/10/2021,MOLE VALLEY CARE PD,The Millenium Centre,Day Care,534.64,Residential - MH
01/10/2021,MOLE VALLEY CARE PD,The Millenium Centre,Day Care,701.96,Residential - MH
01/10/2021,MOLE VALLEY CARE PD,The Millenium Centre,Day Care,641.41,Residential - MH
01/10/2021,MOLE VALLEY CARE PD,The Millenium Centre,Day Care,527.12,Residential - MH
01/10/2021,MOLE VALLEY CARE PD,The Millenium Centre,Day Care,376.69,Residential - MH
01/10/2021,MOLE VALLEY CARE PD,The Millenium Centre,Day Care,311.64,Residential - MH
01/10/2021,LD-AUT CNTR TM CARE,The Millenium Centre,Day Care,771.1,Residential - MH
01/10/2021,LD-AUT CNTR TM CARE,The Millenium Centre,Day Care,512.75,Residential - MH
01/10/2021,MOLE VALLEY CARE OP,The Millenium Centre,Day Care,410.92,Residential - MH
01/10/2021,LD-AUT CNTR TM CARE,The Whitemore Centre,Day Care,918,Day Care - OP
01/10/2021,GUILDFORD CMHRS CARE,Together for Mental Wellbeing,Supported Living,3816,Residential - MH
01/10/2021,MOLE VALLEY CARE OP,Trinity Care at Home Ltd,Home Base Care,678.44,Dom Care - Adults
01/10/2021,EPSOM & EWELL CARE O,Trinity Care at Home Ltd,Home Base Care,642.34,Dom Care - Adults
01/10/2021,EPSOM & EWELL CARE O,Trinity Care at Home Ltd,Home Base Care,259.84,Dom Care - Adults
01/10/2021,SURREY HEATH CARE OP,Trinity Care at Home Ltd,Home Base Care,557.04,Dom Care - Adults
01/10/2021,SURREY HEATH CARE OP,Trinity Care at Home Ltd,Home Base Care,921.48,Dom Care - Adults
01/10/2021,EPSOM & EWELL CARE O,Trinity Care at Home Ltd,Home Base Care,674.87,Dom Care - Adults
01/10/2021,REIGATE & BD CARE OP,Trinity Care at Home Ltd,Home Base Care,620.76,Dom Care - Adults
01/10/2021,GUILDFORD CARE OP,Trinity Care at Home Ltd,Home Base Care,301.73,Dom Care - Adults
01/10/2021,WAVERLEY CARE OP,Trinity Care at Home Ltd,Home Base Care,806.84,Dom Care - Adults
01/10/2021,MOLE VALLEY CARE OP,Trinity Care at Home Ltd,Home Base Care,332.55,Dom Care - Adults
01/10/2021,WAVERLEY CARE OP,Trinity Care at Home Ltd,Home Base Care,551.64,Dom Care - Adults
01/10/2021,EPSOM & EWELL CARE O,Trinity Care at Home Ltd,Home Base Care,476.36,Dom Care - Adults
01/10/2021,EPSOM & EWELL CARE O,Trinity Care at Home Ltd,Home Base Care,1140.44,Dom Care - Adults
01/10/2021,SURREY HEATH CARE OP,Trinity Care at Home Ltd,Home Base Care,355.5,Dom Care - Adults
01/10/2021,GUILDFORD CARE PD,Trinity Care at Home Ltd,Home Base Care,649.88,Dom Care - Adults
01/10/2021,REIGATE & BD CARE PD,Trinity Care at Home Ltd,Home Base Care,1876.56,Dom Care - Adults
01/10/2021,REIGATE & BD CARE OP,Trinity Care at Home Ltd,Home Base Care,266.04,Dom Care - Adults
01/10/2021,GUILDFORD CARE OP,Trinity Care at Home Ltd,Home Base Care,1030.68,Dom Care - Adults
01/10/2021,MOLE VALLEY CARE PD,Trinity Care at Home Ltd,Home Base Care,1746.6,Dom Care - Adults
01/10/2021,EPSOM & EWELL CARE O,Trinity Care at Home Ltd,Home Base Care,938.28,Dom Care - Adults
01/10/2021,SURREY HEATH CARE OP,Trinity Care at Home Ltd,Home Base Care,1506.98,Dom Care - Adults
01/10/2021,SURREY HEATH CARE OP,Trinity Care at Home Ltd,Home Base Care,478.28,Dom Care - Adults
01/10/2021,MOLE VALLEY CARE OP,Trinity Care at Home Ltd,Home Base Care,1775.48,Dom Care - Adults
01/10/2021,WAVERLEY CARE OP,Trinity Care at Home Ltd,Home Base Care,1624.7,Dom Care - Adults
01/10/2021,EPSOM & EWELL CARE P,Trinity Care at Home Ltd,Home Base Care,941.89,Dom Care - Adults
01/10/2021,SURREY HEATH CARE OP,Trinity Care at Home Ltd,Home Base Care,647.22,Dom Care - Adults
01/10/2021,EPSOM & EWELL CARE P,Trinity Care at Home Ltd,Home Base Care,697.04,Dom Care - Adults
01/10/2021,GUILDFORD CARE OP,Trinity Care at Home Ltd,Home Base Care,972.16,Dom Care - Adults
01/10/2021,WAVERLEY CARE PD,Trinity Care at Home Ltd,Home Base Care,420,Dom Care - Adults
01/10/2021,SURREY HEATH CARE OP,Trinity Care at Home Ltd,Home Base Care,1014.8,Dom Care - Adults
01/10/2021,SURREY HEATH CARE OP,Trinity Care at Home Ltd,Home Base Care,301.73,Dom Care - Adults
01/10/2021,GUILDFORD CARE OP,Trinity Care at Home Ltd,Home Base Care,1842.96,Dom Care - Adults
01/10/2021,REIGATE & BD CARE OP,Trinity Care at Home Ltd,Home Base Care,932.08,Dom Care - Adults
01/10/2021,EPSOM & EWELL CARE O,Trinity Care at Home Ltd,Home Base Care,469.14,Dom Care - Adults
01/10/2021,SURREY HEATH CARE OP,Trinity Care at Home Ltd,Home Base Care,921.48,Dom Care - Adults
01/10/2021,GUILDFORD CARE OP,Trinity Care at Home Ltd,Home Base Care,1026.96,Dom Care - Adults
01/10/2021,GUILDFORD CARE OP,Trinity Care at Home Ltd,Home Base Care,259.84,Dom Care - Adults
01/10/2021,SURREY HEATH CARE PD,Trinity Care at Home Ltd,Home Base Care,431.48,Dom Care - Adults
01/10/2021,GUILDFORD CARE OP,Trinity Care at Home Ltd,Home Base Care,1041.98,Dom Care - Adults
01/10/2021,LD-AUT CNTR TM CARE,Trinity Care at Home Ltd,Home Base Care,970.22,Dom Care - Adults
01/10/2021,REIGATE & BD CARE OP,Trinity Care at Home Ltd,Home Base Care,557.82,Dom Care - Adults
01/10/2021,SURREY HEATH CARE OP,Trinity Care at Home Ltd,Home Base Care,310.38,Dom Care - Adults
01/10/2021,SURREY HEATH CARE OP,Trinity Care at Home Ltd,Home Base Care,259.84,Dom Care - Adults
01/10/2021,EPSOM & EWELL CARE O,Trinity Care at Home Ltd,Home Base Care,663.49,Dom Care - Adults
01/10/2021,ELMBRIDGE CARE OP,Trinity Care at Home Ltd,Home Base Care,505.41,Dom Care - Adults
01/10/2021,WOKING CARE PD,UK Star Care Ltd,Home Base Care,779.24,Residential - MH
01/10/2021,RUNNYMEDE CARE OP,UK Star Care Ltd,Home Base Care,645.26,Residential - MH
01/10/2021,ELMBRIDGE CARE OP,UK Star Care Ltd,Home Base Care,779.24,Residential - MH
01/10/2021,SURREY HEATH CARE OP,UK Star Care Ltd,Home Base Care,647.36,Residential - MH
01/10/2021,RUNNYMEDE CARE PD,UK Star Care Ltd,Home Base Care,1154.44,Residential - MH
01/10/2021,SPELTHORNE CARE PD,UK Star Care Ltd,Home Base Care,798.84,Residential - MH
01/10/2021,RUNNYMEDE CARE OP,UK Star Care Ltd,Home Base Care,784.42,Residential - MH
01/10/2021,SPELTHORNE CARE OP,UK Star Care Ltd,Home Base Care,764.82,Residential - MH
01/10/2021,RUNNYMEDE CARE OP,UK Star Care Ltd,Home Base Care,1688.4,Residential - MH
01/10/2021,RUNNYMEDE CARE OP,UK Star Care Ltd,Home Base Care,522.6,Residential - MH
01/10/2021,RUNNYMEDE CARE PD,UK Star Care Ltd,Home Base Care,1601.88,Residential - MH
01/10/2021,RUNNYMEDE CARE OP,UK Star Care Ltd,Home Base Care,404.04,Residential - MH
01/10/2021,ELMBRIDGE CARE OP,UK Star Care Ltd,Home Base Care,952.56,Residential - MH
01/10/2021,RUNNYMEDE CARE OP,UK Star Care Ltd,Home Base Care,440.16,Residential - MH
01/10/2021,SPELTHORNE CARE OP,UK Star Care Ltd,Home Base Care,764.82,Residential - MH
01/10/2021,ELMBRIDGE CARE OP,UK Star Care Ltd,Home Base Care,577.22,Residential - MH
01/10/2021,RUNNYMEDE CARE PD,UK Star Care Ltd,Home Base Care,656.11,Residential - MH
01/10/2021,RUNNYMEDE CARE OP,UK Star Care Ltd,Home Base Care,764.82,Residential - MH
01/10/2021,ELMBRIDGE CARE OP,UK Star Care Ltd,Home Base Care,404.04,Residential - MH
01/10/2021,RUNNYMEDE CARE OP,UK Star Care Ltd,Home Base Care,577.22,Residential - MH
01/10/2021,RUNNYMEDE CARE PD,UK Star Care Ltd,Home Base Care,425.74,Residential - MH
01/10/2021,RUNNYMEDE CARE OP,UK Star Care Ltd,Home Base Care,389.62,Residential - MH
01/10/2021,RUNNYMEDE CARE OP,UK Star Care Ltd,Home Base Care,952.56,Residential - MH
01/10/2021,ELMBRIDGE CARE PD,UK Star Care Ltd,Home Base Care,764.82,Residential - MH
01/10/2021,ELMBRIDGE CARE OP,UK Star Care Ltd,Home Base Care,404.04,Residential - MH
01/10/2021,RUNNYMEDE CARE OP,UK Star Care Ltd,Home Base Care,764.82,Residential - MH
01/10/2021,RUNNYMEDE CARE OP,UK Star Care Ltd,Home Base Care,798.84,Residential - MH
01/10/2021,ELMBRIDGE CARE OP,UK Star Care Ltd,Home Base Care,800.94,Residential - MH
01/10/2021,RUNNYMEDE CARE OP,UK Star Care Ltd,Home Base Care,764.82,Residential - MH
01/10/2021,RUNNYMEDE CARE OP,UK Star Care Ltd,Home Base Care,375.2,Residential - MH
01/10/2021,RUNNYMEDE CARE OP,UK Star Care Ltd,Home Base Care,381.38,Residential - MH
01/10/2021,GUILDFORD CARE OP,Vine Social Care Agency Ltd,Home Base Care,570.22,Residential - OP
01/10/2021,GUILDFORD CARE OP,Vine Social Care Agency Ltd,Home Base Care,350.6,Residential - OP
01/10/2021,SURREY HEATH CARE OP,Vine Social Care Agency Ltd,Home Base Care,389.76,Residential - OP
01/10/2021,SURREY HEATH CARE OP,Vine Social Care Agency Ltd,Home Base Care,1501.36,Residential - OP
01/10/2021,SURREY HEATH CARE OP,Vine Social Care Agency Ltd,Home Base Care,1097.18,Residential - OP
01/10/2021,GUILDFORD CARE PD,Vine Social Care Agency Ltd,Home Base Care,1215.74,Residential - OP
01/10/2021,SURREY HEATH CARE OP,Vine Social Care Agency Ltd,Home Base Care,1501.36,Residential - OP
01/10/2021,SURREY HEATH CARE OP,Vine Social Care Agency Ltd,Home Base Care,1855.14,Residential - OP
01/10/2021,SURREY HEATH CARE OP,Vine Social Care Agency Ltd,Home Base Care,425.88,Residential - OP
01/10/2021,NULL,Wallace Fields Junior School,NULL,39613,Schools
01/10/2021,LINDEN FARM,Waverley Borough Council,Rates,503,Grants-Member Allocs
01/10/2021,LINDEN FARM,Waverley Borough Council,Rates,300,Grants-Member Allocs
01/10/2021,LONGFIELD,Waverley Borough Council,Rates,1259,Grants-Member Allocs
01/10/2021,SPECIAL STAFF COSTS,Weydon Multi Academy Trust,Teaching Staff,2247.98,School Support Serv
01/10/2021,EIF 2 YR OLD,Weyhill Montessori School Ltd,Third Party Payments-Other Agencies,1067,Nursery
01/10/2021,EIF 2 YR OLD,White Lodge Nursery,Third Party Payments-Other Agencies,1000,Nursery
01/10/2021,RUNNYMEDE CARE PD,Whitestone Care Ltd,Home Base Care,2091.12,Supp Living - MH
01/10/2021,GUILDFORD CARE OP,Whitestone Care Ltd,Home Base Care,952.84,Supp Living - MH
01/10/2021,WOKING CARE OP,Whitestone Care Ltd,Home Base Care,1456.08,Supp Living - MH
01/10/2021,SURREY HEATH CARE OP,Whitestone Care Ltd,Home Base Care,707.42,Supp Living - MH
01/10/2021,WOKING CARE PD,Whitestone Care Ltd,Home Base Care,938.42,Supp Living - MH
01/10/2021,WOKING CARE OP,Whitestone Care Ltd,Home Base Care,693,Supp Living - MH
01/10/2021,SURREY HEATH CARE PD,Whitestone Care Ltd,Home Base Care,462,Supp Living - MH
01/10/2021,SURREY HEATH CARE OP,Whitestone Care Ltd,Home Base Care,672.3,Supp Living - MH
01/10/2021,CLARENDON PRY,Wilks Head & Eve,Rates,2017,Individual - NEC
01/10/2021,GREVILLE PRY,Wilks Head & Eve,Rates,5632,Individual - NEC
01/10/2021,BAGSHOT INF,Wilks Head & Eve,Rates,1767,Individual - NEC
01/10/2021,FRIMLEY GREEN YC,Wilks Head & Eve,Rates,426,Individual - NEC
01/10/2021,FRIMLEY GRN LIB,Wilks Head & Eve,Rates,728,Individual - NEC
01/10/2021,OLD DEAN YC CAMBERLE,Wilks Head & Eve,Rates,308,Individual - NEC
01/10/2021,CATERHAM LIB,Wilks Head & Eve,Rates,645,Individual - NEC
01/10/2021,CRANLEIGH FIRE STN,Wilks Head & Eve,Rates,800,Individual - NEC
01/10/2021,CRANLEIGH CE VC PRIM,Wilks Head & Eve,Rates,1071,Individual - NEC
01/10/2021,MOLE VALLEY FAM CNTR,Wilks Head & Eve,Rates,1216,Individual - NEC
01/10/2021,DORKING LIB (NEW),Wilks Head & Eve,Rates,3627,Individual - NEC
01/10/2021,ST JOSEPHS CTH PRY D,Wilks Head & Eve,Rates,256,Individual - NEC
01/10/2021,ST PAULS CEP DORK,Wilks Head & Eve,Rates,713,Individual - NEC
01/10/2021,ORCHARD SCHOOL,Wilks Head & Eve,Rates,457,Individual - NEC
01/10/2021,EGHAM FIRE STATION,Wilks Head & Eve,Rates,3072,Individual - NEC
01/10/2021,KINGFISHER HOUSE,Wilks Head & Eve,Rates,2133,Individual - NEC
01/10/2021,EGHAM LIB,Wilks Head & Eve,Rates,1019,Individual - NEC
01/10/2021,MANORCROFT PRY,Wilks Head & Eve,Rates,3072,Individual - NEC
01/10/2021,ST CUTHBERTS CATH PR,Wilks Head & Eve,Rates,412,Individual - NEC
01/10/2021,THORPE CE PRIMARY,Wilks Head & Eve,Rates,444,Individual - NEC
01/10/2021,THORPE LEA PRY,Wilks Head & Eve,Rates,1934,Individual - NEC
01/10/2021,TATTENHAM LIB,Wilks Head & Eve,Rates,520,Individual - NEC
01/10/2021,MEAD INF,Wilks Head & Eve,Rates,2901,Individual - NEC
01/10/2021,SHAWLEY CP EPSOM,Wilks Head & Eve,Rates,2304,Individual - NEC
01/10/2021,ST CLEMENTS CATH PRY,Wilks Head & Eve,Rates,439,Individual - NEC
01/10/2021,ST JOSEPHS CTH PRY E,Wilks Head & Eve,Rates,768,Individual - NEC
01/10/2021,STAMFORD GREEN PRY,Wilks Head & Eve,Rates,4437,Individual - NEC
01/10/2021,WEST PARK FARMHOUSE,Wilks Head & Eve,Rates,509,Individual - NEC
01/10/2021,CLAYGATE PRY,Wilks Head & Eve,Rates,772,Individual - NEC
01/10/2021,ST PETERS CEP WRECC,Wilks Head & Eve,Rates,886,Individual - NEC
01/10/2021,RENTWOOD,Wilks Head & Eve,Rates,1037,Individual - NEC
01/10/2021,GODALMING FIRE STN,Wilks Head & Eve,Rates,884,Individual - NEC
01/10/2021,MILFORD SCHOOL,Wilks Head & Eve,Rates,288,Individual - NEC
01/10/2021,MOSS LANE SCHOOL,Wilks Head & Eve,Rates,894,Individual - NEC
01/10/2021,WITLEY CEI,Wilks Head & Eve,Rates,728,Individual - NEC
01/10/2021,GODSTONE FIRE STN,Wilks Head & Eve,Rates,2585,Individual - NEC
01/10/2021,GODSTONE DEPOT,Wilks Head & Eve,Rates,5120,Individual - NEC
01/10/2021,ASH SSC ASH LIBRARY,Wilks Head & Eve,Rates,1591,Individual - NEC
01/10/2021,ASHFORD LIB,Wilks Head & Eve,Rates,1487,Individual - NEC
01/10/2021,ST MICHAEL RCP ASHFD,Wilks Head & Eve,Rates,649,Individual - NEC
01/10/2021,BAGSHOT LIB,Wilks Head & Eve,Rates,254,Individual - NEC
01/10/2021,BAGSHOT DEPOT,Wilks Head & Eve,Rates,383,Individual - NEC
01/10/2021,BANSTEAD JUN,Wilks Head & Eve,Rates,2560,Individual - NEC
01/10/2021,ADDLESTONE LIB (NEW),Wilks Head & Eve,Rates,1424,Individual - NEC
01/10/2021,ASHFORD PARK PRY,Wilks Head & Eve,Rates,4864,Individual - NEC
01/10/2021,ASHTEAD LIB,Wilks Head & Eve,Rates,624,Individual - NEC
01/10/2021,ST GILES CEI ASHTD,Wilks Head & Eve,Rates,269,Individual - NEC
01/10/2021,WEST ASHTEAD PRY,Wilks Head & Eve,Rates,3264,Individual - NEC
01/10/2021,GUILDFORD LIB,Wilks Head & Eve,Rates,4693,Individual - NEC
01/10/2021,GUILDFORD CHILDS CTR,Wilks Head & Eve,Rates,1757,Individual - NEC
01/10/2021,WEST HOUSE COMPLEX,Wilks Head & Eve,Rates,9515,Individual - NEC
01/10/2021,14 THE PINES,Wilks Head & Eve,Rates,3413,Individual - NEC
01/10/2021,MEATH GREEN JUN,Wilks Head & Eve,Rates,3072,Individual - NEC
01/10/2021,OAKWOOD  HORLEY,Wilks Head & Eve,Rates,14187,Individual - NEC
01/10/2021,MANORFIELD P&N SCH,Wilks Head & Eve,Rates,2709,Individual - NEC
01/10/2021,DAWNAY SCHOOL,Wilks Head & Eve,Rates,2219,Individual - NEC
01/10/2021,FETCHAM VILLAGE INF,Wilks Head & Eve,Rates,1320,Individual - NEC
01/10/2021,UNIT 4 LEATHERHEAD,Wilks Head & Eve,Rates,3776,Individual - NEC
01/10/2021,ST FAITHS FC,Wilks Head & Eve,Rates,1674,Individual - NEC
01/10/2021,ST PETERS CATH PRY L,Wilks Head & Eve,Rates,390,Individual - NEC
01/10/2021,BANSTEAD YOUTH CTR,Wilks Head & Eve,Rates,353,Individual - NEC
01/10/2021,HEATHER RIDGE INF,Wilks Head & Eve,Rates,1923,Individual - NEC
01/10/2021,CAMBERLEY FIRE STN,Wilks Head & Eve,Rates,3861,Individual - NEC
01/10/2021,CHERTSEY LIB,Wilks Head & Eve,Rates,852,Individual - NEC
01/10/2021,LYNE & LONG CROSS CE,Wilks Head & Eve,Rates,542,Individual - NEC
01/10/2021,MEADOWCROFT CI,Wilks Head & Eve,Rates,699,Individual - NEC
01/10/2021,PAINSHILL FIRE STN,Wilks Head & Eve,Rates,2368,Individual - NEC
01/10/2021,GATWICK DIAMOND PH 1,Wilks Head & Eve,Rates,7936,Individual - NEC
01/10/2021,CHANDLERS FIELD PRY,Wilks Head & Eve,Rates,1118,Individual - NEC
01/10/2021,ST JUDE'S CE INFANT,Wilks Head & Eve,Rates,360.88,Individual - NEC
01/10/2021,KINGFISHER HOUSE,Wilks Head & Eve,Rates,1589,Individual - NEC
01/10/2021,EGHAM YOUTH CENTRE,Wilks Head & Eve,Rates,374,Individual - NEC
01/10/2021,EPSOM PRY,Wilks Head & Eve,Rates,3349,Individual - NEC
01/10/2021,FOCUS YOUTH CENTRE,Wilks Head & Eve,Rates,489,Individual - NEC
01/10/2021,ST MARTINS SCHS(FED),Wilks Head & Eve,Rates,382,Individual - NEC
01/10/2021,ST MARTINS SCHS(FED),Wilks Head & Eve,Rates,572,Individual - NEC
01/10/2021,STONELEIGH LIB,Wilks Head & Eve,Rates,977,Individual - NEC
01/10/2021,ESHER LOCAL OFFICE,Wilks Head & Eve,Rates,8277,Individual - NEC
01/10/2021,FARNHAM FIRE STATION,Wilks Head & Eve,Rates,3733,Individual - NEC
01/10/2021,FARNHAM LIB,Wilks Head & Eve,Rates,2539,Individual - NEC
01/10/2021,FARNCOMBE CEI,Wilks Head & Eve,Rates,1092,Individual - NEC
01/10/2021,DUNSFOLD FIRE STN,Wilks Head & Eve,Rates,520,Individual - NEC
01/10/2021,WHARF NURSERY,Wilks Head & Eve,Rates,4864,Individual - NEC
01/10/2021,WITLEY DEPOT,Wilks Head & Eve,Rates,2688,Individual - NEC
01/10/2021,LINGFIELD FIRE STN,Wilks Head & Eve,Rates,702,Individual - NEC
01/10/2021,OXTED LIB,Wilks Head & Eve,Rates,2219,Individual - NEC
01/10/2021,CONSORT HOUSE,Wilks Head & Eve,Rates,24533,Individual - NEC
01/10/2021,ST BEDES SCHOOL,Wilks Head & Eve,Rates,4523,Individual - NEC
01/10/2021,ST JOSEPHS CTH PRY R,Wilks Head & Eve,Rates,764,Individual - NEC
01/10/2021,NORTH DOWNS PRY,Wilks Head & Eve,Rates,489,Individual - NEC
01/10/2021,REIGATE PRIORY SCH,Wilks Head & Eve,Rates,3968,Individual - NEC
01/10/2021,REIGATE FIRE STATION,Wilks Head & Eve,Rates,19733,Individual - NEC
01/10/2021,SHEPPERTON YOUTH CTR,Wilks Head & Eve,Rates,337,Individual - NEC
01/10/2021,ST NICHOLAS CEP SHEP,Wilks Head & Eve,Rates,772,Individual - NEC
01/10/2021,61 STAINES HIGH ST,Wilks Head & Eve,Rates,361,Individual - NEC
01/10/2021,FAIRWAYS,Wilks Head & Eve,Rates,3115,Individual - NEC
01/10/2021,STAINES LIB,Wilks Head & Eve,Rates,266,Individual - NEC
01/10/2021,TOWN FARM PRY,Wilks Head & Eve,Rates,764,Individual - NEC
01/10/2021,THE AVENUE SUNBURY,Wilks Head & Eve,Rates,1424,Individual - NEC
01/10/2021,ST IGNATIUS RCP,Wilks Head & Eve,Rates,636,Individual - NEC
01/10/2021,KINGSWOOD PRY,Wilks Head & Eve,Rates,1476,Individual - NEC
01/10/2021,WALTON ON HILL PRY,Wilks Head & Eve,Rates,1445,Individual - NEC
01/10/2021,ST ANNS HEATH JUN,Wilks Head & Eve,Rates,2517,Individual - NEC
01/10/2021,BELL FARM -PRIMARY,Wilks Head & Eve,Rates,3413,Individual - NEC
01/10/2021,BURHILL PRIMARY SCH,Wilks Head & Eve,Rates,1181,Individual - NEC
01/10/2021,FMR FIRE ELM GROVE,Wilks Head & Eve,Rates,414,Individual - NEC
01/10/2021,MANBY LODGE INF,Wilks Head & Eve,Rates,3221,Individual - NEC
01/10/2021,NORTH DOWNS PRY,Wilks Head & Eve,Rates,485,Individual - NEC
01/10/2021,CAMBERLEY LIB,Wilks Head & Eve,Rates,2176,Individual - NEC
01/10/2021,AUDLEY PRY,Wilks Head & Eve,Rates,1591,Individual - NEC
01/10/2021,CATERHAM VALLEY LBRY,Wilks Head & Eve,Rates,1726,Individual - NEC
01/10/2021,CATERHAM YOUTH CTRE,Wilks Head & Eve,Rates,265,Individual - NEC
01/10/2021,ST FRANCIS CTH PRY C,Wilks Head & Eve,Rates,474,Individual - NEC
01/10/2021,PERM SURP LAND,Wilks Head & Eve,Rates,457,Individual - NEC
01/10/2021,GATWICK DIAMOND PH 1,Wilks Head & Eve,Rates,11627,Individual - NEC
01/10/2021,DRILL HALL DORKING,Wilks Head & Eve,Rates,1798,Individual - NEC
01/10/2021,DORKING NURSERY,Wilks Head & Eve,Rates,4651,Individual - NEC
01/10/2021,DORKING FIRE STATION,Wilks Head & Eve,Rates,1965,Individual - NEC
01/10/2021,PRIORY CE SCHOOL,Wilks Head & Eve,Rates,2539,Individual - NEC
01/10/2021,GUILDFORD CHILDS CTR,Wilks Head & Eve,Rates,3584,Individual - NEC
01/10/2021,ASH SSC ASH LIBRARY,Wilks Head & Eve,Rates,624,Individual - NEC
01/10/2021,MERROW CEI,Wilks Head & Eve,Rates,1362,Individual - NEC
01/10/2021,ONSLOW INF,Wilks Head & Eve,Rates,1549,Individual - NEC
01/10/2021,ST JOSEPHS CTH PRY G,Wilks Head & Eve,Rates,1749,Individual - NEC
01/10/2021,DR DATA CTR UNIT 10,Wilks Head & Eve,Rates,2603,Individual - NEC
01/10/2021,WALSH MEMORIAL CEI,Wilks Head & Eve,Rates,1216,Individual - NEC
01/10/2021,SHOTTERMILL INF,Wilks Head & Eve,Rates,1653,Individual - NEC
01/10/2021,PT FMR FIR ALBERT RD,Wilks Head & Eve,Rates,250,Individual - NEC
01/10/2021,HORSLEY LIB,Wilks Head & Eve,Rates,811,Individual - NEC
01/10/2021,OAKFIELD JUN,Wilks Head & Eve,Rates,2475,Individual - NEC
01/10/2021,ROYAL KENT CEP,Wilks Head & Eve,Rates,2100,Individual - NEC
01/10/2021,EWELL GROVE PRIMARY,Wilks Head & Eve,Rates,1611,Individual - NEC
01/10/2021,EPSOM FIRE STATION,Wilks Head & Eve,Rates,3221,Individual - NEC
01/10/2021,EWELL COURT LIB,Wilks Head & Eve,Rates,509,Individual - NEC
01/10/2021,EBBISHAM - EPSOM LIB,Wilks Head & Eve,Rates,5205,Individual - NEC
01/10/2021,ESHER GREEN ESHER,Wilks Head & Eve,Rates,956,Individual - NEC
01/10/2021,ESHER FIRE STATION,Wilks Head & Eve,Rates,2581,Individual - NEC
01/10/2021,ESHER LIB,Wilks Head & Eve,Rates,1476,Individual - NEC
01/10/2021,BADSHOT LEA VILL INF,Wilks Head & Eve,Rates,1424,Individual - NEC
01/10/2021,WILLIAM COBBETT JUN,Wilks Head & Eve,Rates,5376,Individual - NEC
01/10/2021,BUSBRIDGE INF,Wilks Head & Eve,Rates,262,Individual - NEC
01/10/2021,CHANDLER CEJ,Wilks Head & Eve,Rates,619,Individual - NEC
01/10/2021,GODALMING SSC,Wilks Head & Eve,Rates,1507,Individual - NEC
01/10/2021,WEST BYFLEET JUN,Wilks Head & Eve,Rates,1909.11,Individual - NEC
01/10/2021,PUBLIC LIB OFFS WEYB,Wilks Head & Eve,Rates,1796,Individual - NEC
01/10/2021,PUBLIC LIB OFFS WEYB,Wilks Head & Eve,Rates,274,Individual - NEC
01/10/2021,WOKING CORONER CT,Wilks Head & Eve,Rates,925,Individual - NEC
01/10/2021,MERSTHAM HUB,Wilks Head & Eve,Rates,1882,Individual - NEC
01/10/2021,SUNBURY & SHEP SS,Wilks Head & Eve,Rates,1760,Individual - NEC
01/10/2021,DAKOTA,Wilks Head & Eve,Rates,2807,Individual - NEC
01/10/2021,ST JAMES CEP ELSTEAD,Wilks Head & Eve,Rates,448,Individual - NEC
01/10/2021,ST MARYS CEI SHACKFD,Wilks Head & Eve,Rates,416,Individual - NEC
01/10/2021,HAYES BRIDGE BC-BUS,Wilks Head & Eve,Rates,260,Individual - NEC
01/10/2021,ASH MANOR SCHOOL,Wilks Head & Eve,Rates,10773,Individual - NEC
01/10/2021,GOMSHALL FIRE STN,Wilks Head & Eve,Rates,905,Individual - NEC
01/10/2021,SW SURREY FANILY CTR,Wilks Head & Eve,Rates,2731,Individual - NEC
01/10/2021,WOOD STREET INF,Wilks Head & Eve,Rates,998,Individual - NEC
01/10/2021,WORPLESDON PRY,Wilks Head & Eve,Rates,4736,Individual - NEC
01/10/2021,GRAYSWOOD CE PRIMARY,Wilks Head & Eve,Rates,439,Individual - NEC
01/10/2021,HASLEMERE LIB,Wilks Head & Eve,Rates,769,Individual - NEC
01/10/2021,SHOTTERMILL JUN,Wilks Head & Eve,Rates,2731,Individual - NEC
01/10/2021,ST BARTHOLOMEWS CEP,Wilks Head & Eve,Rates,713,Individual - NEC
01/10/2021,BOOKHAM LIB (NEW),Wilks Head & Eve,Rates,457,Individual - NEC
01/10/2021,THE BRIDGE,Wilks Head & Eve,Rates,341,Individual - NEC
01/10/2021,THE MANSION L'HEAD,Wilks Head & Eve,Rates,1154,Individual - NEC
01/10/2021,LINGFIELD PRY,Wilks Head & Eve,Rates,3712,Individual - NEC
01/10/2021,OXTED FIRE STATION,Wilks Head & Eve,Rates,1164,Individual - NEC
01/10/2021,HOLLAND JUN,Wilks Head & Eve,Rates,2240,Individual - NEC
01/10/2021,HURST GREEN SCHOOL,Wilks Head & Eve,Rates,1331,Individual - NEC
01/10/2021,EARLSWOOD INF&JUN,Wilks Head & Eve,Rates,1892,Individual - NEC
01/10/2021,SALFORDS FIRE STATIO,Wilks Head & Eve,Rates,5547,Individual - NEC
01/10/2021,REIGATE LIB,Wilks Head & Eve,Rates,447,Individual - NEC
01/10/2021,REIGATE PARISH CHUR,Wilks Head & Eve,Rates,444,Individual - NEC
01/10/2021,OUR LADY ROSARY RCP,Wilks Head & Eve,Rates,538,Individual - NEC
01/10/2021,STAINES LIB,Wilks Head & Eve,Rates,2923,Individual - NEC
01/10/2021,BEAUCLERC CHENNESTON,Wilks Head & Eve,Rates,2475,Individual - NEC
01/10/2021,LONG DITTON INF,Wilks Head & Eve,Rates,279,Individual - NEC
01/10/2021,HIGH ASHURST OEC,Wilks Head & Eve,Rates,1371,Individual - NEC
01/10/2021,EPSOM DOWNS PRY,Wilks Head & Eve,Rates,3264,Individual - NEC
01/10/2021,PHOENIX YC TADWORTH,Wilks Head & Eve,Rates,582,Individual - NEC
01/10/2021,DITTONS LIB,Wilks Head & Eve,Rates,759,Individual - NEC
01/10/2021,LONG D ST MARYS CEJ,Wilks Head & Eve,Rates,361,Individual - NEC
01/10/2021,ST PAULS CATH PRY TD,Wilks Head & Eve,Rates,751,Individual - NEC
01/10/2021,THAMES DITTON JUN,Wilks Head & Eve,Rates,905,Individual - NEC
01/10/2021,BEACON HILL COMM,Wilks Head & Eve,Rates,304,Individual - NEC
01/10/2021,BEACON HILL COMM,Wilks Head & Eve,Rates,2240,Individual - NEC
01/10/2021,CHARLWOOD VILL INF,Wilks Head & Eve,Rates,530,Individual - NEC
01/10/2021,HORLEY INF,Wilks Head & Eve,Rates,2240,Individual - NEC
01/10/2021,FMR HORLEY LIBRARY,Wilks Head & Eve,Rates,1549,Individual - NEC
01/10/2021,LEATHERHEAD FIRE STN,Wilks Head & Eve,Rates,3477,Individual - NEC
01/10/2021,ST ANDREWS CATH LHD,Wilks Head & Eve,Rates,1536,Individual - NEC
01/10/2021,THE MANSION L'HEAD,Wilks Head & Eve,Rates,3285,Individual - NEC
01/10/2021,THE MANSION L'HEAD,Wilks Head & Eve,Rates,1788,Individual - NEC
01/10/2021,LIMPSFIELD CEI,Wilks Head & Eve,Rates,294,Individual - NEC
01/10/2021,FURZEFIELD  CP,Wilks Head & Eve,Rates,4224,Individual - NEC
01/10/2021,PRIMARY DATA CENTRE,Wilks Head & Eve,Rates,1289,Individual - NEC
01/10/2021,VIRGINIA WATER LIB,Wilks Head & Eve,Rates,399,Individual - NEC
01/10/2021,TRUMPS GREEN INF,Wilks Head & Eve,Rates,1653,Individual - NEC
01/10/2021,GROVELANDS PRI&NUR,Wilks Head & Eve,Rates,3029,Individual - NEC
01/10/2021,WALTON YOUTH CENTRE,Wilks Head & Eve,Rates,437,Individual - NEC
01/10/2021,WALTON-ON-T LIB(NEW),Wilks Head & Eve,Rates,4181,Individual - NEC
01/10/2021,GRANGE CI,Wilks Head & Eve,Rates,1871,Individual - NEC
01/10/2021,BYFLEET LIB,Wilks Head & Eve,Rates,686,Individual - NEC
01/10/2021,WEST BYFLEET LIB,Wilks Head & Eve,Rates,489,Individual - NEC
01/10/2021,RYLSTON WEYBRIDGE,Wilks Head & Eve,Rates,2688,Individual - NEC
01/10/2021,WEST BYFLEET CI,Wilks Head & Eve,Rates,2783.89,Individual - NEC
01/10/2021,PUBLIC LIB OFFS WEYB,Wilks Head & Eve,Rates,603,Individual - NEC
01/10/2021,PRIMARY DATA CENTRE,Wilks Head & Eve,Rates,1248,Individual - NEC
01/10/2021,REDHILL FAMILY CTR,Wilks Head & Eve,Rates,4821,Individual - NEC
01/10/2021,REIGATE LIB,Wilks Head & Eve,Rates,1383,Individual - NEC
01/10/2021,PERM SURPLUS NON-RES,Wilks Head & Eve,Rates,1195,Individual - NEC
01/10/2021,61 STAINES HIGH ST,Wilks Head & Eve,Rates,1067,Individual - NEC
01/10/2021,BUCKLAND PRIMARY SCH,Wilks Head & Eve,Rates,3264,Individual - NEC
01/10/2021,NE SHORT STAY SCH,Wilks Head & Eve,Rates,517,Individual - NEC
01/10/2021,KNWL GRN STAINES LOC,Wilks Head & Eve,Rates,2027,Individual - NEC
01/10/2021,BEAUCLERC CHENNESTON,Wilks Head & Eve,Rates,1185,Individual - NEC
01/10/2021,SUNBURY-ON-T LIB,Wilks Head & Eve,Rates,1455,Individual - NEC
01/10/2021,STANWELL YOUTH CTRE,Wilks Head & Eve,Rates,287,Individual - NEC
01/10/2021,KNAPHILL LIBRARY-NEW,Wilks Head & Eve,Rates,2058,Individual - NEC
01/10/2021,BISLEY CEP,Wilks Head & Eve,Rates,435,Individual - NEC
01/10/2021,CHOBHAM RETAINED STN,Wilks Head & Eve,Rates,707,Individual - NEC
01/10/2021,LAKERS YC WOKING,Wilks Head & Eve,Rates,403,Individual - NEC
01/10/2021,WOKING CORONER CT,Wilks Head & Eve,Rates,10069,Individual - NEC
01/10/2021,MAYFORD CENTRE-BUS,Wilks Head & Eve,Rates,509,Individual - NEC
01/10/2021,PERM SURPLUS NON-RES,Wilks Head & Eve,Rates,2304,Individual - NEC
01/10/2021,SURREY HISTORY CTR,Wilks Head & Eve,Rates,21333,Individual - NEC
01/10/2021,NW SURREY SSS,Wilks Head & Eve,Rates,308,Individual - NEC
01/10/2021,VALLEY END CEI,Wilks Head & Eve,Rates,1611,Individual - NEC
01/10/2021,ASHLEY PARK HOUSE,Wilks Head & Eve,Rates,1611,Individual - NEC
01/10/2021,DAKOTA,Wilks Head & Eve,Rates,21760,Individual - NEC
01/10/2021,HERSHAM LIB,Wilks Head & Eve,Rates,572,Individual - NEC
01/10/2021,WARLINGHAM LIB,Wilks Head & Eve,Rates,358,Individual - NEC
01/10/2021,HENRIETTA PARKER CTR,Wilks Head & Eve,Rates,3072,Individual - NEC
01/10/2021,OATLANDS SCHOOL,Wilks Head & Eve,Rates,2496,Individual - NEC
01/10/2021,CHERTSEY FIRE STN,Wilks Head & Eve,Rates,3770,Individual - NEC
01/10/2021,WOKING LIB,Wilks Head & Eve,Rates,7381,Individual - NEC
01/10/2021,QUADRANT CT WOKING,Wilks Head & Eve,Rates,43093,Individual - NEC
01/10/2021,MERSTHAM HUB,Wilks Head & Eve,Rates,1372,Individual - NEC
01/10/2021,ASHLEY PARK HOUSE,Wilks Head & Eve,Rates,4949,Individual - NEC
01/10/2021,ASHLEY PARK HOUSE,Wilks Head & Eve,Rates,2944,Individual - NEC
01/10/2021,CONSORT HOUSE,Wilks Head & Eve,Rates,728,Individual - NEC
01/10/2021,FORDBRIDGE FIRE STN,Wilks Head & Eve,Rates,6656,Individual - NEC
01/10/2021,ASHFORD CEP,Wilks Head & Eve,Rates,572,Individual - NEC
01/10/2021,BARNETT WOOD INF,Wilks Head & Eve,Rates,1102,Individual - NEC
01/10/2021,BAGSHOT DEPOT,Wilks Head & Eve,Rates,2731,Individual - NEC
01/10/2021,BANSTEAD LIB,Wilks Head & Eve,Rates,2901,Individual - NEC
01/10/2021,ST ANNES CATH PRY BA,Wilks Head & Eve,Rates,832,Individual - NEC
01/10/2021,NORTH DOWNS PRY,Wilks Head & Eve,Rates,2261,Individual - NEC
01/10/2021,FRANCE HILL HOUSE,Wilks Head & Eve,Rates,2389,Individual - NEC
01/10/2021,PRIOR HEATH CI,Wilks Head & Eve,Rates,1663,Individual - NEC
01/10/2021,SHBC OFFICE ACCOMM,Wilks Head & Eve,Rates,2100,Individual - NEC
01/10/2021,ST JOHNS CEJ CATERHM,Wilks Head & Eve,Rates,841,Individual - NEC
01/10/2021,CHERTSEY NURSERY,Wilks Head & Eve,Rates,3925,Individual - NEC
01/10/2021,STEPGATES COMM SCH,Wilks Head & Eve,Rates,1715,Individual - NEC
01/10/2021,CRANLEIGH CE VC PRIM,Wilks Head & Eve,Rates,361,Individual - NEC
01/10/2021,GLEBELANDS,Wilks Head & Eve,Rates,8619,Individual - NEC
01/10/2021,CRANLEIGH LIB,Wilks Head & Eve,Rates,1008,Individual - NEC
01/10/2021,POWELL-CORDEROY PRY,Wilks Head & Eve,Rates,2517,Individual - NEC
01/10/2021,ST MARTINS CEP DORK,Wilks Head & Eve,Rates,2100,Individual - NEC
01/10/2021,THE DORKING CENTRE,Wilks Head & Eve,Rates,341,Individual - NEC
01/10/2021,MALTHOUSE YC D'KING,Wilks Head & Eve,Rates,416,Individual - NEC
01/10/2021,FELBRIDGE PRY,Wilks Head & Eve,Rates,2517,Individual - NEC
01/10/2021,ST LAWRENCE CE E MOL,Wilks Head & Eve,Rates,939,Individual - NEC
01/10/2021,MOLESEY LIB,Wilks Head & Eve,Rates,821,Individual - NEC
01/10/2021,ST JUDES CE SCHOOL,Wilks Head & Eve,Rates,546,Individual - NEC
01/10/2021,RIVERVIEW CEP,Wilks Head & Eve,Rates,384,Individual - NEC
01/10/2021,SOUTHFIELD PARK,Wilks Head & Eve,Rates,3179,Individual - NEC
01/10/2021,CRANMERE PRY ESHER,Wilks Head & Eve,Rates,6101,Individual - NEC
01/10/2021,FOLLY HILL INF,Wilks Head & Eve,Rates,925,Individual - NEC
01/10/2021,ST PAULS CEI TONG,Wilks Head & Eve,Rates,1060,Individual - NEC
01/10/2021,FARNHAM AEI WEST ST,Wilks Head & Eve,Rates,1601,Individual - NEC
01/10/2021,RENTWOOD,Wilks Head & Eve,Rates,314,Individual - NEC
01/10/2021,GODALMING SSC,Wilks Head & Eve,Rates,1225,Individual - NEC
01/10/2021,BUSBRIDGE CEJ,Wilks Head & Eve,Rates,390,Individual - NEC
01/10/2021,GODALMING JUN,Wilks Head & Eve,Rates,252,Individual - NEC
01/10/2021,GUILDFORD AEI,Wilks Head & Eve,Rates,2539,Individual - NEC
01/10/2021,WEST HOUSE COMPLEX,Wilks Head & Eve,Rates,1019,Individual - NEC
01/10/2021,BRAMLEY LIB,Wilks Head & Eve,Rates,863,Individual - NEC
01/10/2021,GUILDFORD FIRE STN,Wilks Head & Eve,Rates,4454,Individual - NEC
01/10/2021,PARK HOUSE SHALFORD,Wilks Head & Eve,Rates,2197,Individual - NEC
01/10/2021,ARTINGTON HOUSE,Wilks Head & Eve,Rates,2006,Individual - NEC
01/10/2021,SHAWFIELD PRY,Wilks Head & Eve,Rates,1747,Individual - NEC
01/10/2021,WEST HOUSE COMPLEX,Wilks Head & Eve,Rates,6571,Individual - NEC
01/10/2021,TILLINGBOURNE JUN,Wilks Head & Eve,Rates,2944,Individual - NEC
01/10/2021,WONERSH&SHAM GN CEP,Wilks Head & Eve,Rates,262,Individual - NEC
01/10/2021,HASLEMERE FIRE STN,Wilks Head & Eve,Rates,1819,Individual - NEC
01/10/2021,LANGSHOTT PRIMARY,Wilks Head & Eve,Rates,3904,Individual - NEC
01/10/2021,FMR HORLEY LIBRARY,Wilks Head & Eve,Rates,998,Individual - NEC
01/10/2021,MEATH GREEN INF,Wilks Head & Eve,Rates,1549,Individual - NEC
01/10/2021,TRINITY OAKS CE PRIM,Wilks Head & Eve,Rates,399,Individual - NEC
01/10/2021,FAIRMOUNT HOUSE,Wilks Head & Eve,Rates,22400,Individual - NEC
01/10/2021,POLESDEN LACEY INF,Wilks Head & Eve,Rates,1081,Individual - NEC
01/10/2021,DORMANSLAND PRY,Wilks Head & Eve,Rates,2100,Individual - NEC
01/10/2021,OXTED LIB,Wilks Head & Eve,Rates,1081,Individual - NEC
01/10/2021,EARLSWOOD INF&JUN,Wilks Head & Eve,Rates,2709,Individual - NEC
01/10/2021,REDHILL LIB (NEW),Wilks Head & Eve,Rates,4693,Individual - NEC
01/10/2021,NUTFIELD CHURCH CEP,Wilks Head & Eve,Rates,369,Individual - NEC
01/10/2021,PRIMARY DATA CENTRE,Wilks Head & Eve,Rates,1216,Individual - NEC
01/10/2021,PERM SURPLUS NON-RES,Wilks Head & Eve,Rates,322,Individual - NEC
01/10/2021,ROYAL ALEX & ALBERT,Wilks Head & Eve,Rates,1937,Individual - NEC
01/10/2021,THAMES YG MARINERS,Wilks Head & Eve,Rates,1591,Individual - NEC
01/10/2021,SHEPPERTON LIB,Wilks Head & Eve,Rates,447,Individual - NEC
01/10/2021,61 STAINES HIGH ST,Wilks Head & Eve,Rates,619,Individual - NEC
01/10/2021,HYTHE SCHOOL,Wilks Head & Eve,Rates,4096,Individual - NEC
01/10/2021,LALEHAM CEP,Wilks Head & Eve,Rates,533,Individual - NEC
01/10/2021,STANWELL LIB (NEW),Wilks Head & Eve,Rates,541,Individual - NEC
01/10/2021,STAINES YTH SPTS CTR,Wilks Head & Eve,Rates,634,Individual - NEC
01/10/2021,STAINES FIRE STATION,Wilks Head & Eve,Rates,2411,Individual - NEC
01/10/2021,THAMES DITTON INF,Wilks Head & Eve,Rates,414,Individual - NEC
01/10/2021,NE SHORT STAY SCH,Wilks Head & Eve,Rates,1060,Individual - NEC
01/10/2021,WALTON FIRE STATION,Wilks Head & Eve,Rates,3462,Individual - NEC
01/10/2021,HURST PARK PRY,Wilks Head & Eve,Rates,5760,Individual - NEC
01/10/2021,ONGAR PLACE PRIMARY,Wilks Head & Eve,Rates,2069,Individual - NEC
01/10/2021,ST JAMES CEP WEYB,Wilks Head & Eve,Rates,4160,Individual - NEC
01/10/2021,ST MARYS CEP BYF,Wilks Head & Eve,Rates,3136,Individual - NEC
01/10/2021,PUBLIC LIB OFFS WEYB,Wilks Head & Eve,Rates,749,Individual - NEC
01/10/2021,ST LAWRENCE CEJ CHOB,Wilks Head & Eve,Rates,529,Individual - NEC
01/10/2021,HORSELL CEJ,Wilks Head & Eve,Rates,640,Individual - NEC
01/10/2021,ST DUNSTANS CATH PRY,Wilks Head & Eve,Rates,751,Individual - NEC
01/10/2021,SHAW FC,Wilks Head & Eve,Rates,250,Individual - NEC
01/10/2021,WOKING FIRE STATION,Wilks Head & Eve,Rates,6485,Individual - NEC
01/10/2021,BOOKHAM YOUTH CENTRE,Wilks Head & Eve,Rates,367,Individual - NEC
01/10/2021,WOODHATCH,Wilks Head & Eve,Rates,74667,Individual - NEC
01/10/2021,NULL,Winston Churchill School,NULL,70517,Schools
01/10/2021,OAKLANDS BALFOUR AVE,Woking Borough Council,Rates,904,Grants-Member Allocs
01/10/2021,MAYFORD CENTRE-BUS,Woking Borough Council,Rates,255,Grants-Member Allocs
01/10/2021,WOKING HIGH-ACAD,Woking Borough Council,Attachment of Earnings etc.,324.21,Grants-Member Allocs
01/10/2021,OAKLANDS BALFOUR AVE,Woking Borough Council,Rates,255,Grants-Member Allocs
01/10/2021,NULL,Yattendon Junior School,NULL,7550,Schools
01/10/2021,NULL,Yattendon Junior School,NULL,60039,Schools
04/10/2021,EIF 3 & 4 YR OLD,Aberdour School,Third Party Payments-Other Agencies,381.5,Schools
04/10/2021,NULL,ACD Environmental Ltd,NULL,360,Estates Mgt Services
04/10/2021,EPSOM & EWELL CARE P,Active Assistance,Home Base Care,2651.76,Supp Living - MH
04/10/2021,EPSOM & EWELL CARE P,Active Assistance,Home Base Care,2831.38,Supp Living - MH
04/10/2021,NULL,Aecom Ltd,NULL,900,M-D (Property)
04/10/2021,WAVERLEY CARE OP,Agincare Group Ltd,Home Base Care,555.8,Dom Care - Adults
04/10/2021,WAVERLEY CARE OP,Agincare Group Ltd,Home Base Care,808.36,Dom Care - Adults
04/10/2021,WAVERLEY CARE PD,Agincare Group Ltd,Home Base Care,714.56,Dom Care - Adults
04/10/2021,WAVERLEY CARE OP,Agincare Group Ltd,Home Base Care,423.88,Dom Care - Adults
04/10/2021,WAVERLEY CARE OP,Agincare Group Ltd,Home Base Care,505.26,Dom Care - Adults
04/10/2021,EPSOM & EWELL CARE P,Alina Homecare Specialist - Surrey,Supported Living,7052.4,Residential - OP
04/10/2021,EPSOM & EWELL CARE P,Alina Homecare Specialist - Surrey,Supported Living,7052.4,Residential - OP
04/10/2021,LD-AUT CNTR TM CARE,Alina Homecare Specialist - Surrey,Supported Living,4148.48,Residential - OP
04/10/2021,LD-AUT CNTR TM CARE,Alina Homecare Specialist - Surrey,Supported Living,4148.48,Residential - OP
04/10/2021,LD-AUT CNTR TM CARE,Alina Homecare Specialist - Surrey,Supported Living,4148.48,Residential - OP
04/10/2021,LD-AUT CNTR TM CARE,Alina Homecare Specialist - Surrey,Other Community Care,1177.68,Residential - OP
04/10/2021,LD-AUT CNTR TM CARE,Alina Homecare Specialist - Surrey,Supported Living,4956.46,Residential - OP
04/10/2021,LD-AUT CNTR TM CARE,Alina Homecare Specialist - Surrey,Supported Living,5651.8,Residential - OP
04/10/2021,LD-AUT CNTR TM CARE,Alina Homecare Specialist - Surrey,Other Community Care,1303.86,Residential - OP
04/10/2021,LD-AUT CNTR TM CARE,Alina Homecare Specialist - Surrey,Other Community Care,252.36,Residential - OP
04/10/2021,LD-AUT CNTR TM CARE,Alina Homecare Specialist - Surrey,Supported Living,4169,Residential - OP
04/10/2021,WAVERLEY CARE PD,Alina Homecare Specialist - Surrey,Other Community Care,336.48,Residential - OP
04/10/2021,LD-AUT CNTR TM CARE,Alina Homecare Specialist - Surrey,Other Community Care,420.6,Residential - OP
04/10/2021,LD-AUT CNTR TM CARE,Alina Homecare Specialist - Surrey,Other Community Care,1261.8,Residential - OP
04/10/2021,LD-AUT CNTR TM CARE,Alina Homecare Specialist - Surrey,Other Community Care,1177.68,Residential - OP
04/10/2021,LD-AUT CNTR TM CARE,Alina Homecare Specialist - Surrey,Other Community Care,1261.8,Residential - OP
04/10/2021,LD-AUT CNTR TM CARE,Alina Homecare Specialist - Surrey,Other Community Care,588.84,Residential - OP
04/10/2021,LD-AUT CNTR TM CARE,Alina Homecare Specialist - Surrey,Other Community Care,546.78,Residential - OP
04/10/2021,LD-AUT CNTR TM CARE,Alina Homecare Specialist - Surrey,Other Community Care,2691.84,Residential - OP
04/10/2021,LD-AUT CNTR TM CARE,Alina Homecare Specialist - Surrey,Other Community Care,757.08,Residential - OP
04/10/2021,LD-AUT CNTR TM CARE,Alina Homecare Specialist - Surrey,Other Community Care,630.9,Residential - OP
04/10/2021,LD-AUT CNTR TM CARE,Alina Homecare Specialist - Surrey,Other Community Care,378.54,Residential - OP
04/10/2021,LD-AUT CNTR TM CARE,Alina Homecare Specialist - Surrey,Other Community Care,1808.58,Residential - OP
04/10/2021,LD-AUT CNTR TM CARE,Alina Homecare Specialist - Surrey,Other Community Care,420.6,Residential - OP
04/10/2021,LD-AUT CNTR TM CARE,Alina Homecare Specialist - Surrey,Other Community Care,336.48,Residential - OP
04/10/2021,LD-AUT CNTR TM CARE,Alina Homecare Specialist - Surrey,Other Community Care,420.6,Residential - OP
04/10/2021,ELMBRIDGE CARE OP,Alpenbest Ltd,Home Base Care,463.54,Dom Care - Adults
04/10/2021,WOKING CARE OP,Alpenbest Ltd,Home Base Care,287.43,Dom Care - Adults
04/10/2021,WOKING CARE OP,Alpenbest Ltd,Home Base Care,323.68,Dom Care - Adults
04/10/2021,SPELTHORNE CARE OP,Alpenbest Ltd,Home Base Care,1118.88,Dom Care - Adults
04/10/2021,WOKING CARE OP,Alpenbest Ltd,Home Base Care,1338.36,Dom Care - Adults
04/10/2021,WOKING CARE OP,Alpenbest Ltd,Home Base Care,603.4,Dom Care - Adults
04/10/2021,ELMBRIDGE CARE OP,Alpenbest Ltd,Home Base Care,392.53,Dom Care - Adults
04/10/2021,ELMBRIDGE CARE OP,Alpenbest Ltd,Home Base Care,1025.36,Dom Care - Adults
04/10/2021,RUNNYMEDE CARE OP,Alpenbest Ltd,Home Base Care,578.28,Dom Care - Adults
04/10/2021,ELMBRIDGE CARE OP,Alpenbest Ltd,Home Base Care,323.68,Dom Care - Adults
04/10/2021,EPSOM & EWELL CARE O,Alpenbest Ltd,Home Base Care,1118.88,Dom Care - Adults
04/10/2021,SPELTHORNE CARE OP,Alpenbest Ltd,Home Base Care,323.68,Dom Care - Adults
04/10/2021,SPELTHORNE CARE OP,Alpenbest Ltd,Home Base Care,603.4,Dom Care - Adults
04/10/2021,EPSOM & EWELL CARE O,Alpenbest Ltd,Home Base Care,436.22,Dom Care - Adults
04/10/2021,WOKING CARE PD,Alpenbest Ltd,Home Base Care,1186.82,Dom Care - Adults
04/10/2021,SPELTHORNE CARE OP,Alpenbest Ltd,Home Base Care,419.58,Dom Care - Adults
04/10/2021,RUNNYMEDE CARE OP,Alpenbest Ltd,Home Base Care,463.54,Dom Care - Adults
04/10/2021,EPSOM & EWELL CARE O,Alpenbest Ltd,Home Base Care,1538.04,Dom Care - Adults
04/10/2021,LD-AUT CNTR TM CARE,Alpenbest Ltd,Home Base Care,332.8,Dom Care - Adults
04/10/2021,RUNNYMEDE CARE PD,Alpenbest Ltd,Home Base Care,551.88,Dom Care - Adults
04/10/2021,SPELTHORNE CARE OP,Alpenbest Ltd,Home Base Care,839.16,Dom Care - Adults
04/10/2021,ELMBRIDGE CARE OP,Alpenbest Ltd,Home Base Care,313,Dom Care - Adults
04/10/2021,SPELTHORNE CARE OP,Alpenbest Ltd,Home Base Care,1206.8,Dom Care - Adults
04/10/2021,ELMBRIDGE CARE OP,Alpenbest Ltd,Home Base Care,745.64,Dom Care - Adults
04/10/2021,LD-AUT CNTR TM CARE,Alpenbest Ltd,Home Base Care,677.78,Dom Care - Adults
04/10/2021,ELMBRIDGE CARE OP,Alpenbest Ltd,Home Base Care,319.28,Dom Care - Adults
04/10/2021,ELMBRIDGE CARE PD,Alpenbest Ltd,Home Base Care,614.88,Dom Care - Adults
04/10/2021,SPELTHORNE CARE OP,Alpenbest Ltd,Home Base Care,409.59,Dom Care - Adults
04/10/2021,SPELTHORNE CARE OP,Alpenbest Ltd,Home Base Care,323.68,Dom Care - Adults
04/10/2021,SPELTHORNE CARE OP,Alpenbest Ltd,Home Base Care,556.64,Dom Care - Adults
04/10/2021,ELMBRIDGE CARE OP,Alpenbest Ltd,Home Base Care,279.72,Dom Care - Adults
04/10/2021,RUNNYMEDE CARE OP,Alpenbest Ltd,Home Base Care,492.71,Dom Care - Adults
04/10/2021,WOKING CARE OP,Alpenbest Ltd,Home Base Care,603.4,Dom Care - Adults
04/10/2021,REIGATE & BD CARE PD,Alpenbest Ltd,Home Base Care,5023.2,Dom Care - Adults
04/10/2021,ELMBRIDGE CARE OP,Alpenbest Ltd,Home Base Care,463.54,Dom Care - Adults
04/10/2021,REIGATE & BD CARE OP,Alpenbest Ltd,Home Base Care,371.7,Dom Care - Adults
04/10/2021,SPELTHORNE CARE OP,Alpenbest Ltd,Home Base Care,399.6,Dom Care - Adults
04/10/2021,SPELTHORNE CARE OP,Alpenbest Ltd,Home Base Care,462.6,Dom Care - Adults
04/10/2021,SPELTHORNE CARE OP,Alpenbest Ltd,Home Base Care,559.44,Dom Care - Adults
04/10/2021,WOKING CARE OP,Alpenbest Ltd,Home Base Care,279.72,Dom Care - Adults
04/10/2021,SPELTHORNE CARE OP,Alpenbest Ltd,Home Base Care,839.16,Dom Care - Adults
04/10/2021,WOKING CARE OP,Alpenbest Ltd,Home Base Care,1206.8,Dom Care - Adults
04/10/2021,REIGATE & BD CARE OP,Alpenbest Ltd,Home Base Care,1025.36,Dom Care - Adults
04/10/2021,EPSOM & EWELL CARE O,Alpenbest Ltd,Home Base Care,1206.8,Dom Care - Adults
04/10/2021,WOKING CARE OP,Alpenbest Ltd,Home Base Care,463.54,Dom Care - Adults
04/10/2021,RUNNYMEDE CARE OP,Alpenbest Ltd,Home Base Care,419.49,Dom Care - Adults
04/10/2021,ELMBRIDGE CARE OP,Alpenbest Ltd,Home Base Care,331.1,Dom Care - Adults
04/10/2021,WOKING CARE OP,Alpenbest Ltd,Home Base Care,379.62,Dom Care - Adults
04/10/2021,SPELTHORNE CARE OP,Alpenbest Ltd,Home Base Care,279.72,Dom Care - Adults
04/10/2021,WOKING CARE OP,Alpenbest Ltd,Home Base Care,736.19,Dom Care - Adults
04/10/2021,ELMBRIDGE CARE OP,Alpenbest Ltd,Home Base Care,559.44,Dom Care - Adults
04/10/2021,WOKING CARE OP,Alpenbest Ltd,Home Base Care,419.37,Dom Care - Adults
04/10/2021,ELMBRIDGE CARE OP,Alpenbest Ltd,Home Base Care,419.58,Dom Care - Adults
04/10/2021,RUNNYMEDE CARE PD,Alpenbest Ltd,Home Base Care,1793.96,Dom Care - Adults
04/10/2021,REIGATE & BD CARE OP,Alpenbest Ltd,Home Base Care,1118.88,Dom Care - Adults
04/10/2021,SPELTHORNE CARE OP,Alpenbest Ltd,Home Base Care,592.72,Dom Care - Adults
04/10/2021,SPELTHORNE CARE OP,Alpenbest Ltd,Home Base Care,323.68,Dom Care - Adults
04/10/2021,WOKING CARE OP,Alpenbest Ltd,Home Base Care,530.1,Dom Care - Adults
04/10/2021,SPELTHORNE CARE OP,Alpenbest Ltd,Home Base Care,1206.8,Dom Care - Adults
04/10/2021,WOKING CARE OP,Alpenbest Ltd,Home Base Care,603.4,Dom Care - Adults
04/10/2021,SPELTHORNE CARE OP,Alpenbest Ltd,Home Base Care,1206.8,Dom Care - Adults
04/10/2021,SPELTHORNE CARE OP,Alpenbest Ltd,Home Base Care,1206.8,Dom Care - Adults
04/10/2021,ELMBRIDGE CARE PD,Alpenbest Ltd,Home Base Care,1265.12,Dom Care - Adults
04/10/2021,ELMBRIDGE CARE OP,Alpenbest Ltd,Home Base Care,512.68,Dom Care - Adults
04/10/2021,SPELTHORNE CARE PD,Alpenbest Ltd,Home Base Care,1336.12,Dom Care - Adults
04/10/2021,ELMBRIDGE CARE OP,Alpenbest Ltd,Home Base Care,391.22,Dom Care - Adults
04/10/2021,ELMBRIDGE CARE PD,Alpenbest Ltd,Home Base Care,1502.32,Dom Care - Adults
04/10/2021,ELMBRIDGE CARE PD,Alpenbest Ltd,Home Base Care,366.2,Dom Care - Adults
04/10/2021,SPELTHORNE CARE OP,Alpenbest Ltd,Home Base Care,1015,Dom Care - Adults
04/10/2021,WOKING CARE OP,Alpenbest Ltd,Home Base Care,310.55,Dom Care - Adults
04/10/2021,ELMBRIDGE CARE OP,Alpenbest Ltd,Home Base Care,1111.04,Dom Care - Adults
04/10/2021,WOKING CARE OP,Alpenbest Ltd,Home Base Care,1256.72,Dom Care - Adults
04/10/2021,WOKING CARE OP,Alpenbest Ltd,Home Base Care,298.56,Dom Care - Adults
04/10/2021,WOKING CARE OP,Alpenbest Ltd,Home Base Care,1386.7,Dom Care - Adults
04/10/2021,WOKING CARE PD,Alpenbest Ltd,Home Base Care,603.4,Dom Care - Adults
04/10/2021,SPELTHORNE CARE OP,Alpenbest Ltd,Home Base Care,1206.8,Dom Care - Adults
04/10/2021,RUNNYMEDE CARE OP,Alpenbest Ltd,Home Base Care,691.32,Dom Care - Adults
04/10/2021,REIGATE & BD CARE OP,Alpenbest Ltd,Home Base Care,419.58,Dom Care - Adults
04/10/2021,WOKING CARE OP,Alpenbest Ltd,Home Base Care,663.22,Dom Care - Adults
04/10/2021,ELMBRIDGE CARE PD,Alpenbest Ltd,Home Base Care,603.4,Dom Care - Adults
04/10/2021,RUNNYMEDE CARE OP,Alpenbest Ltd,Home Base Care,1495,Dom Care - Adults
04/10/2021,WOKING CARE OP,Alpenbest Ltd,Home Base Care,279.72,Dom Care - Adults
04/10/2021,ELMBRIDGE CARE OP,Alpenbest Ltd,Home Base Care,463.54,Dom Care - Adults
04/10/2021,WOKING CARE OP,Alpenbest Ltd,Home Base Care,559.44,Dom Care - Adults
04/10/2021,WOKING CARE PD,Alpenbest Ltd,Home Base Care,837.2,Dom Care - Adults
04/10/2021,RUNNYMEDE CARE OP,Alpenbest Ltd,Home Base Care,323.68,Dom Care - Adults
04/10/2021,SPELTHORNE CARE OP,Alpenbest Ltd,Home Base Care,463.54,Dom Care - Adults
04/10/2021,ELMBRIDGE CARE PD,Alpenbest Ltd,Home Base Care,1255.94,Dom Care - Adults
04/10/2021,WOKING CARE PD,Alpenbest Ltd,Home Base Care,463.54,Dom Care - Adults
04/10/2021,SPELTHORNE CARE OP,Alpenbest Ltd,Home Base Care,603.4,Dom Care - Adults
04/10/2021,WOKING CARE OP,Alpenbest Ltd,Home Base Care,1206.8,Dom Care - Adults
04/10/2021,REIGATE & BD CARE PD,Alpenbest Ltd,Home Base Care,1305.08,Dom Care - Adults
04/10/2021,SPELTHORNE CARE OP,Alpenbest Ltd,Home Base Care,1635.4,Dom Care - Adults
04/10/2021,SPELTHORNE CARE OP,Alpenbest Ltd,Home Base Care,432.88,Dom Care - Adults
04/10/2021,REIGATE & BD CARE OP,Alpenbest Ltd,Home Base Care,1206.8,Dom Care - Adults
04/10/2021,SPELTHORNE CARE PD,Alpenbest Ltd,Home Base Care,323.68,Dom Care - Adults
04/10/2021,REIGATE & BD CARE OP,Alpenbest Ltd,Home Base Care,439.38,Dom Care - Adults
04/10/2021,SPELTHORNE CARE PD,Alpenbest Ltd,Home Base Care,473.7,Dom Care - Adults
04/10/2021,SPELTHORNE CARE OP,Alpenbest Ltd,Home Base Care,1801.8,Dom Care - Adults
04/10/2021,SPELTHORNE CARE OP,Alpenbest Ltd,Home Base Care,1206.8,Dom Care - Adults
04/10/2021,WOKING CARE OP,Alpenbest Ltd,Home Base Care,346.28,Dom Care - Adults
04/10/2021,WOKING CARE OP,Alpenbest Ltd,Home Base Care,452.86,Dom Care - Adults
04/10/2021,REIGATE & BD CARE OP,Alpenbest Ltd,Home Base Care,603.4,Dom Care - Adults
04/10/2021,EPSOM & EWELL CARE P,Alpenbest Ltd,Home Base Care,1211.98,Dom Care - Adults
04/10/2021,RUNNYMEDE CARE OP,Alpenbest Ltd,Home Base Care,323.68,Dom Care - Adults
04/10/2021,RUNNYMEDE CARE OP,Alpenbest Ltd,Home Base Care,1015,Dom Care - Adults
04/10/2021,WOKING CARE OP,Alpenbest Ltd,Home Base Care,392.18,Dom Care - Adults
04/10/2021,WOKING CARE OP,Alpenbest Ltd,Home Base Care,367.64,Dom Care - Adults
04/10/2021,SPELTHORNE CARE OP,Alpenbest Ltd,Home Base Care,568.01,Dom Care - Adults
04/10/2021,ELMBRIDGE CARE PD,Alpenbest Ltd,Home Base Care,506,Dom Care - Adults
04/10/2021,SPELTHORNE CARE PD,Alpenbest Ltd,Home Base Care,331.1,Dom Care - Adults
04/10/2021,WOKING CARE OP,Alpenbest Ltd,Home Base Care,1206.8,Dom Care - Adults
04/10/2021,WOKING CARE PD,Alpenbest Ltd,Home Base Care,419.58,Dom Care - Adults
04/10/2021,SPELTHORNE CARE OP,Alpenbest Ltd,Home Base Care,1206.8,Dom Care - Adults
04/10/2021,MOLE VALLEY CARE PD,Alpenbest Ltd,Home Base Care,465.62,Dom Care - Adults
04/10/2021,GUILDFORD CARE OP,Alpenbest Ltd,Home Base Care,601.12,Dom Care - Adults
04/10/2021,GUILDFORD CARE OP,Alpenbest Ltd,Home Base Care,1317.96,Dom Care - Adults
04/10/2021,GUILDFORD CARE OP,Alpenbest Ltd,Home Base Care,506.24,Dom Care - Adults
04/10/2021,GUILDFORD CARE OP,Alpenbest Ltd,Home Base Care,341.84,Dom Care - Adults
04/10/2021,REIGATE & BD CARE PD,Alpenbest Ltd,Home Base Care,2302.3,Dom Care - Adults
04/10/2021,SURREY HEATH CARE OP,Alpenbest Ltd,Home Base Care,429.08,Dom Care - Adults
04/10/2021,WOKING CARE OP,Alpenbest Ltd,Home Base Care,647.36,Dom Care - Adults
04/10/2021,RUNNYMEDE CARE OP,Alpenbest Ltd,Home Base Care,784.42,Dom Care - Adults
04/10/2021,EPSOM & EWELL CARE O,Alpenbest Ltd,Home Base Care,329.67,Dom Care - Adults
04/10/2021,EPSOM & EWELL CARE P,Alpenbest Ltd,Home Base Care,665.6,Dom Care - Adults
04/10/2021,GUILDFORD CARE OP,Alpenbest Ltd,Home Base Care,658.98,Dom Care - Adults
04/10/2021,GUILDFORD CARE OP,Alpenbest Ltd,Home Base Care,610.96,Dom Care - Adults
04/10/2021,GUILDFORD CARE OP,Alpenbest Ltd,Home Base Care,1013.04,Dom Care - Adults
04/10/2021,LD-AUT CNTR TM CARE,Alpenbest Ltd,Home Base Care,545.4,Dom Care - Adults
04/10/2021,LD-AUT CNTR TM CARE,Alpenbest Ltd,Home Base Care,563.6,Dom Care - Adults
04/10/2021,LD-AUT CNTR TM CARE,Alpenbest Ltd,Home Base Care,545.4,Dom Care - Adults
04/10/2021,GUILDFORD CARE OP,Alpenbest Ltd,Home Base Care,560,Dom Care - Adults
04/10/2021,MOLE VALL CMHRS CARE,Alpenbest Ltd,Home Base Care,320.02,Dom Care - Adults
04/10/2021,GUILDFORD CARE OP,Alpenbest Ltd,Home Base Care,353.5,Dom Care - Adults
04/10/2021,WOKING CARE OP,Alpenbest Ltd,Home Base Care,948.2,Dom Care - Adults
04/10/2021,WOKING CARE OP,Alpenbest Ltd,Home Base Care,417.64,Dom Care - Adults
04/10/2021,ELMBRIDGE CARE OP,Alpenbest Ltd,Home Base Care,463.54,Dom Care - Adults
04/10/2021,RUNNYMEDE CARE OP,Alpenbest Ltd,Home Base Care,323.68,Dom Care - Adults
04/10/2021,ELMBRIDGE CARE OP,Alpenbest Ltd,Home Base Care,399.36,Dom Care - Adults
04/10/2021,SPELTHORNE CARE OP,Alpenbest Ltd,Home Base Care,463.54,Dom Care - Adults
04/10/2021,SPELTHORNE CARE OP,Alpenbest Ltd,Home Base Care,735.28,Dom Care - Adults
04/10/2021,SPELTHORNE CARE OP,Alpenbest Ltd,Home Base Care,463.54,Dom Care - Adults
04/10/2021,SPELTHORNE CARE OP,Alpenbest Ltd,Home Base Care,463.54,Dom Care - Adults
04/10/2021,WOKING CARE OP,Alpenbest Ltd,Home Base Care,555.52,Dom Care - Adults
04/10/2021,WOKING CARE OP,Alpenbest Ltd,Home Base Care,279.72,Dom Care - Adults
04/10/2021,WOKING CARE OP,Alpenbest Ltd,Home Base Care,610.42,Dom Care - Adults
04/10/2021,ELMBRIDGE CARE OP,Alpenbest Ltd,Home Base Care,298.4,Dom Care - Adults
04/10/2021,SPELTHORNE CARE OP,Alpenbest Ltd,Home Base Care,463.54,Dom Care - Adults
04/10/2021,GUILDFORD CARE OP,Alpenbest Ltd,Home Base Care,1963.5,Dom Care - Adults
04/10/2021,EPSOM & EWELL CARE O,Alpenbest Ltd,Home Base Care,1963.5,Dom Care - Adults
04/10/2021,EPSOM & EWELL CARE O,Alpenbest Ltd,Home Base Care,502.72,Dom Care - Adults
04/10/2021,SPELTHORNE CARE OP,Alpenbest Ltd,Home Base Care,419.58,Dom Care - Adults
04/10/2021,SPELTHORNE CARE PD,Alpenbest Ltd,Home Base Care,347.86,Dom Care - Adults
04/10/2021,EPSOM & EWELL CARE P,Alpenbest Ltd,Home Base Care,465.92,Dom Care - Adults
04/10/2021,SPELTHORNE CARE OP,Alpenbest Ltd,Home Base Care,1220.84,Dom Care - Adults
04/10/2021,REIGATE & BD CARE OP,Alpenbest Ltd,Home Base Care,1140.58,Dom Care - Adults
04/10/2021,WOKING CARE OP,Alpenbest Ltd,Home Base Care,416.78,Dom Care - Adults
04/10/2021,ELMBRIDGE CARE OP,Alpenbest Ltd,Home Base Care,658.61,Dom Care - Adults
04/10/2021,WOKING CARE PD,Alpenbest Ltd,Home Base Care,360.3,Dom Care - Adults
04/10/2021,SPELTHORNE CARE OP,Alpenbest Ltd,Home Base Care,565.72,Dom Care - Adults
04/10/2021,SPELTHORNE CARE OP,Alpenbest Ltd,Home Base Care,415.66,Dom Care - Adults
04/10/2021,SPELTHORNE CARE OP,Alpenbest Ltd,Home Base Care,507.5,Dom Care - Adults
04/10/2021,SPELTHORNE CARE OP,Alpenbest Ltd,Home Base Care,1491.26,Dom Care - Adults
04/10/2021,SPELTHORNE CARE OP,Alpenbest Ltd,Home Base Care,349.65,Dom Care - Adults
04/10/2021,SPELTHORNE CARE OP,Alpenbest Ltd,Home Base Care,407.6,Dom Care - Adults
04/10/2021,RUNNYMEDE CARE PD,Alpenbest Ltd,Home Base Care,1347.92,Dom Care - Adults
04/10/2021,ELMBRIDGE CARE OP,Alpenbest Ltd,Home Base Care,279.72,Dom Care - Adults
04/10/2021,SPELTHORNE CARE OP,Alpenbest Ltd,Home Base Care,1294.72,Dom Care - Adults
04/10/2021,ELMBRIDGE CARE PD,Alpenbest Ltd,Home Base Care,323.68,Dom Care - Adults
04/10/2021,SPELTHORNE CARE OP,Alpenbest Ltd,Home Base Care,530.1,Dom Care - Adults
04/10/2021,LD-AUT CNTR TM CARE,Alpenbest Ltd,Home Base Care,266.24,Dom Care - Adults
04/10/2021,LD-AUT CNTR TM CARE,Alpenbest Ltd,Home Base Care,435.71,Dom Care - Adults
04/10/2021,SPELTHORNE CARE OP,Alpenbest Ltd,Home Base Care,652.54,Dom Care - Adults
04/10/2021,WOKING CARE OP,Alpenbest Ltd,Home Base Care,1206.8,Dom Care - Adults
04/10/2021,WOKING CARE OP,Alpenbest Ltd,Home Base Care,323.68,Dom Care - Adults
04/10/2021,WOKING CARE OP,Alpenbest Ltd,Home Base Care,701.7,Dom Care - Adults
04/10/2021,SPELTHORNE CARE OP,Alpenbest Ltd,Home Base Care,927.08,Dom Care - Adults
04/10/2021,WOKING CARE OP,Alpenbest Ltd,Home Base Care,250.38,Dom Care - Adults
04/10/2021,WOKING CARE OP,Alpenbest Ltd,Home Base Care,259.74,Dom Care - Adults
04/10/2021,WOKING CARE OP,Alpenbest Ltd,Home Base Care,496.82,Dom Care - Adults
04/10/2021,SPELTHORNE CARE OP,Alpenbest Ltd,Home Base Care,1206.8,Dom Care - Adults
04/10/2021,ELMBRIDGE CARE OP,Alpenbest Ltd,Home Base Care,512.68,Dom Care - Adults
04/10/2021,SPELTHORNE CARE OP,Alpenbest Ltd,Home Base Care,556.78,Dom Care - Adults
04/10/2021,RUNNYMEDE CARE PD,Alpenbest Ltd,Home Base Care,488.1,Dom Care - Adults
04/10/2021,SPELTHORNE CARE OP,Alpenbest Ltd,Home Base Care,603.4,Dom Care - Adults
04/10/2021,RUNNYMEDE CARE PD,Alpenbest Ltd,Home Base Care,293.02,Dom Care - Adults
04/10/2021,WOKING CARE OP,Alpenbest Ltd,Home Base Care,323.68,Dom Care - Adults
04/10/2021,ELMBRIDGE CARE OP,Alpenbest Ltd,Home Base Care,612.98,Dom Care - Adults
04/10/2021,RUNNYMEDE CARE OP,Alpenbest Ltd,Home Base Care,685.82,Dom Care - Adults
04/10/2021,ELMBRIDGE CARE PD,Alpenbest Ltd,Home Base Care,588.8,Dom Care - Adults
04/10/2021,ELMBRIDGE CARE PD,Alpenbest Ltd,Home Base Care,837.2,Dom Care - Adults
04/10/2021,WOKING CARE OP,Alpenbest Ltd,Home Base Care,419.58,Dom Care - Adults
04/10/2021,WOKING CARE OP,Alpenbest Ltd,Home Base Care,463.54,Dom Care - Adults
04/10/2021,ELMBRIDGE CARE OP,Alpenbest Ltd,Home Base Care,323.68,Dom Care - Adults
04/10/2021,WOKING CARE PD,Alpenbest Ltd,Home Base Care,889.54,Dom Care - Adults
04/10/2021,MOLE VALLEY CARE PD,Alpenbest Ltd,Home Base Care,814.52,Dom Care - Adults
04/10/2021,GUILDFORD CARE PD,Alpenbest Ltd,Home Base Care,353.5,Dom Care - Adults
04/10/2021,GUILDFORD CARE OP,Alpenbest Ltd,Home Base Care,610.96,Dom Care - Adults
04/10/2021,GUILDFORD CARE OP,Alpenbest Ltd,Home Base Care,1038.6,Dom Care - Adults
04/10/2021,GUILDFORD CARE PD,Alpenbest Ltd,Home Base Care,305.48,Dom Care - Adults
04/10/2021,WAVERLEY CARE PD,Alpenbest Ltd,Home Base Care,254.52,Dom Care - Adults
04/10/2021,GUILDFORD CARE OP,Alpenbest Ltd,Home Base Care,433.92,Dom Care - Adults
04/10/2021,ELMBRIDGE CARE PD,Alpenbest Ltd,Home Base Care,1963.5,Dom Care - Adults
04/10/2021,REIGATE & BD CARE PD,Alpenbest Ltd,Home Base Care,679.08,Dom Care - Adults
04/10/2021,ELMBRIDGE CARE OP,Alpenbest Ltd,Home Base Care,425.86,Dom Care - Adults
04/10/2021,WOKING CARE OP,Alpenbest Ltd,Home Base Care,469.5,Dom Care - Adults
04/10/2021,SPELTHORNE CARE OP,Alpenbest Ltd,Home Base Care,367.92,Dom Care - Adults
04/10/2021,SPELTHORNE CARE OP,Alpenbest Ltd,Home Base Care,323.68,Dom Care - Adults
04/10/2021,LD-AUT CNTR TM CARE,Alpenbest Ltd,Home Base Care,555.52,Dom Care - Adults
04/10/2021,WOKING CARE OP,Alpenbest Ltd,Home Base Care,346.28,Dom Care - Adults
04/10/2021,EPSOM & EWELL CARE P,Alpenbest Ltd,Home Base Care,279.72,Dom Care - Adults
04/10/2021,SPELTHORNE CARE PD,Alpenbest Ltd,Home Base Care,323.68,Dom Care - Adults
04/10/2021,EPSOM & EWELL CARE O,Alpenbest Ltd,Home Base Care,1206.8,Dom Care - Adults
04/10/2021,SPELTHORNE CARE OP,Alpenbest Ltd,Home Base Care,486.71,Dom Care - Adults
04/10/2021,EPSOM & EWELL CARE O,Alpenbest Ltd,Home Base Care,1216.79,Dom Care - Adults
04/10/2021,SPELTHORNE CARE OP,Alpenbest Ltd,Home Base Care,593.41,Dom Care - Adults
04/10/2021,RUNNYMEDE CARE OP,Alpenbest Ltd,Home Base Care,323.68,Dom Care - Adults
04/10/2021,WOKING CARE OP,Alpenbest Ltd,Home Base Care,463.54,Dom Care - Adults
04/10/2021,ELMBRIDGE CARE OP,Alpenbest Ltd,Home Base Care,588.8,Dom Care - Adults
04/10/2021,WOKING CARE OP,Alpenbest Ltd,Home Base Care,372.82,Dom Care - Adults
04/10/2021,ELMBRIDGE CARE PD,Alpenbest Ltd,Home Base Care,603.4,Dom Care - Adults
04/10/2021,SPELTHORNE CARE OP,Alpenbest Ltd,Home Base Care,1305.08,Dom Care - Adults
04/10/2021,ELMBRIDGE CARE OP,Alpenbest Ltd,Home Base Care,346.28,Dom Care - Adults
04/10/2021,SPELTHORNE CARE OP,Alpenbest Ltd,Home Base Care,486.14,Dom Care - Adults
04/10/2021,ELMBRIDGE CARE OP,Alpenbest Ltd,Home Base Care,423.58,Dom Care - Adults
04/10/2021,RUNNYMEDE CARE OP,Alpenbest Ltd,Home Base Care,323.68,Dom Care - Adults
04/10/2021,WOKING CARE OP,Alpenbest Ltd,Home Base Care,323.68,Dom Care - Adults
04/10/2021,ELMBRIDGE CARE PD,Alpenbest Ltd,Home Base Care,556.64,Dom Care - Adults
04/10/2021,RUNNYMEDE CARE OP,Alpenbest Ltd,Home Base Care,477.58,Dom Care - Adults
04/10/2021,SPELTHORNE CARE OP,Alpenbest Ltd,Home Base Care,1206.8,Dom Care - Adults
04/10/2021,RUNNYMEDE CARE OP,Alpenbest Ltd,Home Base Care,1206.8,Dom Care - Adults
04/10/2021,RUNNYMEDE CARE OP,Alpenbest Ltd,Home Base Care,463.54,Dom Care - Adults
04/10/2021,SPELTHORNE CARE PD,Alpenbest Ltd,Home Base Care,1338.36,Dom Care - Adults
04/10/2021,SPELTHORNE CARE PD,Alpenbest Ltd,Home Base Care,927.08,Dom Care - Adults
04/10/2021,ELMBRIDGE CARE OP,Alpenbest Ltd,Home Base Care,555.52,Dom Care - Adults
04/10/2021,SPELTHORNE CARE PD,Alpenbest Ltd,Home Base Care,559.44,Dom Care - Adults
04/10/2021,SPELTHORNE CARE OP,Alpenbest Ltd,Home Base Care,387.62,Dom Care - Adults
04/10/2021,WOKING CARE OP,Alpenbest Ltd,Home Base Care,647.64,Dom Care - Adults
04/10/2021,WOKING CARE OP,Alpenbest Ltd,Home Base Care,423.58,Dom Care - Adults
04/10/2021,LD-AUT CNTR TM CARE,Alpenbest Ltd,Home Base Care,282.88,Dom Care - Adults
04/10/2021,SPELTHORNE CARE OP,Alpenbest Ltd,Home Base Care,1667.12,Dom Care - Adults
04/10/2021,EPSOM & EWELL CARE O,Alpenbest Ltd,Home Base Care,323.68,Dom Care - Adults
04/10/2021,WOKING CARE OP,Alpenbest Ltd,Home Base Care,323.68,Dom Care - Adults
04/10/2021,WOKING CARE PD,Alpenbest Ltd,Home Base Care,258.38,Dom Care - Adults
04/10/2021,SPELTHORNE CARE OP,Alpenbest Ltd,Home Base Care,647.36,Dom Care - Adults
04/10/2021,SPELTHORNE CARE OP,Alpenbest Ltd,Home Base Care,1305.08,Dom Care - Adults
04/10/2021,SUB MISUSE CARE PCKG,Alpenbest Ltd,Home Base Care,482.06,Dom Care - Adults
04/10/2021,SPELTHORNE CARE OP,Alpenbest Ltd,Home Base Care,1206.8,Dom Care - Adults
04/10/2021,RUNNYMEDE CARE OP,Alpenbest Ltd,Home Base Care,306.16,Dom Care - Adults
04/10/2021,WOKING CARE OP,Alpenbest Ltd,Home Base Care,323.68,Dom Care - Adults
04/10/2021,SPELTHORNE CARE OP,Alpenbest Ltd,Home Base Care,254.32,Dom Care - Adults
04/10/2021,SPELTHORNE CARE OP,Alpenbest Ltd,Home Base Care,563.44,Dom Care - Adults
04/10/2021,EPSOM & EWELL CARE O,Alpenbest Ltd,Home Base Care,379.62,Dom Care - Adults
04/10/2021,SPELTHORNE CARE OP,Alpenbest Ltd,Home Base Care,1426.96,Dom Care - Adults
04/10/2021,SPELTHORNE CARE OP,Alpenbest Ltd,Home Base Care,583.42,Dom Care - Adults
04/10/2021,WOKING CARE OP,Alpenbest Ltd,Home Base Care,1294.72,Dom Care - Adults
04/10/2021,SPELTHORNE CARE OP,Alpenbest Ltd,Home Base Care,1118.88,Dom Care - Adults
04/10/2021,ELMBRIDGE CARE OP,Alpenbest Ltd,Home Base Care,521.55,Dom Care - Adults
04/10/2021,WOKING CARE OP,Alpenbest Ltd,Home Base Care,622.88,Dom Care - Adults
04/10/2021,SPELTHORNE CARE PD,Alpenbest Ltd,Home Base Care,352.9,Dom Care - Adults
04/10/2021,EPSOM & EWELL CARE P,Alpenbest Ltd,Home Base Care,323.68,Dom Care - Adults
04/10/2021,SPELTHORNE CARE OP,Alpenbest Ltd,Home Base Care,1206.8,Dom Care - Adults
04/10/2021,SPELTHORNE CARE PD,Alpenbest Ltd,Home Base Care,769.52,Dom Care - Adults
04/10/2021,EPSOM & EWELL CARE O,Alpenbest Ltd,Home Base Care,576.74,Dom Care - Adults
04/10/2021,WOKING CARE OP,Alpenbest Ltd,Home Base Care,323.68,Dom Care - Adults
04/10/2021,LD-AUT CNTR TM CARE,Alpenbest Ltd,Home Base Care,326.64,Dom Care - Adults
04/10/2021,GUILDFORD CARE OP,Alpenbest Ltd,Home Base Care,712.74,Dom Care - Adults
04/10/2021,GUILDFORD CARE OP,Alpenbest Ltd,Home Base Care,658.98,Dom Care - Adults
04/10/2021,GUILDFORD CARE OP,Alpenbest Ltd,Home Base Care,408.04,Dom Care - Adults
04/10/2021,ELMBRIDGE CARE OP,Alpenbest Ltd,Home Base Care,648.07,Dom Care - Adults
04/10/2021,GUILDFORD CARE OP,Alpenbest Ltd,Home Base Care,1317.96,Dom Care - Adults
04/10/2021,GUILDFORD CARE OP,Alpenbest Ltd,Home Base Care,407.26,Dom Care - Adults
04/10/2021,WAVERLEY CARE OP,Alpenbest Ltd,Home Base Care,535.3,Dom Care - Adults
04/10/2021,REIGATE & BD CARE OP,Alpenbest Ltd,Home Base Care,372.88,Dom Care - Adults
04/10/2021,SPELTHORNE CARE OP,Alpha Extreme Services Ltd,Other Community Care,816,Dom Cleaning Serv
04/10/2021,SPELTHORNE CARE PD,Alpha Extreme Services Ltd,Other Community Care,816,Dom Cleaning Serv
04/10/2021,SPELTHORNE CARE OP,Alpha Extreme Services Ltd,Other Community Care,408,Dom Cleaning Serv
04/10/2021,SPELTHORNE CARE OP,Amazed Care Services,Home Base Care,584.64,Dom Care - Adults
04/10/2021,SPELTHORNE CARE OP,Amazed Care Services,Home Base Care,584.64,Dom Care - Adults
04/10/2021,REIGATE & BD CARE OP,Anvil Court,Extra Care Housing,373.71,Residential - LD
04/10/2021,REIGATE & BD CARE OP,Anvil Court,Extra Care Housing,405.22,Residential - LD
04/10/2021,REIGATE & BD CARE PD,Anvil Court,Extra Care Housing,382.72,Residential - LD
04/10/2021,REIGATE & BD CARE OP,Anvil Court,Extra Care Housing,1008.57,Residential - LD
04/10/2021,REIGATE & BD CARE PD,Anvil Court,Extra Care Housing,603.34,Residential - LD
04/10/2021,LD-AUT CNTR TM CARE,Anvil Court,Extra Care Housing,391.73,Residential - LD
04/10/2021,LD-AUT CNTR TM CARE,Anvil Court,Extra Care Housing,972.55,Residential - LD
04/10/2021,REIGATE & BD CARE OP,Anvil Court,Extra Care Housing,2561.93,Residential - LD
04/10/2021,REIGATE & BD CARE OP,Anvil Court,Extra Care Housing,364.7,Residential - LD
04/10/2021,TANDRIDGE CARE OP,Anvil Court,Extra Care Housing,598.84,Residential - LD
04/10/2021,REIGATE & BD CARE OP,Anvil Court,Extra Care Housing,1692.96,Residential - LD
04/10/2021,LD-AUT CNTR TM CARE,Anvil Court,Extra Care Housing,1409.29,Residential - LD
04/10/2021,REIGATE & BD CARE OP,Anvil Court,Extra Care Housing,1724.46,Residential - LD
04/10/2021,REIGATE & BD CARE OP,Anvil Court,Extra Care Housing,1022.07,Residential - LD
04/10/2021,REIGATE & BD CARE PD,Anvil Court,Extra Care Housing,963.54,Residential - LD
04/10/2021,REIGATE & BD CARE OP,Anvil Court,Extra Care Housing,1094.12,Residential - LD
04/10/2021,REIGATE & BD CARE OP,Anvil Court,Extra Care Housing,2381.83,Residential - LD
04/10/2021,REIGATE & BD CARE OP,Anvil Court,Extra Care Housing,968.05,Residential - LD
04/10/2021,EPSOM & EWELL CARE O,Apex Prime Care Ltd,Home Base Care,886.5,Residential - LD
04/10/2021,EPSOM & EWELL CARE O,Apex Prime Care Ltd,Home Base Care,1155.68,Residential - LD
04/10/2021,EPSOM & EWELL CARE O,Apex Prime Care Ltd,Home Base Care,1155.68,Residential - LD
04/10/2021,EPSOM & EWELL CARE O,Apex Prime Care Ltd,Home Base Care,478.48,Residential - LD
04/10/2021,EPSOM & EWELL CARE P,Apex Prime Care Ltd,Home Base Care,342.94,Residential - LD
04/10/2021,EPSOM & EWELL CARE P,Apex Prime Care Ltd,Home Base Care,351.97,Residential - LD
04/10/2021,ELMBRIDGE CARE OP,Apex Prime Care Ltd,Home Base Care,424.22,Residential - LD
04/10/2021,SURREY HEATH CARE PD,Apex Prime Care Ltd,Home Base Care,630.22,Residential - LD
04/10/2021,MOLE VALLEY CARE OP,Apex Prime Care Ltd,Home Base Care,511.95,Residential - LD
04/10/2021,MOLE VALLEY CARE OP,Apex Prime Care Ltd,Home Base Care,458.44,Residential - LD
04/10/2021,SURREY HEATH CARE OP,Apex Prime Care Ltd,Home Base Care,604.9,Residential - LD
04/10/2021,MOLE VALLEY CARE PD,Apex Prime Care Ltd,Home Base Care,712.7,Residential - LD
04/10/2021,MOLE VALLEY CARE OP,Apex Prime Care Ltd,Home Base Care,252.6,Residential - LD
04/10/2021,MOLE VALLEY CARE OP,Apex Prime Care Ltd,Home Base Care,577.36,Residential - LD
04/10/2021,SURREY HEATH CARE PD,Apex Prime Care Ltd,Home Base Care,1608.04,Residential - LD
04/10/2021,MOLE VALLEY CARE OP,Apex Prime Care Ltd,Home Base Care,410.38,Residential - LD
04/10/2021,MOLE VALLEY CARE OP,Apex Prime Care Ltd,Home Base Care,760.76,Residential - LD
04/10/2021,EPSOM & EWELL CARE P,Apex Prime Care Ltd,Home Base Care,288.64,Residential - LD
04/10/2021,ELMBRIDGE CARE OP,Apex Prime Care Ltd,Home Base Care,306.94,Residential - LD
04/10/2021,ELMBRIDGE CARE OP,Apex Prime Care Ltd,Home Base Care,306.94,Residential - LD
04/10/2021,ELMBRIDGE CARE OP,Apex Prime Care Ltd,Home Base Care,424.22,Residential - LD
04/10/2021,SURREY HEATH CARE OP,Apex Prime Care Ltd,Home Base Care,515.34,Residential - LD
04/10/2021,LD-AUT CNTR TM CARE,Apex Prime Care Ltd,Home Base Care,559.52,Residential - LD
04/10/2021,MOLE VALLEY CARE OP,Apex Prime Care Ltd,Home Base Care,426.04,Residential - LD
04/10/2021,SURREY HEATH CARE PD,Apex Prime Care Ltd,Home Base Care,630.22,Residential - LD
04/10/2021,LD-AUT CNTR TM CARE,Apex Prime Care Ltd,Home Base Care,541.46,Residential - LD
04/10/2021,MOLE VALLEY CARE OP,Apex Prime Care Ltd,Home Base Care,632.24,Residential - LD
04/10/2021,EPSOM & EWELL CARE O,Apex Prime Care Ltd,Home Base Care,1263.92,Residential - LD
04/10/2021,EPSOM & EWELL CARE O,Apex Prime Care Ltd,Home Base Care,568.82,Residential - LD
04/10/2021,EPSOM & EWELL CARE P,Apex Prime Care Ltd,Home Base Care,505.12,Residential - LD
04/10/2021,EPSOM & EWELL CARE O,Apex Prime Care Ltd,Home Base Care,568.82,Residential - LD
04/10/2021,EPSOM & EWELL CARE O,Apex Prime Care Ltd,Home Base Care,1263.92,Residential - LD
04/10/2021,MOLE VALLEY CARE PD,Apex Prime Care Ltd,Home Base Care,378.84,Residential - LD
04/10/2021,MOLE VALLEY CARE OP,Apex Prime Care Ltd,Home Base Care,343.56,Residential - LD
04/10/2021,ELMBRIDGE CARE OP,Apex Prime Care Ltd,Home Base Care,568.82,Residential - LD
04/10/2021,ELMBRIDGE CARE OP,Apex Prime Care Ltd,Home Base Care,568.82,Residential - LD
04/10/2021,WOKING CARE OP,Apex Prime Care Ltd,Home Base Care,297.71,Residential - LD
04/10/2021,ELMBRIDGE CARE OP,Apex Prime Care Ltd,Home Base Care,568.82,Residential - LD
04/10/2021,ELMBRIDGE CARE OP,Apex Prime Care Ltd,Home Base Care,442.4,Residential - LD
04/10/2021,LD-AUT CNTR TM CARE,Apex Prime Care Ltd,Home Base Care,532.66,Residential - LD
04/10/2021,WOKING CARE OP,Apex Prime Care Ltd,Home Base Care,550.76,Residential - LD
04/10/2021,WOKING CARE OP,Apex Prime Care Ltd,Home Base Care,406.3,Residential - LD
04/10/2021,WOKING CARE PD,Apex Prime Care Ltd,Home Base Care,685.93,Residential - LD
04/10/2021,WOKING CARE OP,Apex Prime Care Ltd,Home Base Care,342.86,Residential - LD
04/10/2021,WOKING CARE OP,Apex Prime Care Ltd,Home Base Care,1060.69,Residential - LD
04/10/2021,WOKING CARE OP,Apex Prime Care Ltd,Home Base Care,1065.2,Residential - LD
04/10/2021,WOKING CARE OP,Apex Prime Care Ltd,Home Base Care,252.84,Residential - LD
04/10/2021,WOKING CARE OP,Apex Prime Care Ltd,Home Base Care,252.84,Residential - LD
04/10/2021,EPSOM & EWELL CARE O,Apex Prime Care Ltd,Home Base Care,343.04,Residential - LD
04/10/2021,WOKING CARE OP,Apex Prime Care Ltd,Home Base Care,1389.92,Residential - LD
04/10/2021,MOLE VALLEY CARE PD,Apex Prime Care Ltd,Home Base Care,717.36,Residential - LD
04/10/2021,ELMBRIDGE CARE OP,Apex Prime Care Ltd,Home Base Care,442.4,Residential - LD
04/10/2021,WOKING CARE PD,Apex Prime Care Ltd,Home Base Care,694.96,Residential - LD
04/10/2021,WOKING CARE PD,Apex Prime Care Ltd,Home Base Care,324.84,Residential - LD
04/10/2021,LD-AUT CNTR TM CARE,Apex Prime Care Ltd,Home Base Care,1209.72,Residential - LD
04/10/2021,WOKING CARE OP,Apex Prime Care Ltd,Home Base Care,568.82,Residential - LD
04/10/2021,WOKING CARE OP,Apex Prime Care Ltd,Home Base Care,1137.64,Residential - LD
04/10/2021,EPSOM & EWELL CARE O,Apex Prime Care Ltd,Home Base Care,343.04,Residential - LD
04/10/2021,RUNNYMEDE CARE PD,Apex Prime Care Ltd,Home Base Care,1236.84,Residential - LD
04/10/2021,RUNNYMEDE CARE PD,Apex Prime Care Ltd,Home Base Care,1263.92,Residential - LD
04/10/2021,WOKING CARE OP,Apex Prime Care Ltd,Home Base Care,1389.92,Residential - LD
04/10/2021,MOLE VALLEY CARE OP,Apex Prime Care Ltd,Home Base Care,544.31,Residential - LD
04/10/2021,ELMBRIDGE CARE OP,Apex Prime Care Ltd,Home Base Care,568.82,Residential - LD
04/10/2021,WOKING CARE PD,Apex Prime Care Ltd,Home Base Care,324.84,Residential - LD
04/10/2021,WOKING CARE OP,Apex Prime Care Ltd,Home Base Care,252.84,Residential - LD
04/10/2021,WOKING CARE OP,Apex Prime Care Ltd,Home Base Care,252.84,Residential - LD
04/10/2021,SPELTHORNE CARE OP,Apex Prime Care Ltd,Home Base Care,361.14,Residential - LD
04/10/2021,SPELTHORNE CARE OP,Apex Prime Care Ltd,Home Base Care,379.32,Residential - LD
04/10/2021,LD-AUT CNTR TM CARE,Ashmount House Ltd,Supported Living,1110,Supp Living - MH
04/10/2021,EPSOM & EWELL CARE O,Aspen Live in Care,Home Base Care,1897.56,Dom Care - Adults
04/10/2021,LD-AUT CNTR TM CARE,Birch House,Day Care,1689.6,Residential - OP
04/10/2021,SURREY HEATH CARE PD,Bluebell Place Nurs & Residential H,Nursing,3428.57,Residential - OP
04/10/2021,REIGATE & BD CARE OP,Care4u Healthcare Ltd,Home Base Care,2598.96,Dom Care - Adults
04/10/2021,REIGATE & BD CARE OP,Care4u Healthcare Ltd,Home Base Care,277.76,Dom Care - Adults
04/10/2021,REIGATE & BD CARE OP,Care4u Healthcare Ltd,Home Base Care,277.76,Dom Care - Adults
04/10/2021,REIGATE & BD CARE OP,Care4u Healthcare Ltd,Home Base Care,1194.2,Dom Care - Adults
04/10/2021,REIGATE & BD CARE OP,Care4u Healthcare Ltd,Home Base Care,277.76,Dom Care - Adults
04/10/2021,REIGATE & BD CARE OP,Care4u Healthcare Ltd,Home Base Care,277.76,Dom Care - Adults
04/10/2021,REIGATE & BD CARE OP,Care4u Healthcare Ltd,Home Base Care,597.1,Dom Care - Adults
04/10/2021,TANDRIDGE CARE OP,Care4u Healthcare Ltd,Home Base Care,1361.28,Dom Care - Adults
04/10/2021,REIGATE & BD CARE PD,Care4u Healthcare Ltd,Home Base Care,449.64,Dom Care - Adults
04/10/2021,SPELTHORNE CARE OP,Care4u Healthcare Ltd,Home Base Care,1650.04,Dom Care - Adults
04/10/2021,REIGATE & BD CARE OP,Care4u Healthcare Ltd,Home Base Care,416.64,Dom Care - Adults
04/10/2021,SURREY HEATH CARE OP,Clarriots Care,Home Base Care,622.72,Dom Care - Adults
04/10/2021,SURREY HEATH CARE OP,Clarriots Care,Home Base Care,276.42,Dom Care - Adults
04/10/2021,SPELTHORNE CARE OP,Clarriots Care,Home Base Care,1603.44,Dom Care - Adults
04/10/2021,SURREY HEATH CARE OP,Clarriots Care,Home Base Care,428.4,Dom Care - Adults
04/10/2021,SURREY HEATH CARE PD,Clarriots Care,Home Base Care,771.12,Dom Care - Adults
04/10/2021,SPELTHORNE CARE OP,Clarriots Care,Home Base Care,285.6,Dom Care - Adults
04/10/2021,SPELTHORNE CARE OP,Clarriots Care,Home Base Care,456.96,Dom Care - Adults
04/10/2021,SURREY HEATH CARE OP,Clarriots Care,Home Base Care,578.34,Dom Care - Adults
04/10/2021,SURREY HEATH CARE PD,Clarriots Care,Home Base Care,661.98,Dom Care - Adults
04/10/2021,LD-AUT CNTR TM CARE,Clarriots Care,Home Base Care,570.14,Dom Care - Adults
04/10/2021,SURREY HEATH CARE OP,Clarriots Care,Home Base Care,621.18,Dom Care - Adults
04/10/2021,SURREY HEATH CARE OP,Clarriots Care,Home Base Care,621.18,Dom Care - Adults
04/10/2021,SURREY HEATH CARE OP,Clarriots Care,Home Base Care,1899.24,Dom Care - Adults
04/10/2021,SURREY HEATH CARE OP,Clarriots Care,Home Base Care,763.98,Dom Care - Adults
04/10/2021,SURREY HEATH CARE OP,Clarriots Care,Home Base Care,438.76,Dom Care - Adults
04/10/2021,SURREY HEATH CARE PD,Clarriots Care,Home Base Care,740.52,Dom Care - Adults
04/10/2021,SURREY HEATH CARE PD,Clarriots Care,Home Base Care,428.4,Dom Care - Adults
04/10/2021,SURREY HEATH CARE PD,Clarriots Care,Home Base Care,385.56,Dom Care - Adults
04/10/2021,SURREY HEATH CARE OP,Clarriots Care,Home Base Care,813.96,Dom Care - Adults
04/10/2021,SPELTHORNE CARE OP,Clarriots Care,Home Base Care,1984.92,Dom Care - Adults
04/10/2021,SURREY HEATH CARE OP,Clarriots Care,Home Base Care,306,Dom Care - Adults
04/10/2021,SURREY HEATH CARE OP,Clarriots Care,Home Base Care,281.52,Dom Care - Adults
04/10/2021,SURREY HEATH CARE PD,Clarriots Care,Home Base Care,428.4,Dom Care - Adults
04/10/2021,SURREY HEATH CARE OP,Clarriots Care,Home Base Care,385.56,Dom Care - Adults
04/10/2021,SURREY HEATH CARE OP,Clarriots Care,Home Base Care,1727.88,Dom Care - Adults
04/10/2021,SURREY HEATH CARE OP,Clarriots Care,Home Base Care,1245.44,Dom Care - Adults
04/10/2021,SURREY HEATH CARE OP,Clarriots Care,Home Base Care,934.08,Dom Care - Adults
04/10/2021,SURREY HEATH CARE OP,Clarriots Care,Home Base Care,763.98,Dom Care - Adults
04/10/2021,SPELTHORNE CARE PD,Clarriots Care,Home Base Care,521.22,Dom Care - Adults
04/10/2021,LD-AUT CNTR TM CARE,County Care Independent Living Ltd,Home Base Care,502.28,Dom Care - Adults
04/10/2021,LD-AUT CNTR TM CARE,County Care Independent Living Ltd,Home Base Care,359.39,Dom Care - Adults
04/10/2021,WAVERLEY CARE PD,County Care Independent Living Ltd,Home Base Care,445.99,Dom Care - Adults
04/10/2021,LD-AUT CNTR TM CARE,County Care Independent Living Ltd,Home Base Care,342.07,Dom Care - Adults
04/10/2021,LD-AUT CNTR TM CARE,County Care Independent Living Ltd,Home Base Care,346.4,Dom Care - Adults
04/10/2021,LD-AUT CNTR TM CARE,County Care Independent Living Ltd,Home Base Care,770.74,Dom Care - Adults
04/10/2021,RUNNYMEDE CARE OP,Crest Care Services Ltd,Home Base Care,454.86,Residential - MH
04/10/2021,RUNNYMEDE CARE PD,Crest Care Services Ltd,Home Base Care,454.86,Residential - MH
04/10/2021,RUNNYMEDE CARE PD,Crest Care Services Ltd,Home Base Care,331.98,Residential - MH
04/10/2021,RUNNYMEDE CARE PD,Crest Care Services Ltd,Home Base Care,317.55,Residential - MH
04/10/2021,RUNNYMEDE CARE OP,Crest Care Services Ltd,Home Base Care,656.6,Residential - MH
04/10/2021,RUNNYMEDE CARE OP,Crest Care Services Ltd,Home Base Care,656.6,Residential - MH
04/10/2021,SPELTHORNE CARE OP,Crest Care Services Ltd,Home Base Care,353.64,Residential - MH
04/10/2021,SPELTHORNE CARE OP,Crest Care Services Ltd,Home Base Care,656.88,Residential - MH
04/10/2021,RUNNYMEDE CARE OP,Crest Care Services Ltd,Home Base Care,454.86,Residential - MH
04/10/2021,RUNNYMEDE CARE PD,Crest Care Services Ltd,Home Base Care,454.86,Residential - MH
04/10/2021,SPELTHORNE CARE OP,Crest Care Services Ltd,Home Base Care,537.78,Residential - MH
04/10/2021,SPELTHORNE CARE OP,Crest Care Services Ltd,Home Base Care,353.64,Residential - MH
04/10/2021,REIGATE & BD CARE OP,Crystal Care,Home Base Care,865.2,Dom Care - Adults
04/10/2021,EPSOM & EWELL CARE O,Crystal Care,Home Base Care,324.66,Dom Care - Adults
04/10/2021,EPSOM & EWELL CARE O,Crystal Care,Home Base Care,360.92,Dom Care - Adults
04/10/2021,MOLE VALLEY CARE OP,Crystal Care,Home Base Care,288.58,Dom Care - Adults
04/10/2021,EPSOM & EWELL CARE P,Crystal Care,Home Base Care,375.2,Dom Care - Adults
04/10/2021,EPSOM & EWELL CARE O,Crystal Care,Home Base Care,360.92,Dom Care - Adults
04/10/2021,MOLE VALLEY CARE OP,Crystal Care,Home Base Care,288.4,Dom Care - Adults
04/10/2021,MOLE VALLEY CARE OP,Crystal Care,Home Base Care,1226.12,Dom Care - Adults
04/10/2021,MOLE VALLEY CARE OP,Crystal Care,Home Base Care,288.4,Dom Care - Adults
04/10/2021,MOLE VALLEY CARE PD,Crystal Care,Home Base Care,915.2,Dom Care - Adults
04/10/2021,REIGATE & BD CARE OP,Crystal Care,Home Base Care,576.8,Dom Care - Adults
04/10/2021,EPSOM & EWELL CARE O,Crystal Care,Home Base Care,437.96,Dom Care - Adults
04/10/2021,REIGATE & BD CARE PD,Crystal Care,Home Base Care,370.8,Dom Care - Adults
04/10/2021,REIGATE & BD CARE OP,Crystal Care,Home Base Care,546.2,Dom Care - Adults
04/10/2021,EPSOM & EWELL CARE O,Crystal Care,Home Base Care,1153.6,Dom Care - Adults
04/10/2021,EPSOM & EWELL CARE O,Crystal Care,Home Base Care,1153.6,Dom Care - Adults
04/10/2021,EPSOM & EWELL CARE O,Crystal Care,Home Base Care,1226.12,Dom Care - Adults
04/10/2021,REIGATE & BD CARE OP,Crystal Care,Home Base Care,468.86,Dom Care - Adults
04/10/2021,EPSOM & EWELL CARE O,Crystal Care,Home Base Care,1153.6,Dom Care - Adults
04/10/2021,REIGATE & BD CARE OP,Crystal Care,Home Base Care,288.4,Dom Care - Adults
04/10/2021,EPSOM & EWELL CARE O,Crystal Care,Home Base Care,288.4,Dom Care - Adults
04/10/2021,MOLE VALLEY CARE OP,Crystal Care,Home Base Care,429.76,Dom Care - Adults
04/10/2021,MOLE VALLEY CARE OP,Crystal Care,Home Base Care,1312.78,Dom Care - Adults
04/10/2021,REIGATE & BD CARE OP,Crystal Care,Home Base Care,581.98,Dom Care - Adults
04/10/2021,MOLE VALLEY CARE OP,Crystal Care,Home Base Care,1153.6,Dom Care - Adults
04/10/2021,REIGATE & BD CARE OP,Crystal Care,Home Base Care,613.06,Dom Care - Adults
04/10/2021,MOLE VALLEY CARE OP,Crystal Care,Home Base Care,551.26,Dom Care - Adults
04/10/2021,EPSOM & EWELL CARE O,Crystal Care,Home Base Care,288.4,Dom Care - Adults
04/10/2021,MOLE VALLEY CARE OP,Crystal Care,Home Base Care,576.8,Dom Care - Adults
04/10/2021,MOLE VALLEY CARE OP,Crystal Care,Home Base Care,288.4,Dom Care - Adults
04/10/2021,MOLE VALLEY CARE OP,Crystal Care,Home Base Care,303.94,Dom Care - Adults
04/10/2021,MOLE VALLEY CARE OP,Crystal Care,Home Base Care,584.93,Dom Care - Adults
04/10/2021,REIGATE & BD CARE OP,Crystal Care,Home Base Care,324.66,Dom Care - Adults
04/10/2021,EPSOM & EWELL CARE P,Crystal Care,Home Base Care,309.18,Dom Care - Adults
04/10/2021,MOLE VALLEY CARE OP,Crystal Care,Home Base Care,309,Dom Care - Adults
04/10/2021,REIGATE & BD CARE OP,Crystal Care,Home Base Care,432.6,Dom Care - Adults
04/10/2021,MOLE VALLEY CARE OP,Crystal Care,Home Base Care,278.1,Dom Care - Adults
04/10/2021,REIGATE & BD CARE OP,Crystal Care,Home Base Care,865.2,Dom Care - Adults
04/10/2021,REIGATE & BD CARE OP,Crystal Care,Home Base Care,432.6,Dom Care - Adults
04/10/2021,MOLE VALLEY CARE OP,Crystal Care,Home Base Care,1153.6,Dom Care - Adults
04/10/2021,MOLE VALLEY CARE OP,Crystal Care,Home Base Care,288.4,Dom Care - Adults
04/10/2021,DAKOTA,Cushman & Wakefield LLP,External Service Charges,23916.57,Service Charge
04/10/2021,NW CARE - CARE LVRS,Daniel Essa,Equipment,975,Invoicing Plan Req.
04/10/2021,ESTATES DELIVERY MGR,Davitt Jones Bould - (Solicitor),Fees,717.72,General Support
04/10/2021,EPSOM & EWELL CARE O,Day & Nite Services Ltd,Home Base Care,305.34,Dom Care - Adults
04/10/2021,EPSOM & EWELL CARE P,Day & Nite Services Ltd,Home Base Care,305.34,Dom Care - Adults
04/10/2021,LD-AUT CNTR TM CARE,Elmbridge Borough Council,Day Care,1050,Local Government
04/10/2021,NULL,Emcor Facilities Services Ltd,NULL,101856.01,General Build Maint
04/10/2021,ELMBRIDGE CARE PD,Extra Help Surrey,Other Community Care,338,Dom Care - Adults
04/10/2021,ELMBRIDGE CARE OP,Flow Healthcare Ltd,Home Base Care,581.12,Dom Care - Adults
04/10/2021,ELMBRIDGE CARE OP,Flow Healthcare Ltd,Home Base Care,441.84,Dom Care - Adults
04/10/2021,RUNNYMEDE CARE OP,Flow Healthcare Ltd,Home Base Care,294.56,Dom Care - Adults
04/10/2021,MOLE VALLEY CARE OP,Flow Healthcare Ltd,Home Base Care,490.84,Dom Care - Adults
04/10/2021,GUILDFORD CARE OP,Flow Healthcare Ltd,Home Base Care,1287.72,Dom Care - Adults
04/10/2021,WOKING CARE OP,Flow Healthcare Ltd,Home Base Care,589.12,Dom Care - Adults
04/10/2021,RUNNYMEDE CARE OP,Flow Healthcare Ltd,Home Base Care,609.14,Dom Care - Adults
04/10/2021,RUNNYMEDE CARE OP,Flow Healthcare Ltd,Home Base Care,713.98,Dom Care - Adults
04/10/2021,MOLE VALLEY CARE OP,Flow Healthcare Ltd,Home Base Care,1287.72,Dom Care - Adults
04/10/2021,MOLE VALLEY CARE OP,Flow Healthcare Ltd,Home Base Care,1287.72,Dom Care - Adults
04/10/2021,REIGATE & BD CARE OP,Flow Healthcare Ltd,Home Base Care,736.4,Dom Care - Adults
04/10/2021,ELMBRIDGE CARE PD,Flow Healthcare Ltd,Home Base Care,643.86,Dom Care - Adults
04/10/2021,ELMBRIDGE CARE OP,Flow Healthcare Ltd,Home Base Care,345.26,Dom Care - Adults
04/10/2021,EPSOM & EWELL CARE O,Flow Healthcare Ltd,Home Base Care,294.56,Dom Care - Adults
04/10/2021,ELMBRIDGE CARE OP,Flow Healthcare Ltd,Home Base Care,1178.24,Dom Care - Adults
04/10/2021,ELMBRIDGE CARE OP,Flow Healthcare Ltd,Home Base Care,1178.24,Dom Care - Adults
04/10/2021,EPSOM & EWELL CARE P,Flow Healthcare Ltd,Home Base Care,713.98,Dom Care - Adults
04/10/2021,GUILDFORD CARE OP,Flow Healthcare Ltd,Home Base Care,736.4,Dom Care - Adults
04/10/2021,ELMBRIDGE CARE OP,Flow Healthcare Ltd,Home Base Care,589.12,Dom Care - Adults
04/10/2021,ELMBRIDGE CARE OP,Flow Healthcare Ltd,Home Base Care,643.86,Dom Care - Adults
04/10/2021,ELMBRIDGE CARE OP,Flow Healthcare Ltd,Home Base Care,441.84,Dom Care - Adults
04/10/2021,EPSOM & EWELL CARE O,Flow Healthcare Ltd,Home Base Care,638.12,Dom Care - Adults
04/10/2021,EPSOM & EWELL CARE O,Flow Healthcare Ltd,Home Base Care,441.84,Dom Care - Adults
04/10/2021,ELMBRIDGE CARE OP,Flow Healthcare Ltd,Home Base Care,594.72,Dom Care - Adults
04/10/2021,MOLE VALLEY CARE OP,Flow Healthcare Ltd,Home Base Care,1178.24,Dom Care - Adults
04/10/2021,REIGATE & BD CARE OP,Flow Healthcare Ltd,Home Base Care,810.04,Dom Care - Adults
04/10/2021,WOKING CARE OP,Flow Healthcare Ltd,Home Base Care,1300.12,Dom Care - Adults
04/10/2021,ELMBRIDGE CARE PD,Flow Healthcare Ltd,Home Base Care,1287.72,Dom Care - Adults
04/10/2021,ELMBRIDGE CARE OP,Flow Healthcare Ltd,Home Base Care,1287.72,Dom Care - Adults
04/10/2021,ELMBRIDGE CARE OP,Flow Healthcare Ltd,Home Base Care,496.58,Dom Care - Adults
04/10/2021,EPSOM & EWELL CARE O,Flow Healthcare Ltd,Home Base Care,736.4,Dom Care - Adults
04/10/2021,REIGATE & BD CARE OP,Flow Healthcare Ltd,Home Base Care,441.84,Dom Care - Adults
04/10/2021,ELMBRIDGE CARE OP,Flow Healthcare Ltd,Home Base Care,606.06,Dom Care - Adults
04/10/2021,RUNNYMEDE CARE OP,Flow Healthcare Ltd,Home Base Care,496.58,Dom Care - Adults
04/10/2021,MOLE VALLEY CARE OP,Flow Healthcare Ltd,Home Base Care,569.1,Dom Care - Adults
04/10/2021,ELMBRIDGE CARE OP,Flow Healthcare Ltd,Home Base Care,294.56,Dom Care - Adults
04/10/2021,ELMBRIDGE CARE OP,Flow Healthcare Ltd,Home Base Care,1645.84,Dom Care - Adults
04/10/2021,MOLE VALLEY CARE PD,Flow Healthcare Ltd,Home Base Care,1645.84,Dom Care - Adults
04/10/2021,MOLE VALLEY CARE OP,Flow Healthcare Ltd,Home Base Care,1645.84,Dom Care - Adults
04/10/2021,GUILDFORD CARE OP,Flow Healthcare Ltd,Home Base Care,692.72,Dom Care - Adults
04/10/2021,MOLE VALLEY CARE OP,Flow Healthcare Ltd,Home Base Care,883.68,Dom Care - Adults
04/10/2021,ELMBRIDGE CARE OP,Flow Healthcare Ltd,Home Base Care,1178.24,Dom Care - Adults
04/10/2021,ELMBRIDGE CARE OP,Flow Healthcare Ltd,Home Base Care,589.12,Dom Care - Adults
04/10/2021,ELMBRIDGE CARE PD,Flow Healthcare Ltd,Home Base Care,476.9,Dom Care - Adults
04/10/2021,ELMBRIDGE CARE OP,Flow Healthcare Ltd,Home Base Care,476.9,Dom Care - Adults
04/10/2021,MOLE VALLEY CARE OP,Flow Healthcare Ltd,Home Base Care,1287.72,Dom Care - Adults
04/10/2021,EPSOM & EWELL CARE O,Flow Healthcare Ltd,Home Base Care,678.92,Dom Care - Adults
04/10/2021,ELMBRIDGE CARE OP,Flow Healthcare Ltd,Home Base Care,1374.52,Dom Care - Adults
04/10/2021,REIGATE & BD CARE OP,Flow Healthcare Ltd,Home Base Care,589.12,Dom Care - Adults
04/10/2021,ELMBRIDGE CARE OP,Flow Healthcare Ltd,Home Base Care,1645.84,Dom Care - Adults
04/10/2021,ELMBRIDGE CARE OP,Flow Healthcare Ltd,Home Base Care,1645.84,Dom Care - Adults
04/10/2021,GUILDFORD CARE OP,Flow Healthcare Ltd,Home Base Care,375.24,Dom Care - Adults
04/10/2021,RUNNYMEDE CARE OP,Flow Healthcare Ltd,Home Base Care,496.58,Dom Care - Adults
04/10/2021,ELMBRIDGE CARE OP,Flow Healthcare Ltd,Home Base Care,604.8,Dom Care - Adults
04/10/2021,MOLE VALLEY CARE OP,Flow Healthcare Ltd,Home Base Care,589.12,Dom Care - Adults
04/10/2021,MOLE VALLEY CARE OP,Flow Healthcare Ltd,Home Base Care,1287.72,Dom Care - Adults
04/10/2021,MOLE VALLEY CARE OP,Flow Healthcare Ltd,Home Base Care,448.85,Dom Care - Adults
04/10/2021,REIGATE & BD CARE OP,Flow Healthcare Ltd,Home Base Care,1484,Dom Care - Adults
04/10/2021,RUNNYMEDE CARE OP,Flow Healthcare Ltd,Home Base Care,349.3,Dom Care - Adults
04/10/2021,EPSOM & EWELL CARE O,Flow Healthcare Ltd,Home Base Care,1397.2,Dom Care - Adults
04/10/2021,ELMBRIDGE CARE OP,Flow Healthcare Ltd,Home Base Care,589.12,Dom Care - Adults
04/10/2021,ELMBRIDGE CARE OP,Flow Healthcare Ltd,Home Base Care,294.56,Dom Care - Adults
04/10/2021,WOKING CARE OP,Flow Healthcare Ltd,Home Base Care,1287.72,Dom Care - Adults
04/10/2021,EPSOM & EWELL CARE O,Flow Healthcare Ltd,Home Base Care,252.48,Dom Care - Adults
04/10/2021,GUILDFORD CARE OP,Flow Healthcare Ltd,Home Base Care,346.36,Dom Care - Adults
04/10/2021,GUILDFORD CARE OP,Flow Healthcare Ltd,Home Base Care,319.62,Dom Care - Adults
04/10/2021,GUILDFORD CARE OP,Flow Healthcare Ltd,Home Base Care,577.36,Dom Care - Adults
04/10/2021,GUILDFORD CARE OP,Flow Healthcare Ltd,Home Base Care,1546.52,Dom Care - Adults
04/10/2021,GUILDFORD CARE OP,Flow Healthcare Ltd,Home Base Care,404.18,Dom Care - Adults
04/10/2021,REIGATE & BD CARE OP,Flow Healthcare Ltd,Home Base Care,1287.72,Dom Care - Adults
04/10/2021,REIGATE & BD CARE OP,Flow Healthcare Ltd,Home Base Care,589.12,Dom Care - Adults
04/10/2021,ELMBRIDGE CARE OP,Flow Healthcare Ltd,Home Base Care,490.84,Dom Care - Adults
04/10/2021,WOKING CARE OP,Flow Healthcare Ltd,Home Base Care,1471.36,Dom Care - Adults
04/10/2021,EPSOM & EWELL CARE O,Flow Healthcare Ltd,Home Base Care,648.7,Dom Care - Adults
04/10/2021,EPSOM & EWELL CARE O,Flow Healthcare Ltd,Home Base Care,589.12,Dom Care - Adults
04/10/2021,GUILDFORD CARE OP,Flow Healthcare Ltd,Home Base Care,294.56,Dom Care - Adults
04/10/2021,REIGATE & BD CARE OP,Flow Healthcare Ltd,Home Base Care,1287.72,Dom Care - Adults
04/10/2021,RUNNYMEDE CARE PD,Flow Healthcare Ltd,Home Base Care,894.88,Dom Care - Adults
04/10/2021,GUILDFORD CARE PD,Flow Healthcare Ltd,Home Base Care,525.8,Dom Care - Adults
04/10/2021,GUILDFORD CARE OP,Flow Healthcare Ltd,Home Base Care,309.36,Dom Care - Adults
04/10/2021,GUILDFORD CARE OP,Flow Healthcare Ltd,Home Base Care,736.04,Dom Care - Adults
04/10/2021,ELMBRIDGE CARE OP,Flow Healthcare Ltd,Home Base Care,1287.72,Dom Care - Adults
04/10/2021,RUNNYMEDE CARE OP,Flow Healthcare Ltd,Home Base Care,551.32,Dom Care - Adults
04/10/2021,ELMBRIDGE CARE OP,Flow Healthcare Ltd,Home Base Care,1220.32,Dom Care - Adults
04/10/2021,GUILDFORD CARE OP,Flow Healthcare Ltd,Home Base Care,346.36,Dom Care - Adults
04/10/2021,GUILDFORD CARE OP,Flow Healthcare Ltd,Home Base Care,274.26,Dom Care - Adults
04/10/2021,GUILDFORD CARE OP,Flow Healthcare Ltd,Home Base Care,346.4,Dom Care - Adults
04/10/2021,GUILDFORD CARE OP,Flow Healthcare Ltd,Home Base Care,375.24,Dom Care - Adults
04/10/2021,GUILDFORD CARE PD,Flow Healthcare Ltd,Home Base Care,750.54,Dom Care - Adults
04/10/2021,GUILDFORD CARE OP,Flow Healthcare Ltd,Home Base Care,1501.08,Dom Care - Adults
04/10/2021,GUILDFORD CARE OP,Flow Healthcare Ltd,Home Base Care,371.14,Dom Care - Adults
04/10/2021,GUILDFORD CARE OP,Flow Healthcare Ltd,Home Base Care,1609.65,Dom Care - Adults
04/10/2021,GUILDFORD CARE OP,Flow Healthcare Ltd,Home Base Care,577.36,Dom Care - Adults
04/10/2021,ELMBRIDGE CARE OP,Flow Healthcare Ltd,Home Base Care,1178.24,Dom Care - Adults
04/10/2021,RUNNYMEDE CARE PD,Flow Healthcare Ltd,Home Base Care,419.42,Dom Care - Adults
04/10/2021,ELMBRIDGE CARE PD,Flow Healthcare Ltd,Home Base Care,1385.72,Dom Care - Adults
04/10/2021,EPSOM & EWELL CARE O,Flow Healthcare Ltd,Home Base Care,589.12,Dom Care - Adults
04/10/2021,GUILDFORD CARE OP,Flow Healthcare Ltd,Home Base Care,1397.2,Dom Care - Adults
04/10/2021,MOLE VALLEY CARE OP,Flow Healthcare Ltd,Home Base Care,589.12,Dom Care - Adults
04/10/2021,ELMBRIDGE CARE OP,Flow Healthcare Ltd,Home Base Care,539.98,Dom Care - Adults
04/10/2021,ELMBRIDGE CARE OP,Flow Healthcare Ltd,Home Base Care,336.64,Dom Care - Adults
04/10/2021,GUILDFORD CARE PD,Flow Healthcare Ltd,Home Base Care,519.54,Dom Care - Adults
04/10/2021,GUILDFORD CARE OP,Flow Healthcare Ltd,Home Base Care,534.1,Dom Care - Adults
04/10/2021,GUILDFORD CARE PD,Flow Healthcare Ltd,Home Base Care,577.36,Dom Care - Adults
04/10/2021,GUILDFORD CARE OP,Flow Healthcare Ltd,Home Base Care,404.18,Dom Care - Adults
04/10/2021,GUILDFORD CARE PD,Flow Healthcare Ltd,Home Base Care,2381.82,Dom Care - Adults
04/10/2021,LD-AUT CNTR TM CARE,Forgetmenot Adult Centre Ltd,Day Care,540,Residential - MH
04/10/2021,NULL,Fowler Building Contractors Ltd,NULL,1291.2,"Comm, Res & Inv Prop"
04/10/2021,ARBORICULTURE,Glendale Countryside Ltd,Treework,1431.01,Green Works
04/10/2021,ARBORICULTURE,Glendale Countryside Ltd,Treework,434.95,Green Works
04/10/2021,ARBORICULTURE,Glendale Countryside Ltd,Treework,696.22,Green Works
04/10/2021,ARBORICULTURE,Glendale Countryside Ltd,Treework,1388.36,Green Works
04/10/2021,ARBORICULTURE,Glendale Countryside Ltd,Treework,2334.5,Green Works
04/10/2021,WAVERLEY CARE OP,Goodwill & Hope Ltd,Home Base Care,1399.86,Dom Care - Adults
04/10/2021,WAVERLEY CARE PD,Goodwill & Hope Ltd,Home Base Care,1050,Dom Care - Adults
04/10/2021,WAVERLEY CARE OP,Goodwill & Hope Ltd,Home Base Care,630,Dom Care - Adults
04/10/2021,WAVERLEY CARE OP,Goodwill & Hope Ltd,Home Base Care,1600.06,Dom Care - Adults
04/10/2021,TANDRIDGE CARE OP,Greenway Homecare,Home Base Care,1320,Residential - LD
04/10/2021,TANDRIDGE CARE OP,Greenway Homecare,Home Base Care,770,Residential - LD
04/10/2021,NULL,Harrow Green Ltd,NULL,2738.16,Premise Removal Serv
04/10/2021,NULL,Harrow Green Ltd,NULL,1443.31,Premise Removal Serv
04/10/2021,NULL,Harrow Green Ltd,NULL,1674.48,Premise Removal Serv
04/10/2021,NULL,Harrow Green Ltd,NULL,2213.87,Premise Removal Serv
04/10/2021,TANDRIDGE CARE PD,Harty Homecare Services Ltd,Home Base Care,346.88,Residential - OP
04/10/2021,TANDRIDGE CARE OP,Harty Homecare Services Ltd,Home Base Care,1449.8,Residential - OP
04/10/2021,TANDRIDGE CARE OP,Harty Homecare Services Ltd,Home Base Care,464.04,Residential - OP
04/10/2021,TANDRIDGE CARE PD,Harty Homecare Services Ltd,Home Base Care,753,Residential - OP
04/10/2021,TANDRIDGE CARE OP,Harty Homecare Services Ltd,Home Base Care,529.76,Residential - OP
04/10/2021,TANDRIDGE CARE PD,Harty Homecare Services Ltd,Home Base Care,547.8,Residential - OP
04/10/2021,TANDRIDGE CARE OP,Harty Homecare Services Ltd,Home Base Care,295.64,Residential - OP
04/10/2021,NULL,Hawkins Services Ltd,NULL,18000,Individual - NEC
04/10/2021,MOLE VALLEY CARE OP,Helping Hands Horley,Home Base Care,943,Dom Care - Adults
04/10/2021,WAVERLEY CARE OP,Home Instead Senior Care - Godalmin,Home Base Care,786,Residential - OP
04/10/2021,LD-AUT CNTR TM CARE,Horizon Day Centre,Day Care,1872.16,Residential - PSD
04/10/2021,LD-AUT CNTR TM CARE,House of St Martin,Residential,5101.54,Residential - OP
04/10/2021,WAVERLEY CARE OP,Lantern Care Services Ltd,Home Base Care,1203.72,Dom Care - Adults
04/10/2021,WAVERLEY CARE OP,Lantern Care Services Ltd,Home Base Care,571.76,Dom Care - Adults
04/10/2021,WAVERLEY CARE OP,Lantern Care Services Ltd,Home Base Care,378.58,Dom Care - Adults
04/10/2021,WAVERLEY CARE OP,Lantern Care Services Ltd,Home Base Care,1567.44,Dom Care - Adults
04/10/2021,WAVERLEY CARE PD,Lantern Care Services Ltd,Home Base Care,727.44,Dom Care - Adults
04/10/2021,WAVERLEY CARE PD,Lantern Care Services Ltd,Home Base Care,1117.34,Dom Care - Adults
04/10/2021,WAVERLEY CARE OP,Lantern Care Services Ltd,Home Base Care,1203.72,Dom Care - Adults
04/10/2021,WAVERLEY CARE OP,Lantern Care Services Ltd,Home Base Care,831.46,Dom Care - Adults
04/10/2021,WAVERLEY CARE PD,Lantern Care Services Ltd,Home Base Care,2130.66,Dom Care - Adults
04/10/2021,WAVERLEY CARE PD,Lantern Care Services Ltd,Home Base Care,1231,Dom Care - Adults
04/10/2021,WAVERLEY CARE PD,Lantern Care Services Ltd,Home Base Care,1703.76,Dom Care - Adults
04/10/2021,WAVERLEY CARE OP,Lantern Care Services Ltd,Home Base Care,404.56,Dom Care - Adults
04/10/2021,MOLE VALLEY CARE OP,Lme Investments Ltd T/A Caremark,Home Base Care,1068.38,Dom Care - Adults
04/10/2021,MOLE VALLEY CARE OP,Lme Investments Ltd T/A Caremark,Home Base Care,451.7,Dom Care - Adults
04/10/2021,MOLE VALLEY CARE PD,Lme Investments Ltd T/A Caremark,Home Base Care,259.85,Dom Care - Adults
04/10/2021,MOLE VALL CMHRS CARE,Lme Investments Ltd T/A Caremark,Home Base Care,519.68,Dom Care - Adults
04/10/2021,MOLE VALL CMHRS CARE,Lme Investments Ltd T/A Caremark,Home Base Care,445.44,Dom Care - Adults
04/10/2021,MOLE VALLEY CARE OP,Lme Investments Ltd T/A Caremark,Home Base Care,1020.98,Dom Care - Adults
04/10/2021,MOLE VALLEY CARE PD,Lme Investments Ltd T/A Caremark,Home Base Care,662.02,Dom Care - Adults
04/10/2021,LD-AUT CNTR TM CARE,Macdonald Care Services,Home Base Care,292.6,Dom Care - Adults
04/10/2021,TANDRIDGE CARE OP,Macdonald Care Services,Home Base Care,704.2,Dom Care - Adults
04/10/2021,TANDRIDGE CARE OP,Macdonald Care Services,Home Base Care,704.2,Dom Care - Adults
04/10/2021,PERM SURP LAND,Managing Property Maintenance Ltd,Corporate Responsive Maintenance,4224,General Build Maint
04/10/2021,LD-AUT CNTR TM CARE,National Autistic Society Services,Day Care,451.48,Residential - MH
04/10/2021,LD-AUT CNTR TM CARE,National Autistic Society Services,Day Care,3578.6,Residential - MH
04/10/2021,LD-AUT CNTR TM CARE,National Autistic Society Services,Day Care,3399.4,Residential - MH
04/10/2021,WOKING CARE OP,Novus Care Ltd,Home Base Care,510.72,Dom Care - Adults
04/10/2021,LD-AUT CNTR TM CARE,Radiant Care Services Ltd,Home Base Care,771.12,Dom Care - Adults
04/10/2021,REIGATE & BD CARE OP,Radiant Care Services Ltd,Home Base Care,556.92,Dom Care - Adults
04/10/2021,REIGATE & BD CARE OP,Radiant Care Services Ltd,Home Base Care,2227.68,Dom Care - Adults
04/10/2021,REIGATE & BD CARE OP,Radiant Care Services Ltd,Home Base Care,1642.2,Dom Care - Adults
04/10/2021,REIGATE & BD CARE OP,Radiant Care Services Ltd,Home Base Care,399.84,Dom Care - Adults
04/10/2021,EPSOM & EWELL CARE O,Radiant Care Services Ltd,Home Base Care,699.72,Dom Care - Adults
04/10/2021,REIGATE & BD CARE OP,Radiant Care Services Ltd,Home Base Care,514.08,Dom Care - Adults
04/10/2021,REIGATE & BD CARE OP,Radiant Care Services Ltd,Home Base Care,1642.2,Dom Care - Adults
04/10/2021,EPSOM & EWELL CARE O,Radiant Care Services Ltd,Home Base Care,399.84,Dom Care - Adults
04/10/2021,REIGATE & BD CARE PD,Radiant Care Services Ltd,Home Base Care,842.52,Dom Care - Adults
04/10/2021,EPSOM & EWELL CARE P,Radiant Care Services Ltd,Home Base Care,267.24,Dom Care - Adults
04/10/2021,REIGATE & BD CARE OP,Radiant Care Services Ltd,Home Base Care,771.12,Dom Care - Adults
04/10/2021,REIGATE & BD CARE OP,Radiant Care Services Ltd,Home Base Care,887.4,Dom Care - Adults
04/10/2021,REIGATE & BD CARE OP,Radiant Care Services Ltd,Home Base Care,1485.12,Dom Care - Adults
04/10/2021,REIGATE & BD CARE OP,Radiant Care Services Ltd,Home Base Care,642.6,Dom Care - Adults
04/10/2021,REIGATE & BD CARE OP,Radiant Care Services Ltd,Home Base Care,1642.2,Dom Care - Adults
04/10/2021,SPELTHORNE CARE OP,Radiant Care Services Ltd,Home Base Care,1642.2,Dom Care - Adults
04/10/2021,REIGATE & BD CARE OP,Radiant Care Services Ltd,Home Base Care,2227.68,Dom Care - Adults
04/10/2021,SURREY HEATH CARE PD,Ranger Home Care Ltd,Home Base Care,2142,Dom Care - Adults
04/10/2021,WAVERLEY CARE OP,Ranger Home Care Ltd,Home Base Care,2142,Dom Care - Adults
04/10/2021,SURREY HEATH CARE PD,Ranger Home Care Ltd,Home Base Care,5341,Dom Care - Adults
04/10/2021,WAVERLEY CARE OP,Ranger Home Care Ltd,Home Base Care,554.64,Dom Care - Adults
04/10/2021,NULL,RB Fencing Ltd,NULL,8063.52,Green Works
04/10/2021,TANDRIDGE CARE CR,Redacted Personal Data,Direct Payments - Independent Sector,741.98,Adult direct payment
04/10/2021,MOLE VALL CMHRS CARE,Redacted Personal Data,Direct Payments - Independent Sector,2003.6,CYP Indiv Carers
04/10/2021,CWD CONTRACTS/SLA'S,Redacted Personal Data,Direct Payments - Carers of Disabled Children,300,Adult direct payment
04/10/2021,CWD CONTRACTS/SLA'S,Redacted Personal Data,Direct Payments - Carers of Disabled Children,300,Invoicing Plan Req.
04/10/2021,CWD CONTRACTS/SLA'S,Redacted Personal Data,Direct Payments - Carers of Disabled Children,300,Invoicing Plan Req.
04/10/2021,CWD CONTRACTS/SLA'S,Redacted Personal Data,Direct Payments - Carers of Disabled Children,300,Misc One-off
04/10/2021,CWD CONTRACTS/SLA'S,Redacted Personal Data,Direct Payments - Carers of Disabled Children,268,Invoicing Plan Req.
04/10/2021,NW CARE - CPCRT NONL,Redacted Personal Data,Third Party Payments-Other Agencies,405,Invoicing Plan Req.
04/10/2021,LEGAL EXPS CH AD ED,Redacted Personal Data,Legal Expenses,540,Legal Spec Supp NEC
04/10/2021,NE AREA SEN MGT,Redacted Personal Data,Compensation and Ex-Gratia,1350,Non-Staff Expenses
04/10/2021,CORONER,Redacted Personal Data,Inquest Exps.,2700,Coroners
04/10/2021,CORONER,Redacted Personal Data,Inquest Exps.,300,Coroners
04/10/2021,TRANSPORT C19 GRANT,Redacted Personal Data,Non-Staff Related Transport Costs,301.56,Childrens Indiv Tran
04/10/2021,CORONER,Redacted Personal Data,Inquest Exps.,300,Coroners
04/10/2021,LEGAL EXPS CH AD ED,Redated Personal Data,Legal Expenses,840,General Support
04/10/2021,NE ALT PROV TRANS,Redated Personal Data ,Fees,2938.88,CYP Indiv Foster Car
04/10/2021,LD-AUT CNTR TM CARE,Reliant Care Ltd,Supported Living,2200,Residential - MH
04/10/2021,LD-AUT CNTR TM CARE,Reliant Care Ltd,Supported Living,2200,Residential - MH
04/10/2021,LD-AUT CNTR TM CARE,Reliant Care Ltd,Supported Living,2200,Residential - MH
04/10/2021,MAYBURY INF SCH,Rock Compliance Ltd,Buyback Inspections,403.81,M-D (Property)
04/10/2021,CLARENDON PRY SCH,Rock Compliance Ltd,Buyback Inspections,353.34,M-D (Property)
04/10/2021,GUILDFORD CMHRS CARE,Seacole Health Care,Supported Living,4883.83,Residential - OP
04/10/2021,GUILDFORD CMHRS CARE,Seacole Health Care,Supported Living,9696.8,Residential - OP
04/10/2021,REIGATE & BD CARE PD,Seraphim Group Ltd,Other Community Care,504,Subscriptions
04/10/2021,KALIMA GRT,Sicuro UK Ltd,Security Alarm Maintenance,494,Surveys - Ecological
04/10/2021,CHILD & FAM CONTACT,Slater & Gordon UK Ltd,Books,420,Insurance Services
04/10/2021,LD-AUT CNTR TM CARE,Surrey & Borders Partnership NHS Tr,Respite Residential,2036.3,Residential - MH
04/10/2021,LD-AUT CNTR TM CARE,Surrey & Borders Partnership NHS Tr,Respite Residential,419,Residential - MH
04/10/2021,LD-AUT CNTR TM CARE,Surrey & Borders Partnership NHS Tr,Respite Residential,5031.48,Residential - MH
04/10/2021,LD-AUT CNTR TM CARE,Surrey & Borders Partnership NHS Tr,Respite Residential,1258,Residential - MH
04/10/2021,LD-AUT CNTR TM CARE,Surrey & Borders Partnership NHS Tr,Day Care,1356.84,Residential - MH
04/10/2021,LD-AUT CNTR TM CARE,Surrey Choices Ltd,Supported Living,2093.14,Day Care - PSD
04/10/2021,LD-AUT CNTR TM CARE,Surrey Choices Ltd,Supported Living,2093.14,Day Care - PSD
04/10/2021,TANDRIDGE CARE PD,Surrey Hills Home Help Services Ltd,Home Base Care,572.4,Dom Care - Adults
04/10/2021,LD-AUT CNTR TM CARE,Surrey Hills Home Help Services Ltd,Home Base Care,855.68,Dom Care - Adults
04/10/2021,TANDRIDGE CARE OP,Surrey Hills Home Help Services Ltd,Home Base Care,654.46,Dom Care - Adults
04/10/2021,TANDRIDGE CARE PD,Surrey Hills Home Help Services Ltd,Home Base Care,368.9,Dom Care - Adults
04/10/2021,TANDRIDGE CARE OP,Surrey Hills Home Help Services Ltd,Home Base Care,422.63,Dom Care - Adults
04/10/2021,TANDRIDGE CARE OP,Surrey Hills Home Help Services Ltd,Home Base Care,631.34,Dom Care - Adults
04/10/2021,TANDRIDGE CARE OP,Surrey Hills Home Help Services Ltd,Home Base Care,734.94,Dom Care - Adults
04/10/2021,TANDRIDGE CARE OP,Surrey Hills Home Help Services Ltd,Home Base Care,577.61,Dom Care - Adults
04/10/2021,TANDRIDGE CARE OP,Surrey Hills Home Help Services Ltd,Home Base Care,773.62,Dom Care - Adults
04/10/2021,GUILDFORD CARE PD,Surrey Homecare Ltd,Home Base Care,512.15,Dom Care - Adults
04/10/2021,NULL,Surrey Pension Fund,NULL,38662.62,Pensions
04/10/2021,NULL,SWT Ecology Services Ltd,NULL,5340,M-D (Property)
04/10/2021,NULL,Teachers Pensions,NULL,1916.9,Pensions
04/10/2021,NULL,Teachers Pensions,NULL,6010.36,Pensions
04/10/2021,NULL,Teachers Pensions,NULL,6566.56,Pensions
04/10/2021,NULL,Teachers Pensions,NULL,5649.82,Pensions
04/10/2021,NULL,Teachers Pensions,NULL,3123,Pensions
04/10/2021,NULL,Teachers Pensions,NULL,5570.45,Pensions
04/10/2021,NULL,Teachers Pensions,NULL,25850.52,Pensions
04/10/2021,NULL,Teachers Pensions,NULL,2490.84,Pensions
04/10/2021,NULL,Teachers Pensions,NULL,72883.5,Pensions
04/10/2021,NULL,Teachers Pensions,NULL,10684.15,Pensions
04/10/2021,NULL,Teachers Pensions,NULL,17080.28,Pensions
04/10/2021,NULL,Teachers Pensions,NULL,94154.9,Pensions
04/10/2021,NULL,Teachers Pensions,NULL,15744.41,Pensions
04/10/2021,NULL,Teachers Pensions,NULL,18966.61,Pensions
04/10/2021,NULL,Teachers Pensions,NULL,28621.28,Pensions
04/10/2021,NULL,Teachers Pensions,NULL,2963.22,Pensions
04/10/2021,NULL,Teachers Pensions,NULL,27974.75,Pensions
04/10/2021,NULL,Teachers Pensions,NULL,5097.97,Pensions
04/10/2021,NULL,Teachers Pensions,NULL,23382.92,Pensions
04/10/2021,NULL,Teachers Pensions,NULL,2071.61,Pensions
04/10/2021,NULL,Teachers Pensions,NULL,4781.48,Pensions
04/10/2021,NULL,Teachers Pensions,NULL,4062.47,Pensions
04/10/2021,NULL,Teachers Pensions,NULL,2684.94,Pensions
04/10/2021,NULL,Teachers Pensions,NULL,2933.37,Pensions
04/10/2021,NULL,Teachers Pensions,NULL,28810.41,Pensions
04/10/2021,NULL,Teachers Pensions,NULL,6942.61,Pensions
04/10/2021,NULL,Teachers Pensions,NULL,11601.93,Pensions
04/10/2021,NULL,Teachers Pensions,NULL,5312.01,Pensions
04/10/2021,NULL,Teachers Pensions,NULL,1553.27,Pensions
04/10/2021,NULL,Teachers Pensions,NULL,5242.15,Pensions
04/10/2021,NULL,Teachers Pensions,NULL,4144.08,Pensions
04/10/2021,NULL,Teachers Pensions,NULL,6474.52,Pensions
04/10/2021,NULL,Teachers Pensions,NULL,28946.98,Pensions
04/10/2021,NULL,Teachers Pensions,NULL,25820.75,Pensions
04/10/2021,NULL,Teachers Pensions,NULL,7134.21,Pensions
04/10/2021,NULL,Teachers Pensions,NULL,5756.18,Pensions
04/10/2021,NULL,Teachers Pensions,NULL,5424.46,Pensions
04/10/2021,NULL,Teachers Pensions,NULL,5082.76,Pensions
04/10/2021,NULL,Teachers Pensions,NULL,5462.65,Pensions
04/10/2021,NULL,Teachers Pensions,NULL,5144.17,Pensions
04/10/2021,NULL,Teachers Pensions,NULL,6713.17,Pensions
04/10/2021,NULL,Teachers Pensions,NULL,2928.81,Pensions
04/10/2021,NULL,Teachers Pensions,NULL,7208.56,Pensions
04/10/2021,NULL,Teachers Pensions,NULL,5026.95,Pensions
04/10/2021,NULL,Teachers Pensions,NULL,2511.14,Pensions
04/10/2021,NULL,Teachers Pensions,NULL,8603.02,Pensions
04/10/2021,NULL,Teachers Pensions,NULL,2661.12,Pensions
04/10/2021,NULL,Teachers Pensions,NULL,40545.06,Pensions
04/10/2021,NULL,Teachers Pensions,NULL,6138.06,Pensions
04/10/2021,NULL,Teachers Pensions,NULL,24795.22,Pensions
04/10/2021,NULL,Teachers Pensions,NULL,3272.51,Pensions
04/10/2021,NULL,Teachers Pensions,NULL,8637.76,Pensions
04/10/2021,NULL,Teachers Pensions,NULL,3823.29,Pensions
04/10/2021,NULL,Teachers Pensions,NULL,24925.54,Pensions
04/10/2021,NULL,Teachers Pensions,NULL,4155.47,Pensions
04/10/2021,NULL,Teachers Pensions,NULL,13564.19,Pensions
04/10/2021,NULL,Teachers Pensions,NULL,15515.01,Pensions
04/10/2021,NULL,Teachers Pensions,NULL,14505.36,Pensions
04/10/2021,NULL,Teachers Pensions,NULL,2039548.44,Pensions
04/10/2021,NULL,Teachers Pensions,NULL,22693.73,Pensions
04/10/2021,NULL,Teachers Pensions,NULL,10849.78,Pensions
04/10/2021,NULL,Teachers Pensions,NULL,985.6,Pensions
04/10/2021,NULL,Teachers Pensions,NULL,36439.06,Pensions
04/10/2021,NULL,Teachers Pensions,NULL,15847.57,Pensions
04/10/2021,NULL,Teachers Pensions,NULL,22259,Pensions
04/10/2021,NULL,Teachers Pensions,NULL,26026.77,Pensions
04/10/2021,NULL,Teachers Pensions,NULL,11201.33,Pensions
04/10/2021,NULL,Teachers Pensions,NULL,6576.29,Pensions
04/10/2021,NULL,Teachers Pensions,NULL,3854.28,Pensions
04/10/2021,NULL,Teachers Pensions,NULL,19109.04,Pensions
04/10/2021,NULL,Teachers Pensions,NULL,5341.56,Pensions
04/10/2021,NULL,Teachers Pensions,NULL,4159.34,Pensions
04/10/2021,NULL,Teachers Pensions,NULL,5752.45,Pensions
04/10/2021,NULL,Teachers Pensions,NULL,29015.07,Pensions
04/10/2021,NULL,Teachers Pensions,NULL,5732.63,Pensions
04/10/2021,NULL,Teachers Pensions,NULL,51246.85,Pensions
04/10/2021,NULL,Teachers Pensions,NULL,8962.6,Pensions
04/10/2021,NULL,Teachers Pensions,NULL,4003.55,Pensions
04/10/2021,NULL,Teachers Pensions,NULL,5108.15,Pensions
04/10/2021,NULL,Teachers Pensions,NULL,14903.92,Pensions
04/10/2021,NULL,Teachers Pensions,NULL,138599.87,Pensions
04/10/2021,NULL,Teachers Pensions,NULL,62361.54,Pensions
04/10/2021,NULL,Teachers Pensions,NULL,1201.31,Pensions
04/10/2021,NULL,Teachers Pensions,NULL,253.4,Pensions
04/10/2021,NULL,Teachers Pensions,NULL,3341.15,Pensions
04/10/2021,NULL,Teachers Pensions,NULL,10405.62,Pensions
04/10/2021,NULL,Teachers Pensions,NULL,32998.51,Pensions
04/10/2021,NULL,Teachers Pensions,NULL,37168.68,Pensions
04/10/2021,NULL,Teachers Pensions,NULL,10339.97,Pensions
04/10/2021,NULL,Teachers Pensions,NULL,30762.27,Pensions
04/10/2021,NULL,Teachers Pensions,NULL,3927.67,Pensions
04/10/2021,NULL,Teachers Pensions,NULL,3411.25,Pensions
04/10/2021,NULL,Teachers Pensions,NULL,6726.44,Pensions
04/10/2021,NULL,Teachers Pensions,NULL,7280.16,Pensions
04/10/2021,NULL,Teachers Pensions,NULL,64551.7,Pensions
04/10/2021,NULL,Teachers Pensions,NULL,26262.8,Pensions
04/10/2021,NULL,Teachers Pensions,NULL,10050.45,Pensions
04/10/2021,NULL,Teachers Pensions,NULL,9588.03,Pensions
04/10/2021,NULL,Teachers Pensions,NULL,12965.75,Pensions
04/10/2021,NULL,Teachers Pensions,NULL,14198.77,Pensions
04/10/2021,NULL,Teachers Pensions,NULL,90033.18,Pensions
04/10/2021,NULL,Teachers Pensions,NULL,6721.99,Pensions
04/10/2021,NULL,Teachers Pensions,NULL,31016.61,Pensions
04/10/2021,NULL,Teachers Pensions,NULL,8014.93,Pensions
04/10/2021,NULL,Teachers Pensions,NULL,6509.57,Pensions
04/10/2021,NULL,Teachers Pensions,NULL,77972.22,Pensions
04/10/2021,NULL,Teachers Pensions,NULL,38026.15,Pensions
04/10/2021,NULL,Teachers Pensions,NULL,4039.35,Pensions
04/10/2021,NULL,Teachers Pensions,NULL,13177.86,Pensions
04/10/2021,NULL,Teachers Pensions,NULL,67567.03,Pensions
04/10/2021,NULL,Teachers Pensions,NULL,14692.5,Pensions
04/10/2021,NULL,Teachers Pensions,NULL,3945.22,Pensions
04/10/2021,NULL,Teachers Pensions,NULL,3421.38,Pensions
04/10/2021,NULL,Teachers Pensions,NULL,31603.04,Pensions
04/10/2021,NULL,Teachers Pensions,NULL,5165.45,Pensions
04/10/2021,NULL,Teachers Pensions,NULL,7851.18,Pensions
04/10/2021,NULL,Teachers Pensions,NULL,10243.85,Pensions
04/10/2021,NULL,Teachers Pensions,NULL,2796.04,Pensions
04/10/2021,NULL,Teachers Pensions,NULL,5606.48,Pensions
04/10/2021,NULL,Teachers Pensions,NULL,1695.85,Pensions
04/10/2021,NULL,Teachers Pensions,NULL,3069.48,Pensions
04/10/2021,NULL,Teachers Pensions,NULL,2094.51,Pensions
04/10/2021,NULL,Teachers Pensions,NULL,7510.06,Pensions
04/10/2021,NULL,Teachers Pensions,NULL,5420.39,Pensions
04/10/2021,NULL,Teachers Pensions,NULL,3058.64,Pensions
04/10/2021,NULL,Teachers Pensions,NULL,3153.39,Pensions
04/10/2021,NULL,Teachers Pensions,NULL,3871.27,Pensions
04/10/2021,NULL,Teachers Pensions,NULL,10253,Pensions
04/10/2021,NULL,Teachers Pensions,NULL,17921.76,Pensions
04/10/2021,NULL,Teachers Pensions,NULL,4781.78,Pensions
04/10/2021,NULL,Teachers Pensions,NULL,84237.65,Pensions
04/10/2021,NULL,Teachers Pensions,NULL,18026.64,Pensions
04/10/2021,NULL,Teachers Pensions,NULL,17436.85,Pensions
04/10/2021,NULL,Teachers Pensions,NULL,30270.32,Pensions
04/10/2021,NULL,Teachers Pensions,NULL,15679.54,Pensions
04/10/2021,NULL,Teachers Pensions,NULL,7179.27,Pensions
04/10/2021,NULL,Teachers Pensions,NULL,13119.06,Pensions
04/10/2021,NULL,Teachers Pensions,NULL,6476.93,Pensions
04/10/2021,NULL,Teachers Pensions,NULL,9694.8,Pensions
04/10/2021,NULL,Teachers Pensions,NULL,11306.21,Pensions
04/10/2021,NULL,Teachers Pensions,NULL,15512.59,Pensions
04/10/2021,NULL,Teachers Pensions,NULL,27781.74,Pensions
04/10/2021,NULL,Teachers Pensions,NULL,76860.72,Pensions
04/10/2021,NULL,Teachers Pensions,NULL,13718.75,Pensions
04/10/2021,NULL,Teachers Pensions,NULL,30664.19,Pensions
04/10/2021,NULL,Teachers Pensions,NULL,63829.18,Pensions
04/10/2021,NULL,Teachers Pensions,NULL,22180.57,Pensions
04/10/2021,NULL,Teachers Pensions,NULL,9414.92,Pensions
04/10/2021,NULL,Teachers Pensions,NULL,14500.45,Pensions
04/10/2021,NULL,Teachers Pensions,NULL,7113.92,Pensions
04/10/2021,NULL,Teachers Pensions,NULL,6792.52,Pensions
04/10/2021,NULL,Teachers Pensions,NULL,4732.69,Pensions
04/10/2021,NULL,Teachers Pensions,NULL,3591.31,Pensions
04/10/2021,NULL,Teachers Pensions,NULL,14393.62,Pensions
04/10/2021,NULL,Teachers Pensions,NULL,22318.9,Pensions
04/10/2021,NULL,Teachers Pensions,NULL,37110.4,Pensions
04/10/2021,NULL,Teachers Pensions,NULL,3480.78,Pensions
04/10/2021,NULL,Teachers Pensions,NULL,4688.81,Pensions
04/10/2021,NULL,Teachers Pensions,NULL,7506.19,Pensions
04/10/2021,NULL,Teachers Pensions,NULL,5160.62,Pensions
04/10/2021,NULL,Teachers Pensions,NULL,2513.72,Pensions
04/10/2021,NULL,Teachers Pensions,NULL,3789.2,Pensions
04/10/2021,NULL,Teachers Pensions,NULL,14840.34,Pensions
04/10/2021,NULL,Teachers Pensions,NULL,4219.47,Pensions
04/10/2021,NULL,Teachers Pensions,NULL,27697.08,Pensions
04/10/2021,NULL,Teachers Pensions,NULL,33646.9,Pensions
04/10/2021,NULL,Teachers Pensions,NULL,3970.03,Pensions
04/10/2021,NULL,Teachers Pensions,NULL,2053.1,Pensions
04/10/2021,NULL,Teachers Pensions,NULL,6615.17,Pensions
04/10/2021,NULL,Teachers Pensions,NULL,3295.91,Pensions
04/10/2021,NULL,Teachers Pensions,NULL,3769.04,Pensions
04/10/2021,NULL,Teachers Pensions,NULL,5361.06,Pensions
04/10/2021,NULL,Teachers Pensions,NULL,2092.44,Pensions
04/10/2021,NULL,Teachers Pensions,NULL,3809.13,Pensions
04/10/2021,NULL,Teachers Pensions,NULL,4313.84,Pensions
04/10/2021,NULL,Teachers Pensions,NULL,1201.28,Pensions
04/10/2021,NULL,Teachers Pensions,NULL,28550.71,Pensions
04/10/2021,NULL,Teachers Pensions,NULL,5714.42,Pensions
04/10/2021,NULL,Teachers Pensions,NULL,5547.63,Pensions
04/10/2021,NULL,Teachers Pensions,NULL,2673.53,Pensions
04/10/2021,NULL,Teachers Pensions,NULL,3691.59,Pensions
04/10/2021,NULL,Teachers Pensions,NULL,5723.12,Pensions
04/10/2021,NULL,Teachers Pensions,NULL,4759.96,Pensions
04/10/2021,NULL,Teachers Pensions,NULL,5544.98,Pensions
04/10/2021,NULL,Teachers Pensions,NULL,9009.36,Pensions
04/10/2021,NULL,Teachers Pensions,NULL,10597.52,Pensions
04/10/2021,NULL,Teachers Pensions,NULL,89337.18,Pensions
04/10/2021,NULL,Teachers Pensions,NULL,55560.4,Pensions
04/10/2021,NULL,Teachers Pensions,NULL,27525.11,Pensions
04/10/2021,NULL,Teachers Pensions,NULL,66529.7,Pensions
04/10/2021,NULL,Teachers Pensions,NULL,5849.21,Pensions
04/10/2021,NULL,Teachers Pensions,NULL,4700.02,Pensions
04/10/2021,NULL,Teachers Pensions,NULL,3315.93,Pensions
04/10/2021,NULL,Teachers Pensions,NULL,10484.34,Pensions
04/10/2021,NULL,Teachers Pensions,NULL,30863.73,Pensions
04/10/2021,NULL,Teachers Pensions,NULL,34758.2,Pensions
04/10/2021,NULL,Teachers Pensions,NULL,4408.04,Pensions
04/10/2021,NULL,Teachers Pensions,NULL,2396.1,Pensions
04/10/2021,NULL,Teachers Pensions,NULL,2207.21,Pensions
04/10/2021,NULL,Teachers Pensions,NULL,8026.11,Pensions
04/10/2021,NULL,Teachers Pensions,NULL,4228.51,Pensions
04/10/2021,NULL,Teachers Pensions,NULL,23162.3,Pensions
04/10/2021,NULL,Teachers Pensions,NULL,2793.71,Pensions
04/10/2021,NULL,Teachers Pensions,NULL,25179.59,Pensions
04/10/2021,NULL,Teachers Pensions,NULL,8735.21,Pensions
04/10/2021,NULL,Teachers Pensions,NULL,20318.6,Pensions
04/10/2021,NULL,Teachers Pensions,NULL,5843.13,Pensions
04/10/2021,NULL,Teachers Pensions,NULL,1484.14,Pensions
04/10/2021,NULL,Teachers Pensions,NULL,9163.71,Pensions
04/10/2021,NULL,Teachers Pensions,NULL,5177.32,Pensions
04/10/2021,NULL,Teachers Pensions,NULL,10064.94,Pensions
04/10/2021,NULL,Teachers Pensions,NULL,11591.64,Pensions
04/10/2021,NULL,Teachers Pensions,NULL,57348.22,Pensions
04/10/2021,NULL,Teachers Pensions,NULL,21311.82,Pensions
04/10/2021,NULL,Teachers Pensions,NULL,22288.37,Pensions
04/10/2021,NULL,Teachers Pensions,NULL,14907.97,Pensions
04/10/2021,NULL,Teachers Pensions,NULL,70191.86,Pensions
04/10/2021,NULL,Teachers Pensions,NULL,12407.48,Pensions
04/10/2021,NULL,Teachers Pensions,NULL,9867.09,Pensions
04/10/2021,NULL,Teachers Pensions,NULL,6169.48,Pensions
04/10/2021,NULL,Teachers Pensions,NULL,14591.88,Pensions
04/10/2021,NULL,Teachers Pensions,NULL,23067.88,Pensions
04/10/2021,NULL,Teachers Pensions,NULL,279,Pensions
04/10/2021,NULL,Teachers Pensions,NULL,620.03,Pensions
04/10/2021,NULL,Teachers Pensions,NULL,284.81,Pensions
04/10/2021,NULL,Teachers Pensions,NULL,327.6,Pensions
04/10/2021,NULL,Teachers Pensions,NULL,5962.74,Pensions
04/10/2021,NULL,Teachers Pensions,NULL,13561.72,Pensions
04/10/2021,NULL,Teachers Pensions,NULL,1571.5,Pensions
04/10/2021,NULL,Teachers Pensions,NULL,10582.41,Pensions
04/10/2021,NULL,Teachers Pensions,NULL,18047.86,Pensions
04/10/2021,NULL,Teachers Pensions,NULL,36229.81,Pensions
04/10/2021,NULL,Teachers Pensions,NULL,12945.68,Pensions
04/10/2021,NULL,Teachers Pensions,NULL,6788.84,Pensions
04/10/2021,NULL,Teachers Pensions,NULL,14567,Pensions
04/10/2021,NULL,Teachers Pensions,NULL,73676.17,Pensions
04/10/2021,NULL,Teachers Pensions,NULL,13718.78,Pensions
04/10/2021,NULL,Teachers Pensions,NULL,86151.79,Pensions
04/10/2021,NULL,Teachers Pensions,NULL,10127.33,Pensions
04/10/2021,NULL,Teachers Pensions,NULL,14117.7,Pensions
04/10/2021,NULL,Teachers Pensions,NULL,24327,Pensions
04/10/2021,NULL,Teachers Pensions,NULL,18922.58,Pensions
04/10/2021,NULL,Teachers Pensions,NULL,13330.16,Pensions
04/10/2021,NULL,Teachers Pensions,NULL,15273.97,Pensions
04/10/2021,NULL,Teachers Pensions,NULL,7827.03,Pensions
04/10/2021,NULL,Teachers Pensions,NULL,16838.36,Pensions
04/10/2021,NULL,Teachers Pensions,NULL,7637.75,Pensions
04/10/2021,NULL,Teachers Pensions,NULL,38606.06,Pensions
04/10/2021,NULL,Teachers Pensions,NULL,14227.89,Pensions
04/10/2021,NULL,Teachers Pensions,NULL,43549.22,Pensions
04/10/2021,NULL,Teachers Pensions,NULL,6896.85,Pensions
04/10/2021,NULL,Teachers Pensions,NULL,12757.88,Pensions
04/10/2021,NULL,Teachers Pensions,NULL,20883.76,Pensions
04/10/2021,NULL,Teachers Pensions,NULL,5173.99,Pensions
04/10/2021,NULL,Teachers Pensions,NULL,8597.26,Pensions
04/10/2021,NULL,Teachers Pensions,NULL,55470.83,Pensions
04/10/2021,NULL,Teachers Pensions,NULL,8760.65,Pensions
04/10/2021,NULL,Teachers Pensions,NULL,9277.07,Pensions
04/10/2021,NULL,Teachers Pensions,NULL,80209.17,Pensions
04/10/2021,NULL,Teachers Pensions,NULL,65682.26,Pensions
04/10/2021,NULL,Teachers Pensions,NULL,12465.98,Pensions
04/10/2021,NULL,Teachers Pensions,NULL,16836.56,Pensions
04/10/2021,NULL,Teachers Pensions,NULL,658.49,Pensions
04/10/2021,NULL,Teachers Pensions,NULL,283.41,Pensions
04/10/2021,NULL,Teachers Pensions,NULL,370.8,Pensions
04/10/2021,NULL,Teachers Pensions,NULL,561,Pensions
04/10/2021,NULL,Teachers Pensions,NULL,2378.46,Pensions
04/10/2021,NULL,Teachers Pensions,NULL,5740.36,Pensions
04/10/2021,NULL,Teachers Pensions,NULL,10473.81,Pensions
04/10/2021,NULL,Teachers Pensions,NULL,26531.88,Pensions
04/10/2021,NULL,Teachers Pensions,NULL,72894.4,Pensions
04/10/2021,NULL,Teachers Pensions,NULL,65710.05,Pensions
04/10/2021,NULL,Teachers Pensions,NULL,6758.42,Pensions
04/10/2021,NULL,Teachers Pensions,NULL,8994.98,Pensions
04/10/2021,NULL,Teachers Pensions,NULL,17436.78,Pensions
04/10/2021,NULL,Teachers Pensions,NULL,12459.02,Pensions
04/10/2021,NULL,Teachers Pensions,NULL,8886.13,Pensions
04/10/2021,NULL,Teachers Pensions,NULL,7715.06,Pensions
04/10/2021,NULL,Teachers Pensions,NULL,22334.69,Pensions
04/10/2021,NULL,Teachers Pensions,NULL,36078.86,Pensions
04/10/2021,NULL,Teachers Pensions,NULL,5743.24,Pensions
04/10/2021,NULL,Teachers Pensions,NULL,115534.84,Pensions
04/10/2021,NULL,Teachers Pensions,NULL,12217.17,Pensions
04/10/2021,NULL,Teachers Pensions,NULL,14815.73,Pensions
04/10/2021,NULL,Teachers Pensions,NULL,10565.64,Pensions
04/10/2021,NULL,Teachers Pensions,NULL,10596.1,Pensions
04/10/2021,NULL,Teachers Pensions,NULL,266.35,Pensions
04/10/2021,NULL,Teachers Pensions,NULL,9082.45,Pensions
04/10/2021,NULL,Teachers Pensions,NULL,19410.13,Pensions
04/10/2021,NULL,Teachers Pensions,NULL,12944.83,Pensions
04/10/2021,NULL,Teachers Pensions,NULL,7470.84,Pensions
04/10/2021,NULL,Teachers Pensions,NULL,29172.19,Pensions
04/10/2021,NULL,Teachers Pensions,NULL,13830.72,Pensions
04/10/2021,NULL,Teachers Pensions,NULL,11159.99,Pensions
04/10/2021,NULL,Teachers Pensions,NULL,21679.56,Pensions
04/10/2021,NULL,Teachers Pensions,NULL,14389.12,Pensions
04/10/2021,NULL,Teachers Pensions,NULL,16951.15,Pensions
04/10/2021,NULL,Teachers Pensions,NULL,14682.27,Pensions
04/10/2021,NULL,Teachers Pensions,NULL,14421.51,Pensions
04/10/2021,NULL,Teachers Pensions,NULL,8202.86,Pensions
04/10/2021,NULL,Teachers Pensions,NULL,7478.17,Pensions
04/10/2021,NULL,Teachers Pensions,NULL,6298.57,Pensions
04/10/2021,NULL,Teachers Pensions,NULL,9685.98,Pensions
04/10/2021,NULL,Teachers Pensions,NULL,12698.79,Pensions
04/10/2021,NULL,Teachers Pensions,NULL,20898.17,Pensions
04/10/2021,NULL,Teachers Pensions,NULL,7004.22,Pensions
04/10/2021,NULL,Teachers Pensions,NULL,7516.43,Pensions
04/10/2021,NULL,Teachers Pensions,NULL,62063.53,Pensions
04/10/2021,NULL,Teachers Pensions,NULL,2945.52,Pensions
04/10/2021,NULL,Teachers Pensions,NULL,22866.79,Pensions
04/10/2021,NULL,Teachers Pensions,NULL,21067.92,Pensions
04/10/2021,NULL,Teachers Pensions,NULL,14124.38,Pensions
04/10/2021,NULL,Teachers Pensions,NULL,20786.16,Pensions
04/10/2021,NULL,Teachers Pensions,NULL,3786.82,Pensions
04/10/2021,NULL,Teachers Pensions,NULL,14678.54,Pensions
04/10/2021,NULL,Teachers Pensions,NULL,3671.04,Pensions
04/10/2021,NULL,Teachers Pensions,NULL,102908.76,Pensions
04/10/2021,NULL,Teachers Pensions,NULL,7136.41,Pensions
04/10/2021,NULL,Teachers Pensions,NULL,279.02,Pensions
04/10/2021,NULL,Teachers Pensions,NULL,516,Pensions
04/10/2021,NULL,Teachers Pensions,NULL,360.69,Pensions
04/10/2021,NULL,Teachers Pensions,NULL,303.64,Pensions
04/10/2021,NULL,Teachers Pensions,NULL,414.7,Pensions
04/10/2021,NULL,Teachers Pensions,NULL,271.96,Pensions
04/10/2021,NULL,Teachers Pensions,NULL,3758.66,Pensions
04/10/2021,NULL,Teachers Pensions,NULL,15680.54,Pensions
04/10/2021,NULL,Teachers Pensions,NULL,5462.64,Pensions
04/10/2021,NULL,Teachers Pensions,NULL,33421.03,Pensions
04/10/2021,NULL,Teachers Pensions,NULL,37981.05,Pensions
04/10/2021,NULL,Teachers Pensions,NULL,796065.66,Pensions
04/10/2021,NULL,Teachers Pensions,NULL,9369.4,Pensions
04/10/2021,NULL,Teachers Pensions,NULL,38940.82,Pensions
04/10/2021,NULL,Teachers Pensions,NULL,14676.22,Pensions
04/10/2021,NULL,Teachers Pensions,NULL,14837.99,Pensions
04/10/2021,NULL,Teachers Pensions,NULL,8203.57,Pensions
04/10/2021,NULL,Teachers Pensions,NULL,63551.74,Pensions
04/10/2021,NULL,Teachers Pensions,NULL,83485.48,Pensions
04/10/2021,NULL,Teachers Pensions,NULL,72158.84,Pensions
04/10/2021,NULL,Teachers Pensions,NULL,6431.88,Pensions
04/10/2021,NULL,Teachers Pensions,NULL,10193.74,Pensions
04/10/2021,NULL,Teachers Pensions,NULL,307.08,Pensions
04/10/2021,NULL,Teachers Pensions,NULL,2951.06,Pensions
04/10/2021,NULL,Teachers Pensions,NULL,1169.37,Pensions
04/10/2021,NULL,Teachers Pensions,NULL,24553.36,Pensions
04/10/2021,NULL,Teachers Pensions,NULL,26851.01,Pensions
04/10/2021,NULL,Teachers Pensions,NULL,23261.79,Pensions
04/10/2021,NULL,Teachers Pensions,NULL,27475.78,Pensions
04/10/2021,NULL,Teachers Pensions,NULL,4121.78,Pensions
04/10/2021,NULL,Teachers Pensions,NULL,2553.29,Pensions
04/10/2021,NULL,Teachers Pensions,NULL,3268.54,Pensions
04/10/2021,NULL,Teachers Pensions,NULL,4724.25,Pensions
04/10/2021,NULL,Teachers Pensions,NULL,2519.53,Pensions
04/10/2021,NULL,Teachers Pensions,NULL,8787.93,Pensions
04/10/2021,NULL,Teachers Pensions,NULL,2179.69,Pensions
04/10/2021,NULL,Teachers Pensions,NULL,4988.99,Pensions
04/10/2021,NULL,Teachers Pensions,NULL,33406.4,Pensions
04/10/2021,NULL,Teachers Pensions,NULL,607,Pensions
04/10/2021,NULL,Teachers Pensions,NULL,22434.92,Pensions
04/10/2021,NULL,Teachers Pensions,NULL,6855.31,Pensions
04/10/2021,NULL,Teachers Pensions,NULL,46736.34,Pensions
04/10/2021,NULL,Teachers Pensions,NULL,6995.34,Pensions
04/10/2021,NULL,Teachers Pensions,NULL,2461.52,Pensions
04/10/2021,NULL,Teachers Pensions,NULL,5104.16,Pensions
04/10/2021,NULL,Teachers Pensions,NULL,5455.04,Pensions
04/10/2021,NULL,Teachers Pensions,NULL,9555.95,Pensions
04/10/2021,NULL,Teachers Pensions,NULL,12412.87,Pensions
04/10/2021,NULL,Teachers Pensions,NULL,5156.37,Pensions
04/10/2021,NULL,Teachers Pensions,NULL,2748.45,Pensions
04/10/2021,NULL,Teachers Pensions,NULL,33732.58,Pensions
04/10/2021,NULL,Teachers Pensions,NULL,12492.22,Pensions
04/10/2021,NULL,Teachers Pensions,NULL,6661.21,Pensions
04/10/2021,NULL,Teachers Pensions,NULL,6089.35,Pensions
04/10/2021,NULL,Teachers Pensions,NULL,7304.21,Pensions
04/10/2021,NULL,Teachers Pensions,NULL,5601.15,Pensions
04/10/2021,NULL,Teachers Pensions,NULL,2391.71,Pensions
04/10/2021,NULL,Teachers Pensions,NULL,3675.73,Pensions
04/10/2021,NULL,Teachers Pensions,NULL,3300.66,Pensions
04/10/2021,NULL,Teachers Pensions,NULL,12351.86,Pensions
04/10/2021,NULL,Teachers Pensions,NULL,15587.25,Pensions
04/10/2021,NULL,Teachers Pensions,NULL,5330.02,Pensions
04/10/2021,NULL,Teachers Pensions,NULL,25518.19,Pensions
04/10/2021,NULL,Teachers Pensions,NULL,3514.61,Pensions
04/10/2021,NULL,Teachers Pensions,NULL,3666.68,Pensions
04/10/2021,NULL,Teachers Pensions,NULL,2426.91,Pensions
04/10/2021,NULL,Teachers Pensions,NULL,3462.09,Pensions
04/10/2021,NULL,Teachers Pensions,NULL,2682.84,Pensions
04/10/2021,NULL,Teachers Pensions,NULL,22370.13,Pensions
04/10/2021,NULL,Teachers Pensions,NULL,8267.02,Pensions
04/10/2021,NULL,Teachers Pensions,NULL,1848.72,Pensions
04/10/2021,NULL,Teachers Pensions,NULL,1358.71,Pensions
04/10/2021,NULL,Teachers Pensions,NULL,41028.57,Pensions
04/10/2021,NULL,Teachers Pensions,NULL,7964.6,Pensions
04/10/2021,NULL,Teachers Pensions,NULL,2763.34,Pensions
04/10/2021,NULL,Teachers Pensions,NULL,6586.81,Pensions
04/10/2021,NULL,Teachers Pensions,NULL,28771.35,Pensions
04/10/2021,NULL,Teachers Pensions,NULL,30192.83,Pensions
04/10/2021,NULL,Teachers Pensions,NULL,46202.15,Pensions
04/10/2021,NULL,Teachers Pensions,NULL,59465.94,Pensions
04/10/2021,NULL,Teachers Pensions,NULL,26573.16,Pensions
04/10/2021,NULL,Teachers Pensions,NULL,80267.68,Pensions
04/10/2021,NULL,Teachers Pensions,NULL,89112.32,Pensions
04/10/2021,NULL,Teachers Pensions,NULL,58302.24,Pensions
04/10/2021,NULL,Teachers Pensions,NULL,38317.81,Pensions
04/10/2021,NULL,Teachers Pensions,NULL,74825.11,Pensions
04/10/2021,NULL,Teachers Pensions,NULL,64387.42,Pensions
04/10/2021,NULL,Teachers Pensions,NULL,16999.54,Pensions
04/10/2021,NULL,Teachers Pensions,NULL,6817.46,Pensions
04/10/2021,NULL,Teachers Pensions,NULL,49121.51,Pensions
04/10/2021,NULL,Teachers Pensions,NULL,12633.17,Pensions
04/10/2021,NULL,Teachers Pensions,NULL,85608.41,Pensions
04/10/2021,NULL,Teachers Pensions,NULL,56913.26,Pensions
04/10/2021,NULL,Teachers Pensions,NULL,54371.94,Pensions
04/10/2021,NULL,Teachers Pensions,NULL,54408.48,Pensions
04/10/2021,NULL,Teachers Pensions,NULL,16737.8,Pensions
04/10/2021,NULL,Teachers Pensions,NULL,11868.08,Pensions
04/10/2021,NULL,Teachers Pensions,NULL,24935.49,Pensions
04/10/2021,NULL,Teachers Pensions,NULL,17702.18,Pensions
04/10/2021,NULL,Teachers Pensions,NULL,8756.4,Pensions
04/10/2021,NULL,Teachers Pensions,NULL,9680.56,Pensions
04/10/2021,NULL,Teachers Pensions,NULL,62161.36,Pensions
04/10/2021,NULL,Teachers Pensions,NULL,5386.51,Pensions
04/10/2021,NULL,Teachers Pensions,NULL,8542,Pensions
04/10/2021,NULL,Teachers Pensions,NULL,4450.63,Pensions
04/10/2021,NULL,Teachers Pensions,NULL,13084.68,Pensions
04/10/2021,NULL,Teachers Pensions,NULL,8922.83,Pensions
04/10/2021,NULL,Teachers Pensions,NULL,5638.84,Pensions
04/10/2021,NULL,Teachers Pensions,NULL,18384.65,Pensions
04/10/2021,NULL,Teachers Pensions,NULL,85440.08,Pensions
04/10/2021,NULL,Teachers Pensions,NULL,8116.03,Pensions
04/10/2021,NULL,Teachers Pensions,NULL,10985.35,Pensions
04/10/2021,NULL,Teachers Pensions,NULL,5514.87,Pensions
